Workbook

Sheet SCHEDULE MJL-TUR1
A1: AMEREN MISSOURI
A2: ORIGINAL COST OF ELECTRIC PLANT
A3: ="BY FUNCTIONAL CLASSIFICATION "&'SCHEDULE MJL-TUR3'!A3:G3 -> BY FUNCTIONAL CLASSIFICATION FOR THE TWELVE MONTHS ENDED DECEMBER 31, 2022
A4: ($000)
E7: TOTALS | G7: PRO FORMA
E8: PER | F8: PRO FORMA | G8: ELECTRIC
A9: LINE | C9: FUNCTIONAL CLASSIFICATION | E9: BOOKS | F9: ADJUSTMENTS | G9: TOTALS
C10: (A) | E10: (B) | F10: (C) | G10: (D)
C11: INTANGIBLE PLANT
A12: 1 | C12: FRANCHISES | E12: =+ROUND([1]Plant!$B$10*0.001,0) -> 107757 | F12: =+ROUND(SUM([1]Plant!$C$10:$G$10)*0.001,0) -> 0 | G12: =SUM(E12:F12) -> 107757
A13: =1+A12 -> 2 | C13: CALLAWAY LIFE EXTENSION DEFERRAL | E13: =+ROUND([1]Plant!$B$11*0.001,0) -> 2812 | F13: =+ROUND(SUM([1]Plant!$C$11:$G$11)*0.001,0) -> 0 | G13: =SUM(E13:F13) -> 2812
A14: 3 | C14: MISC INTANGIBLE PLANT | E14: =+ROUND([1]Plant!$B$12*0.001,0) -> 672827 | F14: =+ROUND(SUM([1]Plant!$C$12:$G$12)*0.001,0)+1 -> -24417 | G14: =SUM(E14:F14) -> 648410
A15: =1+A14 -> 4 | C15: TOTAL INTANGIBLE PLANT | E15: =SUM(E12:E14) -> 783396 | F15: =SUM(F12:F14) -> -24417 | G15: =SUM(G12:G14) -> 758979
C17: PRODUCTION PLANT
A18: =1+A15 -> 5 | C18: NUCLEAR | E18: =+ROUND([1]Plant!$B$17*0.001,0) -> 3580681 | F18: =+ROUND(SUM([1]Plant!$C$17:$G$17)*0.001,0) -> -101675 | G18: =SUM(E18:F18) -> 3479006
A19: =1+A18 -> 6 | C19: CALLAWAY POST OPERATIONAL | E19: =+ROUND([1]Plant!$B$18*0.001,0) -> 116731 | F19: =+ROUND(SUM([1]Plant!$C$18:$G$18)*0.001,0) -> 0 | G19: 116731
A20: =1+A19 -> 7 | C20: STEAM | E20: =+ROUND(([1]Plant!$B$19+[1]Plant!$B$20)*0.001,0) -> 4470710 | F20: =+ROUND(SUM([1]Plant!$C$19:$G$20)*0.001,0) -> -118353 | G20: 4352357
A21: =1+A20 -> 8 | C21: HYDRAULIC | E21: =+ROUND([1]Plant!$B$21*0.001,0) -> 639398 | F21: =+ROUND(SUM([1]Plant!$C$21:$G$21)*0.001,0) -> 0 | G21: 639398
A22: =1+A21 -> 9 | C22: WIND | E22: =+ROUND([1]Plant!$B$22*0.001,0) -> 1220555 | F22: =+ROUND(SUM([1]Plant!$C$22:$G$22)*0.001,0) -> -52681 | G22: 1167874
A23: 10 | C23: OTHER | E23: =+ROUND([1]Plant!$B$23*0.001,0) -> 1306913 | F23: =+ROUND(SUM([1]Plant!$C$23:$G$23)*0.001,0) -> -932 | G23: 1305981
A24: 11 | C24: TOTAL PRODUCTION PLANT | E24: =SUM(E18:E23) -> 11334988 | F24: =SUM(F18:F23) -> -273641 | G24: =SUM(G18:G23) -> 11061347
A26: =1+A24 -> 12 | C26: TRANSMISSION PLANT | E26: =+ROUND([1]Plant!$B$26*0.001,0) -> 1883781 | F26: =+ROUND(SUM([1]Plant!$C$26:$G$26)*0.001,0) -> 0 | G26: =SUM(E26:F26) -> 1883781
A28: =1+A26 -> 13 | C28: DISTRIBUTION PLANT | E28: =+ROUND([1]Plant!$B$28*0.001,0)+1 -> 7993433 | F28: =+ROUND(SUM([1]Plant!$C$28:$G$28)*0.001,0) -> 0 | G28: =SUM(E28:F28) -> 7993433
A30: =1+A28 -> 14 | C30: GENERAL PLANT | E30: =+ROUND([1]Plant!$B$30*0.001,0) -> 1105975 | F30: =+ROUND(SUM([1]Plant!$C$30:$G$30)*0.001,0) -> -27093 | G30: =SUM(E30:F30) -> 1078882
A32: =1+A30 -> 15 | C32: INCENTIVE COMPENSATION CAPITALIZED | E32: =+ROUND([1]Plant!$B32*0.001,0) -> 0 | F32: =+ROUND(SUM([1]Plant!$C$32:$G$32)*0.001,0) -> -59862 | G32: =SUM(E32:F32) -> -59862
A34: =1+A32 -> 16 | C34: TOTAL PLANT IN SERVICE | E34: =E15+SUM(E24:E32) -> 23101573 | F34: =F15+SUM(F24:F32) -> -385013 | G34: =G15+SUM(G24:G32) -> 22716560
C38: PRO FORMA ADJUSTMENTS
A39: =1+A34 -> 17 | B39: -1 | C39: Eliminate Plant balances related to FAS 143 Asset Retirement Obligation and ASC 842 Leases
A40: =1+A39 -> 18 | D40: NUCLEAR | F40: =+ROUND([1]Plant!$C$17*0.001,0) -> -101675
A41: =1+A40 -> 19 | D41: STEAM | F41: =+ROUND([1]Plant!$C$19*0.001,0) -> -118353
A42: =1+A41 -> 20 | D42: WIND | F42: =+ROUND([1]Plant!$C$22*0.001,0) -> -52681
A43: 21 | D43: DISTRIBUTION | F43: =+ROUND([1]Plant!$C$28*0.001,0) -> 0
A44: 22 | D44: OTHER | F44: =+ROUND([1]Plant!$C$23*0.001,0) -> -932
A45: 23 | D45: GENERAL | F45: =+ROUND([1]Plant!$C$30*0.001,0) -> -3682
A46: 24 | D46: TOTAL | G46: =SUM(F40:F45) -> -277323
A48: =1+A46 -> 25 | B48: -2 | C48: Eliminate portions of plant in service for multi-use intangible and general assets which are applicable to gas operations. For convenience, such assets are recorded as electric plant but are commonly used for both electric and gas.
A49: =1+A48 -> 26
A50: =1+A49 -> 27
A51: =1+A50 -> 28 | D51: GENERAL | G51: =+ROUND([1]Plant!$F$34*0.001,0) -> -47813
A53: =1+A51 -> 29 | B53: -3 | C53: Reduce Plant-in-Service for specified incentive compensation capitalized.
A54: =1+A53 -> 30 | D54: GENERAL | G54: =+ROUND([1]Plant!$G$34*0.001,0) -> -59877
A56: =1+A54 -> 31 | D56: TOTAL PRO FORMA ADJUSTMENTS | G56: =SUM(G40:G54) -> -385013

Sheet SCHEDULE MJL-TUR2
A1: AMEREN MISSOURI
A2: TOTAL ELECTRIC RESERVES FOR DEPRECIATION AND AMORTIZATION
A3: =+'SCHEDULE MJL-TUR1'!A3:G3 -> BY FUNCTIONAL CLASSIFICATION FOR THE TWELVE MONTHS ENDED DECEMBER 31, 2022
A4: ($000)
E7: TOTALS | G7: PRO FORMA
E8: PER | F8: PRO FORMA | G8: ELECTRIC
A9: LINE | C9: FUNCTIONAL CLASSIFICATION | E9: BOOKS | F9: ADJUSTMENTS | G9: TOTALS
C10: (A) | E10: (B) | F10: (C) | G10: (D)
C11: INTANGIBLE PLANT
A12: 1 | C12: FRANCHISES | E12: =+ROUND([1]Reserve!$C$10*0.001,0) -> 34738 | F12: =+ROUND(SUM([1]Reserve!$D$10:$J$10)*0.001,0) -> 0 | G12: =E12+F12 -> 34738
A13: =1+A12 -> 2 | C13: CALLAWAY LIFE EXTENSION DEFERRAL | E13: =+ROUND([1]Reserve!$C$11*0.001,0) -> 547 | F13: =+ROUND(SUM([1]Reserve!$D$11:$J$11)*0.001,0) -> 0 | G13: =E13+F13 -> 547
A14: 3 | C14: MISC INTANGIBLE PLANT | E14: =+ROUND([1]Reserve!$C$12*0.001,0) -> 351099 | F14: =+ROUND(SUM([1]Reserve!$D$12:$J$12)*0.001,0) -> -12127 | G14: =E14+F14 -> 338972
A15: =1+A14 -> 4 | C15: TOTAL INTANGIBLE PLANT | E15: =SUM(E12:E14) -> 386384 | F15: =SUM(F12:F14) -> -12127 | G15: =E15+F15 -> 374257
C17: PRODUCTION PLANT
A18: =1+A15 -> 5 | C18: NUCLEAR | E18: =+ROUND([1]Reserve!$C$17*0.001,0)-1 -> 1832363 | F18: =+ROUND(SUM([1]Reserve!$D$17:$J$17)*0.001,0) -> 3226 | G18: 1835589
A19: =1+A18 -> 6 | C19: CALLAWAY POST OPERATIONAL | E19: =+ROUND([1]Reserve!$C$18*0.001,0) -> 109971 | F19: =+ROUND(SUM([1]Reserve!$D$18:$J$18)*0.001,0) -> 0 | G19: =E19+F19 -> 109971
A20: =1+A19 -> 7 | C20: STEAM | E20: =+ROUND((SUM([1]Reserve!$C$19:$C$20))*0.001,0)-1 -> 1865367 | F20: =+ROUND(SUM([1]Reserve!$D$19:$J$20)*0.001,0)+1 -> -75270 | G20: 1790097
A21: =1+A20 -> 8 | C21: HYDRAULIC | E21: =+ROUND([1]Reserve!$C$21*0.001,0) -> 150107 | F21: =+ROUND(SUM([1]Reserve!$D$21:$J$21)*0.001,0) -> 0 | G21: 150107
A22: =1+A21 -> 9 | C22: WIND | E22: =+ROUND([1]Reserve!$C$22*0.001,0) -> 82954 | F22: =+ROUND(SUM([1]Reserve!$D$22:$J$22)*0.001,0) -> -3446 | G22: 79508
A23: 10 | C23: OTHER | E23: =+ROUND([1]Reserve!$C$23*0.001,0) -> 737036 | F23: =+ROUND(SUM([1]Reserve!$D$23:$J$23)*0.001,0) -> -22 | G23: 737014
A24: =1+A23 -> 11 | C24: TOTAL PRODUCTION PLANT | E24: =SUM(E18:E23) -> 4777798 | F24: =SUM(F18:F23) -> -75512 | G24: 4702286
A26: =1+A24 -> 12 | C26: TRANSMISSION PLANT | E26: =+ROUND([1]Reserve!$C$26*0.001,0) -> 459589 | F26: =+ROUND(SUM([1]Reserve!$D$26:$J$26)*0.001,0) -> 0 | G26: 459589
A28: =1+A26 -> 13 | C28: DISTRIBUTION PLANT | E28: =+ROUND([1]Reserve!$C$28*0.001,0) -> 3284134 | F28: =+ROUND(SUM([1]Reserve!$D$28:$J$28)*0.001,0) -> 0 | G28: 3284134
A30: =1+A28 -> 14 | C30: GENERAL PLANT | E30: =+ROUND([1]Reserve!$C$30*0.001,0) -> 287770 | F30: =+ROUND(SUM([1]Reserve!$D$30:$J$30)*0.001,0) -> -7551 | G30: 280219
A32: =1+A30 -> 15 | C32: INCENTIVE COMPENSATION CAPITALIZED | E32: =+ROUND([1]Reserve!$C$32*0.001,0) -> 0 | F32: =+ROUND(SUM([1]Reserve!$D$32:$J$32)*0.001,0) -> -15888 | G32: =E32+F32 -> -15888
A34: =1+A32 -> 16 | C34: TOTAL DEPRC. & AMORT RESERVE | E34: =E15+E24+E26+E28+E30+E32 -> 9195675 | F34: =F15+F24+F26+F28+F30+F32 -> -111078 | G34: =G15+G24+G26+G28+G30+G32 -> 9084597
C36: PRO FORMA ADJUSTMENTS
A37: =1+A34 -> 17 | B37: -1 | C37: Eliminate Reserve balances related to FAS 143 Asset Retirement Obligation and ASC 842 Leases
A38: =1+A37 -> 18 | D38: NUCLEAR | F38: =+ROUND([1]Reserve!$D$17*0.001,0) -> 3226
A39: =1+A38 -> 19 | D39: STEAM | F39: =+ROUND([1]Reserve!$D$19*0.001,0) -> -75271
A40: 20 | D40: WIND | F40: =+ROUND([1]Reserve!$D$22*0.001,0) -> -3446
A41: 22 | D41: DISTRIBUTION | F41: =+ROUND([1]Reserve!$D$28*0.001,0) -> 0
A42: 23 | D42: OTHER | F42: =+ROUND([1]Reserve!$D$23*0.001,0) -> -22
A43: 24 | D43: GENERAL | F43: =+ROUND([1]Reserve!$D$30*0.001,0) -> -1559
A44: =1+A43 -> 25 | D44: TOTAL | G44: =SUM(F38:F43) -> -77072
A46: =1+A44 -> 26 | B46: -2 | C46: Eliminate portions of plant in service for multi-use intangible and general assets which are applicable to gas operations. For convenience, such assets are recorded as electric plant but are commonly used for both electric and gas
A47: =1+A46 -> 27
A48: =1+A47 -> 28
A49: =1+A48 -> 29 | D49: GENERAL | G49: =+ROUND([1]Reserve!$I$34*0.001,0) -> -18110
A51: =1+A49 -> 30 | B51: -3 | C51: Reduce Reserve for specified incentive compensation capitalized.
A52: =1+A51 -> 31 | D52: GENERAL | G52: =+ROUND([1]Reserve!$J$34*0.001,0) -> -15896
A54: =1+A52 -> 32 | D54: TOTAL PRO FORMA ADJUSTMENTS | G54: =SUM(G37:G52) -> -111078

Sheet SCHEDULE MJL-TUR3
A1: AMEREN MISSOURI
A2: AVERAGE FUEL AND MATERIALS & SUPPLIES INVENTORIES
A3: FOR THE TWELVE MONTHS ENDED DECEMBER 31, 2022
A4: ($000)
D6: TOTALS | F6: PRO FORMA
D7: PER | E7: PRO FORMA | F7: ELECTRIC
A8: LINE | C8: DESCRIPTION | D8: BOOKS | E8: ADJUSTMENTS | F8: TOTALS
C9: (A) | D9: (B) | E9: (C) | F9: (D)
A11: 1 | C11: AVERAGE NUCLEAR FUEL | D11: =+ROUND('[1]Mat&Sup'!$D$10*0.001,0) -> 159756 | E11: 0 | F11: =D11+E11 -> 159756
C13: AVERAGE FOSSIL FUEL:
A14: =1+A11 -> 2 | C14: COAL | D14: =+ROUND('[1]Mat&Sup2'!$D$30*0.001,0) -> 83749 | E14: =+ROUND(SUM('[1]Mat&Sup2'!$D$37,'[1]Mat&Sup'!$B$58, '[1]Mat&Sup'!$D$21)*0.001,0)-1 -> 21060 | F14: =D14+E14 -> 104809
A15: =1+A14 -> 3 | C15: OIL | D15: =+ROUND('[1]Mat&Sup'!$D$12*0.001,0) -> 3813 | E15: 0 | F15: =D15+E15 -> 3813
A16: =1+A15 -> 4 | C16: STORED GAS FOR CTG'S | D16: =+ROUND('[1]Mat&Sup'!$D$13*0.001,0) -> 2099 | E16: 0 | F16: =D16+E16 -> 2099
A17: =1+A16 -> 5 | C17: TOTAL FOSSIL FUEL | D17: =SUM(D14:D16) -> 89661 | E17: =SUM(E14:E16) -> 21060 | F17: =D17+E17 -> 110721
A19: =1+A17 -> 6 | C19: EMISSION ALLOWANCES AND RECS | D19: =+ROUND('[1]Mat&Sup'!$D$17*0.001,0) -> 414 | E19: 0 | F19: =D19+E19 -> 414
A21: =1+A19 -> 7 | C21: GENERAL MATERIALS AND SUPPLIES | D21: =+ROUND('[1]Mat&Sup'!$C$19*0.001,0) -> 329414 | E21: =ROUND(SUM(-'[1]Mat&Sup'!$E$19)*0.001,0) -> -3360 | F21: =D21+E21 -> 326054
A23: =1+A21 -> 8 | C23: TOTAL | D23: =D11+D17+D19+D21 -> 579245 | E23: =E11+E17+E19+E21 -> 17700 | F23: =F11+F17+F19+F21 -> 596945
C26: PRO FORMA ADJUSTMENT
A27: =1+A23 -> 9 | B27: -1 | C27: Adjust Coal Supply to reflect applicable 13 month average inventory levels priced at the January 2023 coal prices for the Company's Labadie, Sioux, and Rush Island Energy Centers. | F27: =+ROUND(('[1]Mat&Sup2'!$D$37+'[1]Mat&Sup'!$B$58)*0.001,0) -> 24130
A28: =1+A27 -> 10
A30: =1+A28 -> 11 | B30: (2) | C30: Eliminate Meramec Energy Center coal inventory. Remaining materials and supplies inventory previously used to support the Meramec Energy Center has or will be transferred to and utilized at the Company's remaining steam energy centers. | F30: =+ROUND('[1]Mat&Sup'!$D$21*0.001,0) -> -3070
A31: =1+A30 -> 12
A32: =1+A31 -> 13
A34: =1+A32 -> 14 | B34: (3) | C34: Eliminate portions of average fuel and general materials and supplies which are applicable to gas
A35: =1+A34 -> 15 | C35: operations. | F35: =-ROUND('[1]Mat&Sup'!$E$19*0.001,0) -> -3360
A37: =1+A35 -> 16 | C37: TOTAL PRO FORMA ADJUSTMENTS | F37: =SUM(F27:F36) -> 17700

Sheet SCHEDULE MJL-TUR4
B1: AMEREN MISSOURI
B2: AVERAGE PREPAYMENTS
B3: =+'SCHEDULE MJL-TUR3'!A3 -> FOR THE TWELVE MONTHS ENDED DECEMBER 31, 2022
B4: ($000)
E6: TOTALS | G6: PRO FORMA
E7: PER | F7: PRO FORMA | G7: ELECTRIC
B8: LINE | D8: DESCRIPTION | E8: BOOKS(1) | F8: ADJUSTMENTS | G8: TOTALS
D9: (A) | E9: (B) | F9: (C) | G9: (D)
B11: 1 | D11: RENTS (3) | E11: =+ROUND([1]Prepay!$C$9*0.001,0) -> 8 | F11: =-ROUND([1]Prepay!$E$9*0.001,0) -> 0 | G11: =E11+F11 -> 8
B12: =1+B11 -> 2 | D12: INSURANCE - DIRECT (2) | E12: =+ROUND([1]Prepay!$C$10*0.001,0)+1 -> 11736 | F12: =-ROUND([1]Prepay!$E$10*0.001,0) -> -731 | G12: 11005
B13: =1+B12 -> 3 | D13: M/A COMM RADIO SYS SRVC AGREEMENT (3) | E13: =+ROUND([1]Prepay!$C$11*0.001,0) -> 0 | F13: =-ROUND([1]Prepay!$E$11*0.001,0) -> 0 | G13: 0
B14: 4 | D14: MEDICAL AND DENTAL VEBA (3) | E14: =+ROUND([1]Prepay!$C$12*0.001,0) -> 3249 | F14: =-ROUND([1]Prepay!$E$12*0.001,0) -> -76 | G14: 3173
B15: 5 | D15: MEDICAL AND DENTAL VEBA (3) | E15: =+ROUND([1]Prepay!$C$13*0.001,0) -> 38 | F15: =-ROUND([1]Prepay!$E$13*0.001,0) -> 0 | G15: 38
B16: =1+B15 -> 6 | D16: OPTIV GIGAMON (3) | E16: =+ROUND([1]Prepay!$C$14*0.001,0) -> 0 | F16: =-ROUND([1]Prepay!$E$14*0.001,0) -> 0 | G16: =E16+F16 -> 0
B17: =1+B16 -> 7 | D17: CRM SALESFORCE SUBSCRIPTION (3) | E17: =+ROUND([1]Prepay!$C$19*0.001,0) -> 0 | F17: =-ROUND([1]Prepay!$E$19*0.001,0) -> 0 | G17: =E17+F17 -> 0
B18: 8 | D18: AGA MEMBERSHIP DUES (2) | E18: =+ROUND([1]Prepay!$C$20*0.001,0) -> 22 | F18: =-ROUND([1]Prepay!$E$20*0.001,0) -> -22 | G18: =E18+F18 -> 0
B19: 9 | D19: KANSAS CITY POWER & LIGHT (2) | E19: =+ROUND([1]Prepay!$C$21*0.001,0) -> 0 | F19: =-ROUND([1]Prepay!$E$21*0.001,0) -> 0 | G19: =E19+F19 -> 0
B20: =1+B19 -> 10 | D20: PALO ALTO ENTERPRISE (3) | E20: =+ROUND([1]Prepay!$C$22*0.001,0) -> 125 | F20: =-ROUND([1]Prepay!$E$22*0.001,0) -> -3 | G20: 122
B21: 11 | D21: RCGA MEMBERSHIP DUES (2) | E21: =+ROUND([1]Prepay!$C$23*0.001,0) -> 99 | F21: =-ROUND([1]Prepay!$E$23*0.001,0) -> 0 | G21: 99
B22: 12 | D22: LOW INCOME WEATHERIZATION (2) | E22: =+ROUND([1]Prepay!$C$25*0.001,0) -> 247 | F22: =-ROUND([1]Prepay!$E$25*0.001,0) -> -71 | G22: =E22+F22 -> 176
B23: 13 | D23: NOKIA WARRANTY (3) | E23: =+ROUND([1]Prepay!$C$26*0.001,0) -> 640 | F23: =-ROUND([1]Prepay!$E$26*0.001,0) -> 0 | G23: =E23+F23 -> 640
B24: 14 | D24: DATA VAULT PROJECT MAINTENANCE (1) | E24: =+ROUND([1]Prepay!$C$27*0.001,0) -> 245 | F24: =-ROUND([1]Prepay!$E$27*0.001,0) -> -6 | G24: =E24+F24 -> 239
B25: 15 | D25: ARTECO (1) | E25: =+ROUND([1]Prepay!$C$28*0.001,0) -> 53 | F25: =-ROUND([1]Prepay!$E$28*0.001,0) -> -1 | G25: 52
B26: =1+B25 -> 16 | D26: TOTAL AVERAGE PREPAYMENTS | E26: =SUM(E11:E25) -> 16462 | F26: =SUM(F11:F25) -> -910 | G26: =SUM(G11:G25) -> 15552
B28: =1+B26 -> 17 | C28: -1 | D28: Reflects 13 month average
B29: =1+B28 -> 18 | C29: -2 | D29: Directly assigned to electric or gas.
B30: =1+B29 -> 19 | C30: -3 | D30: Allocated to gas based on operating expenses excluding fuel and purchased power.
C34: PRO FORMA ADJUSTMENT
B36: =1+B30 -> 20 | C36: -1 | D36: Eliminate portions of prepayments which are applicable to gas operations. Allocated between electric | G36: =+F26 -> -910
B37: =1+B36 -> 21 | D37: and gas operations based on operating expenses excluding purchased power, off-system sales and
B38: =1+B37 -> 22 | D38: purchased gas.

Sheet SCHEDULE MJL-TUR5
A1: AMEREN MISSOURI
A2: TOTAL ELECTRIC CASH WORKING CAPITAL
A3: =+'SCHEDULE MJL-TUR3'!A3 -> FOR THE TWELVE MONTHS ENDED DECEMBER 31, 2022
A4: ($000)
J6: CASH WORKING
E7: REVENUE | F7: EXPENSE | G7: NET | I7: TEST YEAR | J7: CAPITAL
A8: LINE | C8: DESCRIPTION | E8: LAG | F8: LEAD (1) | G8: LEAD/LAG | H8: FACTOR | I8: EXPENSE | J8: REQUIREMENT
C9: (A) | E9: (B) | F9: (C) | G9: (D) | H9: (E) | I9: (F) | J9: (G)
A11: 1 | C11: PAYROLL & WITHHOLDINGS | E11: =[1]CashWorkCap!$C$10 -> 37.02 | F11: =[1]CashWorkCap!$D$10 -> -10.9 | G11: =+E11+F11 -> 26.12 | H11: =ROUND(+G11/365,6) -> 0.071562 | I11: =+ROUND([1]CashWorkCap!$G$10*0.001,0) -> 347400 | J11: =ROUND(+H11*I11,0) -> 24861
A12: =1+A11 -> 2 | C12: PENSIONS AND BENEFITS | E12: =[1]CashWorkCap!$C$11 -> 37.02 | F12: =[1]CashWorkCap!$D$11 -> -15.7 | G12: =+E12+F12 -> 21.32 | H12: =ROUND(+G12/365,6) -> 0.058411 | I12: =+ROUND([1]CashWorkCap!$G$11*0.001,0) -> -119221 | J12: =ROUND(+H12*I12,0) -> -6964
A13: 3 | C13: OTHER EMPLOYEE BENEFITS | E13: =[1]CashWorkCap!$C$12 -> 37.02 | F13: =[1]CashWorkCap!$D$12 -> -17.65 | G13: =+E13+F13 -> 19.37 | H13: =ROUND(+G13/365,6) -> 0.053068 | I13: =+ROUND([1]CashWorkCap!$G$12*0.001,0) -> 51012 | J13: =ROUND(+H13*I13,0) -> 2707
A14: 4 | C14: FUEL
A15: 5 | C15: NUCLEAR | E15: =[1]CashWorkCap!$C$14 -> 37.02 | F15: =[1]CashWorkCap!$D$14 -> -15.21 | G15: =+E15+F15 -> 21.81 | H15: =ROUND(+G15/365,6) -> 0.059753 | I15: =+ROUND([1]CashWorkCap!$G$14*0.001,0) -> 70223 | J15: =ROUND(+H15*I15,0) -> 4196
A16: 6 | C16: COAL | E16: =[1]CashWorkCap!$C$15 -> 37.02 | F16: =[1]CashWorkCap!$D$15 -> -14.43 | G16: 22.59 | H16: 0.06189 | I16: =+ROUND([1]CashWorkCap!$G$15*0.001,0) -> 448771 | J16: =ROUND(+H16*I16,0) -> 27774
A17: =1+A16 -> 7 | C17: NATURAL GAS | E17: =[1]CashWorkCap!$C$16 -> 37.02 | F17: =[1]CashWorkCap!$D$16 -> -40.72 | G17: -3.7 | H17: -0.010137 | I17: =+ROUND([1]CashWorkCap!$G$16*0.001,0) -> 26954 | J17: -273
A18: 8 | C18: OIL | E18: =[1]CashWorkCap!$C$17 -> 37.02 | F18: =[1]CashWorkCap!$D$17 -> -14.69 | G18: =+E18+F18 -> 22.33 | H18: 0.061178 | I18: =+ROUND([1]CashWorkCap!$G$17*0.001,0) -> 0 | J18: =ROUND(+H18*I18,0) -> 0
A19: 9 | C19: PURCHASED POWER | E19: =[1]CashWorkCap!$C$18 -> 37.02 | F19: =[1]CashWorkCap!$D$18 -> -18.1 | G19: =+E19+F19 -> 18.92 | H19: 0.051836 | I19: =+ROUND([1]CashWorkCap!$G$18*0.001,0) -> 366318 | J19: =ROUND(+H19*I19,0) -> 18988
A20: 10 | C20: INCENTIVE COMPENSATION | E20: =[1]CashWorkCap!$C$19 -> 37.02 | F20: =[1]CashWorkCap!$D$19 -> -250.8 | G20: -213.78 | H20: -0.585699 | I20: =+ROUND([1]CashWorkCap!$G$19*0.001,0) -> 30230 | J20: -17706
A21: 11 | C21: UNCOLLECTIBLE ACCOUNTS | E21: =[1]CashWorkCap!$C$20 -> 37.02 | F21: =[1]CashWorkCap!$D$20 -> -37.02 | G21: 0 | H21: 0 | I21: =+ROUND([1]CashWorkCap!$G$20*0.001,0) -> 7958 | J21: 0
A22: 12 | C22: OTHER OPERATING EXPENSES | E22: =[1]CashWorkCap!$C$21 -> 37.02 | F22: =[1]CashWorkCap!$D$21 -> -42.25 | G22: -5.23 | H22: -0.014329 | I22: =+ROUND([1]CashWorkCap!$G$21*0.001,0) -> 497645 | J22: =ROUND(+H22*I22,0) -> -7131
A24: =1+A22 -> 13 | C24: TOTAL O&M EXPENSES | I24: =ROUND([1]CashWorkCap!$G$23*0.001,0) -> 1727290
A26: =1+A24 -> 14 | C26: TOTAL CASH WORKING CAPITAL REQUIREMENT | J26: =SUM(J11:J22) -> 46452
A28: =1+A26 -> 15 | C28: FICA - EMPLOYER'S PORTION | E28: =[1]CashWorkCap!$C$28 -> 37.02 | F28: =[1]CashWorkCap!$D$28 -> -9.38 | G28: =+E28+F28 -> 27.64 | H28: =ROUND(+G28/365,6) -> 0.075726 | I28: =+ROUND([1]CashWorkCap!$G$28*0.001,0) -> 21814 | J28: =ROUND(+H28*I28,0) -> 1652
A29: =1+A28 -> 16 | C29: ST. LOUIS PAYROLL EXPENSE TAXES | E29: =[1]CashWorkCap!$C$29 -> 37.02 | F29: =[1]CashWorkCap!$D$29 -> -9.38 | G29: =+E29+F29 -> 27.64 | H29: =ROUND(+G29/365,6) -> 0.075726 | I29: =+ROUND([1]CashWorkCap!$G$29*0.001,0) -> 327 | J29: =ROUND(+H29*I29,0) -> 25
A30: 17 | C30: FEDERAL UNEMPLOYMENT TAXES | E30: =[1]CashWorkCap!$C$30 -> 37.02 | F30: =[1]CashWorkCap!$D$30 -> -9.38 | G30: 27.64 | H30: =ROUND(+G30/365,6) -> 0.075726 | I30: =+ROUND([1]CashWorkCap!$G$30*0.001,0) -> 181 | J30: 14
A31: 18 | C31: STATE UNEMPLOYMENT TAXES | E31: =[1]CashWorkCap!$C$31 -> 37.02 | F31: =[1]CashWorkCap!$D$31 -> -9.38 | G31: 27.64 | H31: 0.075726 | I31: =+ROUND([1]CashWorkCap!$G$31*0.001,0) -> 22 | J31: 2
A32: 19 | C32: CORPORATE FRANCHISE TAXES | E32: =[1]CashWorkCap!$C$32 -> 37.02 | F32: =[1]CashWorkCap!$D$32 -> -233.19 | G32: -196.17 | H32: -0.537452 | I32: =+ROUND([1]CashWorkCap!$G$32*0.001,0) -> 113 | J32: -61
A33: 20 | C33: PROPERTY TAXES | E33: =[1]CashWorkCap!$C$33 -> 37.02 | F33: =[1]CashWorkCap!$D$33 -> -183 | G33: -145.98 | H33: -0.399945 | I33: =+ROUND([1]CashWorkCap!$G$33*0.001,0) -> 170510 | J33: -68195
A34: 21 | C34: DECOMMISSIONING FEES | E34: =[1]CashWorkCap!$C$34 -> 37.02 | F34: =[1]CashWorkCap!$D$34 -> -69.5 | G34: =+E34+F34 -> -32.48 | H34: =ROUND(+G34/365,6) -> -0.088986 | I34: =+ROUND([1]CashWorkCap!$G$34*0.001,0) -> 6759 | J34: -601
A35: 22 | C35: SALES TAXES | E35: =[1]CashWorkCap!$C$35 -> 37.02 | F35: =[1]CashWorkCap!$D$35 -> -9.31 | G35: 27.71 | H35: 0.075918 | I35: =+ROUND([1]CashWorkCap!$G$35*0.001,0) -> 80715 | J35: 6128
A36: =1+A35 -> 23 | C36: MO & IA USE TAXES | E36: =[1]CashWorkCap!$C$36 -> 37.02 | F36: =[1]CashWorkCap!$D$36 -> -76.25 | G36: -39.23 | H36: -0.107479 | I36: =+ROUND([1]CashWorkCap!$G$36*0.001,0) -> 4065 | J36: -437
A37: =1+A36 -> 24 | C37: IL USE TAXES | E37: =[1]CashWorkCap!$C$37 -> 37.02 | F37: =[1]CashWorkCap!$D$37 -> -35.78 | G37: =+E37+F37 -> 1.24 | H37: =ROUND(+G37/365,6) -> 0.003397 | I37: =+ROUND([1]CashWorkCap!$G$37*0.001,0) -> 38 | J37: =ROUND(+H37*I37,0) -> 0
A38: 25 | C38: FED EXCISE HEAVY USE TAX | E38: =[1]CashWorkCap!$C$38 -> 37.02 | F38: =[1]CashWorkCap!$D$38 -> 125.57 | G38: =+E38+F38 -> 162.59 | H38: =ROUND(+G38/365,6) -> 0.445452 | I38: =+ROUND([1]CashWorkCap!$G$38*0.001,0) -> 19 | J38: =ROUND(+H38*I38,0) -> 8
A39: =1+A38 -> 26 | C39: SELF PROCURED INS TAX | E39: =[1]CashWorkCap!$C$39 -> 37.02 | F39: =[1]CashWorkCap!$D$39 -> -241.5 | G39: -204.48 | H39: -0.560219 | I39: =+ROUND([1]CashWorkCap!$G$39*0.001,0) -> 31 | J39: -17
A40: 27 | C40: OHIO COMMERCIAL ACTIVITY TAX | E40: =[1]CashWorkCap!$C$40 -> 37.02 | F40: =[1]CashWorkCap!$D$40 -> 50 | G40: 87.02 | H40: 0.238411 | I40: =+ROUND([1]CashWorkCap!$G$40*0.001,0) -> 1 | J40: 0
A41: 28 | C41: GROSS RECEIPTS TAXES | E41: =[1]CashWorkCap!$C$41 -> 24.27 | F41: =[1]CashWorkCap!$D$41 -> -26.99 | G41: -2.72 | H41: -0.007452 | I41: =+ROUND([1]CashWorkCap!$G$41*0.001,0) -> 152545 | J41: -1137
A43: =1+A41 -> 29 | C43: TOTAL TAXES AND OTHER EXPENSES | I43: =SUM(I28:I41) -> 437140
A45: =1+A43 -> 30 | C45: NET CUSTOMER SUPPLIED FUNDS | J45: =SUM(J28:J41) -> -62619
A47: =1+A45 -> 31 | C47: NET CASH WORKING CAPITAL REQUIREMENT | J47: =J26+J45 -> -16167

Sheet SCHEDULE MJL-TUR6
A1: AMEREN MISSOURI
A2: TOTAL ELECTRIC FEDERAL AND STATE INCOME TAX AND CITY EARNINGS TAX CASH REQUIREMENTS
A3: AND INTEREST EXPENSE CASH REQUIREMENT
A4: ='SCHEDULE MJL-TUR5'!A3 -> FOR THE TWELVE MONTHS ENDED DECEMBER 31, 2022
A5: ($000)
J8: CASH WORKING
E9: REVENUE | F9: EXPENSE | G9: NET | I9: TEST YEAR | J9: CAPITAL
A10: LINE | C10: DESCRIPTION | E10: LAG | F10: LEAD (1) | G10: LEAD/LAG | H10: FACTOR | I10: EXPENSE | J10: REQUIREMENT
C11: (A) | E11: (B) | F11: (C) | G11: (D) | H11: (E) | I11: (F) | J11: (G)
A14: 1 | C14: FEDERAL INCOME TAX CASH REQUIREMENT | E14: =[1]CashWorkCap!$C$51 -> 37.02 | F14: =[1]CashWorkCap!$D$51 -> -38 | G14: =+E14+F14 -> -0.98 | H14: =ROUND(+G14/365,6) -> -0.002685 | I14: =+ROUND([1]CashWorkCap!$G$51*0.001,0) -> 68408 | J14: =ROUND(+H14*I14,0) -> -184
A16: =1+A14 -> 2 | C16: MO STATE INCOME TAX CASH REQUIREMENT | E16: =[1]CashWorkCap!$C$52 -> 37.02 | F16: =[1]CashWorkCap!$D$52 -> -38 | G16: =+E16+F16 -> -0.98 | H16: =ROUND(+G16/365,6) -> -0.002685 | I16: =+ROUND([1]CashWorkCap!$G$52*0.001,0) -> 23853 | J16: =ROUND(+H16*I16,0) -> -64
A18: =1+A16 -> 3 | C18: IN STATE INCOME TAX CASH REQUIREMENT | E18: =[1]CashWorkCap!$C$53 -> 37.02 | F18: =[1]CashWorkCap!$D$53 -> -14 | G18: =+E18+F18 -> 23.02 | H18: =ROUND(+G18/365,6) -> 0.063068 | I18: =+ROUND([1]CashWorkCap!$G$53*0.001,0) -> 0 | J18: =ROUND(+H18*I18,0) -> 0
A20: =1+A18 -> 4 | C20: IA STATE INCOME TAX CASH REQUIREMENT | E20: =[1]CashWorkCap!$C$54 -> 37.02 | F20: =[1]CashWorkCap!$D$54 -> 77 | G20: =+E20+F20 -> 114.02 | H20: =ROUND(+G20/365,6) -> 0.312384 | I20: =+ROUND([1]CashWorkCap!$G$54*0.001,0) -> 0 | J20: =ROUND(+H20*I20,0) -> 0
A22: =1+A20 -> 5 | C22: CITY EARNINGS TAX CASH REQUIREMENT | E22: =[1]CashWorkCap!$C$55 -> 37.02 | F22: =[1]CashWorkCap!$D$55 -> -274.5 | G22: =+E22+F22 -> -237.48 | H22: =ROUND(+G22/365,6) -> -0.65063 | I22: =+ROUND([1]CashWorkCap!$G$55*0.001,0) -> -16 | J22: =ROUND(+H22*I22,0) -> 10
A24: 6 | C24: INTEREST EXPENSE CASH REQUIREMENT | E24: =[1]CashWorkCap!$C$56 -> 37.02 | F24: =[1]CashWorkCap!$D$56 -> -91.37 | G24: =+E24+F24 -> -54.35 | H24: =ROUND(+G24/365,6) -> -0.148904 | I24: =+ROUND([1]CashWorkCap!$G$56*0.001,0) -> 215856 | J24: =ROUND(+H24*I24,0) -> -32142

Sheet SCHEDULE MJL-TUR7
A1: AMEREN MISSOURI
A2: TOTAL ELECTRIC AVERAGE CUSTOMER ADVANCES FOR CONSTRUCTION AND
A3: AVERAGE CUSTOMER DEPOSITS
A4: ='SCHEDULE MJL-TUR4'!B3 -> FOR THE TWELVE MONTHS ENDED DECEMBER 31, 2022
A5: ($000)
A8: LINE | C8: DESCRIPTION | E8: TOTAL ELECTRIC
C9: (A) | E9: (B)
A13: =1 -> 1 | C13: AVERAGE CUSTOMER ADVANCES FOR CONSTRUCTION | E13: =ROUND('[1]Rate Base'!$C$29*0.001,0) -> -432
A16: =1+A13 -> 2 | C16: AVERAGE CUSTOMER DEPOSITS | E16: =ROUND('[1]Rate Base'!$C$31*0.001,0) -> -23544

Sheet SCHEDULE MJL-TUR8
A1: AMEREN MISSOURI
A2: OTHER REGULATORY ASSETS
A3: AND REGULATORY LIABILITIES
A4: =+'SCHEDULE MJL-TUR9'!A3:H3 -> FOR THE TWELVE MONTHS ENDED DECEMBER 31, 2022
A5: ($000)
H9: TOTAL
A10: LINE | C10: DESCRIPTION | H10: ELECTRIC
C11: (A) | H11: (B)(1)
A15: =1 -> 1 | C15: PENSIONS | H15: =+ROUND(SUM('[1]Rate Base'!$C$33:$C$38)*0.001,0) -> -42158
A18: =1+A15 -> 2 | C18: OTHER POST-EMPLOYMENT BENEFITS | H18: =+ROUND(SUM('[1]Rate Base'!$C$39:$C$44)*0.001,0) -> -14223
A21: =1+A18 -> 3 | C21: PAYS REGULATORY ASSET | H21: =+ROUND('[1]Rate Base'!$C$47*0.001,0) -> 857
A24: =1+A21 -> 4 | C24: PISA REGULATORY ASSET | H24: =+ROUND('[1]Rate Base'!$C$51*0.001,0) -> 416214
A27: =1+A24 -> 5 | C27: MERAMEC RETIREMENT ASSET | H27: =+ROUND('[1]Rate Base'!$C$49*0.001,0) -> 50765
A30: =1+A27 -> 6 | C30: UNDER COLLECTED AMORTIZATIONS IN RATE BASE | H30: =+ROUND('[1]Rate Base'!$C$53*0.001,0) -> 161
A33: =1+A30 -> 7 | C33: PROPERTY TAX TRACKER | H33: =+ROUND('[1]Rate Base'!$C$55*0.001,0) -> 2244
A35: =1+A32 -> 1 | C35: (1) A positive balance is a Regulatory Asset and a negative balance is a
A36: =1+A35 -> 2 | C36: Regulatory Liability.

Sheet SCHEDULE MJL-TUR9
A1: AMEREN MISSOURI
A2: ACCUMULATED DEFERRED INCOME TAXES
A3: =+'SCHEDULE MJL-TUR3'!A3:G3 -> FOR THE TWELVE MONTHS ENDED DECEMBER 31, 2022
A4: ($000)
F6: TOTAL | H6: PRO FORMA
F7: ELECTRIC | G7: PRO FORMA | H7: ELECTRIC
A8: LINE | C8: DESCRIPTION | F8: PER BOOKS | G8: ADJUSTMENTS | H8: TOTAL
C9: (A) | F9: (B) | G9: (C) | H9: (D)
A11: 1 | C11: ACCOUNT 190 | F11: =ROUND([1]AccumDef!$D$69*0.001,0) -> 36591 | G11: =+H11-F11 -> 9939 | H11: =ROUND([1]AccumDef!$E$69*0.001,0) -> 46530
A13: 2 | C13: ACCOUNT 281 | F13: =ROUND([1]AccumDef!$D$75*0.001,0) -> -88067 | G13: =+H13-F13 -> 3513 | H13: =ROUND([1]AccumDef!$E$75*0.001,0) -> -84554
A15: 3 | C15: ACCOUNT 282 | F15: =ROUND([1]AccumDef!$D$140*0.001,0) -> -2768510 | G15: =+H15-F15 -> -57568 | H15: =ROUND([1]AccumDef!$E$140*0.001,0) -> -2826078
A17: 4 | C17: ACCOUNT 283 | F17: =ROUND([1]AccumDef!$D$184*0.001,0) -> -98060 | G17: =+H17-F17 -> -30938 | H17: =ROUND([1]AccumDef!$E$184*0.001,0) -> -128998
A19: 5 | C19: MERAMEC ADJUSTMENT | F19: 0 | G19: 0 | H19: =+F19+G19 -> 0
A21: 6 | C21: TOTAL ACCUMULATED DEFERRED INCOME TAXES | F21: =SUM(F11:F20) -> -2918046 | G21: =SUM(G11:G20) -> -75054 | H21: =SUM(H11:H20) -> -2993100
C24: PRO FORMA ADJUSTMENT:
A25: 7 | C25: Changes in balances from March 31, 2022 to December 31, 2022, which is the end of the true-up period.

Sheet SCHEDULE MJL-TUR10
A1: AMEREN MISSOURI
A2: TOTAL ELECTRIC PER BOOK AND PRO FORMA OPERATING REVENUES
A3: ='SCHEDULE MJL-TUR5'!A3 -> FOR THE TWELVE MONTHS ENDED DECEMBER 31, 2022
A4: ($000)
F8: ADJUSTED
D9: TOTAL | E9: PRO FORMA | F9: TOTAL
A10: LINE | C10: DESCRIPTION | D10: ELECTRIC | E10: ADJUSTMENTS | F10: ELECTRIC
C11: (A) | D11: (B) | E11: (C) | F11: (D)
C13: OPERATING REVENUES
A14: 1 | C14: RETAIL REVENUES | D14: =+ROUND(([1]Revenues!$C$27)*0.001,0) -> 2913418 | E14: =SUM(D31:D44) -> -194924 | F14: =D14+E14 -> 2718494
A15: =1+A14 -> 2 | C15: PROVISION FOR RATE REFUNDS | D15: =+ROUND(([1]Revenues!$C$29)*0.001,0) -> -23766 | E15: =+E47 -> 23766 | F15: =D15+E15 -> 0
A16: =1+A15 -> 3 | C16: OTHER ELECTRIC REVENUES | D16: =+ROUND(([1]Revenues!$C$45)*0.001,0) -> 177165 | E16: =E58 -> -86905 | F16: =D16+E16 -> 90260
A18: =1+A16 -> 4 | C18: TOTAL REVENUES | D18: =SUM(D13:D16) -> 3066817 | E18: =SUM(E13:E16) -> -258063 | F18: =SUM(F13:F16) -> 2808754
A20: =1+A18 -> 5 | C20: DISPOSITION OF ALLOWANCES | D20: =+ROUND(([1]Revenues!$C$47)*0.001,0) -> 0 | E20: =+E60 -> 0 | F20: =D20+E20 -> 0
A22: =1+A20 -> 6 | C22: OFF-SYSTEM SALES - ENERGY | D22: =+ROUND(([1]Revenues!$C$49)*0.001,0) -> 223764 | E22: =+E62 -> 107874 | F22: =D22+E22 -> 331638
A24: =1+A22 -> 7 | C24: OFF-SYSTEM SALES-CAPACITY REVENUE | D24: =+ROUND(([1]Revenues!$C$51)*0.001,0) -> 18324 | E24: =+E64 -> 211163 | F24: =D24+E24 -> 229487
A26: =A24+1 -> 8 | C26: TOTAL REVENUES PER BOOKS | D26: =SUM(D18:D24) -> 3308905 | E26: =SUM(E18:E24) -> 60974 | F26: =SUM(F18:F24) -> 3369879
C30: PRO FORMA ADJUSTMENTS:
A31: =1+A26 -> 9 | B31: -1 | C31: REMOVE ADD ON REVENUE TAX | D31: =ROUND([1]Revenues!$E$12*0.001,0) -> -143699
A32: =1+A31 -> 10 | B32: -2 | C32: ELIMINATE REVENUE FROM MEEIA RECOVERIES | D32: =ROUND(([1]Revenues!$E$11+[1]Revenues!$E$16)*0.001,0) -> -127568
A33: 11 | B33: -3 | C33: ELIMINATE REVENUE FROM FAC RECOVERIES | D33: =ROUND([1]Revenues!$E$14*0.001,0) -> -88220
A34: 12 | B34: -4 | C34: ELIMINATE UNBILLED REVENUE | D34: =ROUND([1]Revenues!$E$13*0.001,0) -> -22430
A35: 13 | B35: -4 | C35: ADJUST FOR UPDATE PERIOD | D35: =ROUND([1]Revenues!$E$17*0.001,0) -> 71812
A36: 14 | B36: -5 | C36: ANNUALIZE RATE CHANGE | D36: =ROUND([1]Revenues!$E$19*0.001,0) -> 175009
A37: 15 | B37: -6 | C37: ADJUST FOR EDI | D37: =ROUND([1]Revenues!$E$20*0.001,0) -> -724
A38: 16 | B38: -7 | C38: ADJUST FOR COMMUNITY SOLAR | D38: =ROUND([1]Revenues!$E$21*0.001,0) -> 456
A39: 17 | B39: -8 | C39: ADJUST FOR GROWTH | D39: =ROUND([1]Revenues!$E$22*0.001,0) -> 2128
A40: 18 | B40: -9 | C40: ADJUST FOR RESRAM REVENUES | D40: =ROUND([1]Revenues!$E$15*0.001,0) -> -1531
A41: 19 | B41: -10 | C41: ADJUST FOR ENERGY EFFICIENCY AND SOLAR ANNUALIZATION | D41: =ROUND([1]Revenues!$E$23*0.001,0) -> -22002
A42: 20 | B42: -11 | C42: DAYS ADJUSTMENT | D42: =ROUND([1]Revenues!$E$24*0.001,0) -> -2960
A43: 21 | B43: -12 | C43: ADJUST FOR BILLING UNITS | D43: =ROUND([1]Revenues!$E$25*0.001,0)-1 -> 2641
A44: 22 | B44: -13 | C44: ADJUST FOR NORMAL WEATHER | D44: =ROUND([1]Revenues!$E$26*0.001,0) -> -37836
A45: 23 | C45: TOTAL | E45: =SUM(D31:D44) -> -194924
A47: =1+A45 -> 24 | B47: -14 | C47: ELIMINATE PROVISION FOR RATE REFUNDS | E47: =ROUND([1]Revenues!$E$29*0.001,0) -> 23766
A49: =1+A47 -> 25 | B49: -15 | C49: ADJUST TRANSMISSION REVENUES | D49: =ROUND((SUM([1]Revenues!$E$32:$E$34))*0.001,0) -> -3353
A50: =1+A49 -> 26 | B50: -16 | C50: MISC REVENUE FROM COAL REFINEMENT | D50: =ROUND([1]Revenues!$E$38*0.001,0) -> -311
A51: 27 | B51: -17 | C51: ADJUST LATE FEE REVENUE | D51: =ROUND([1]Revenues!$E$36*0.001,0) -> -1734
A52: 27 | B52: -18 | C52: REMOVE CALLAWAY INSURANCE RECOVERIES | D52: =ROUND([1]Revenues!$E$37*0.001,0) -> -87950
A53: 28 | B53: -19 | C53: ADJUST LEASE REVENUE FROM RENT | D53: =ROUND([1]Revenues!$E$39*0.001,0) -> 8512
A54: 29 | B54: -20 | C54: MISC LEASE REVENUE FROM SOFTWARE LEASES | D54: =ROUND([1]Revenues!$E$41*0.001,0) -> -705
A55: 30 | B55: -21 | C55: ADJUST BOA LEASE REVENUE | D55: =ROUND([1]Revenues!$E$40*0.001,0) -> -375
A56: 31 | B56: -22 | C56: ADJUST FOR PAYS REVENUES | D56: =ROUND([1]Revenues!$E$42*0.001,0) -> 38
A57: 32 | B57: -23 | C57: REMOVE ADD ON REVENUE TAX | D57: =ROUND([1]Revenues!$E$43*0.001,0) -> -1027
A58: =1+A57 -> 33 | C58: TOTAL | E58: =SUM(D49:D57) -> -86905
A60: =1+A58 -> 34 | B60: -24 | C60: ELIMINATE DISPOSITION OF ALLOWANCES | E60: =ROUND([1]Revenues!$E$47*0.001,0) -> 0
A62: =1+A60 -> 35 | B62: -25 | C62: ADJUST OFF-SYSTEM SALES - ENERGY | E62: =ROUND([1]Revenues!$E$49*0.001,0) -> 107874
A64: =1+A62 -> 36 | B64: -26 | C64: ADJUST OFF-SYSTEM SALES - CAPACITY | E64: =ROUND([1]Revenues!$E$51*0.001,0)+1 -> 211163
A66: =1+A64 -> 37 | C66: TOTAL PRO FORMA ADJUSTMENTS | E66: =SUM(E31:E64) -> 60974

Sheet SCHEDULE MJL-TUR11-1
F1: #1 | G1: #2 | H1: #3 | I1: #4 | J1: #5 | K1: #6 | L1: #7 | M1: #8 | N1: #9 | S1: #10 | T1: #11 | U1: #12 | V1: #13 | W1: #14 | X1: #15 | Y1: #16 | Z1: #17 | AA1: #18 | AF1: #19 | AG1: #20 | AH1: #21 | AI1: #22 | AJ1: #23 | AK1: #24 | AL1: #25 | AM1: #26 | AN1: #27 | AS1: #28 | AT1: #29 | AU1: #30 | AV1: #31 | AW1: #32 | AX1: #33 | AY1: #34 | AZ1: #35 | BA1: #36 | BF1: #37 | BG1: #38 | BH1: #39 | BI1: #40 | BJ1: #41 | BK1: #42 | BL1: #43 | BM1: #44 | BN1: #45 | BS1: #46 | BT1: #47 | BU1: #48 | BV1: #49 | BW1: #50 | BX1: #51 | BY1: #52 | BZ1: #53 | CA1: #54
C2: Title included in Page header for printing purposes. | H2: LONG TERM | K2: ADJUST | X2: REMOVE | AK2: ENERGY EFFICIENCY | AS2: PRO FORMA | AU2: REBASE | AV2: AMORTIZE | AZ2: BOARD OF | BF2: INCREASE
E3: TOTAL | G3: INCENTIVE | H3: INCENTIVE | I3: STAFFING | J3: CHANGE IN FUEL | K3: PURCHASED | L3: MARK TWAIN | M3: REMOVE | N3: COAL | S3: STEAM | T3: RUSH IISLAND | U3: MERAMEC | V3: ELIMINATE | W3: CALLAWAY | X3: CALLAWAY | Y3: CALLAWAY | Z3: OTHER | AA3: REBASE | AF3: ELIMINATE | AG3: ANNUALIZE SOLAR | AH3: DEPRECIATION | AI3: NORMALIZE | AJ3: ADD INTEREST | AK3: PROGRAM COST | AL3: PAYS | AM3: ANNUALIZE | AS3: MEDICAL & | AT3: NON-QUALIFIED | AU3: PENSION | AV3: PENSION | AW3: RESRAM | AX3: NET | AZ3: DIRECTORS | BA3: NORMALIZE | BF3: BUILDING | BG3: RECENTLY | BH3: SOFTWARE | BI3: ALLOCATION | BJ3: AMR | BK3: CUSTOMER | BL3: CLEAN ENERGY | BM3: ELECTRIC | BN3: CUSTOMER | BS3: CYBERSECURITY | BT3: SOFTWARE | BW3: EV | BX3: ANNUALIZE | BY3: CALL | CA3: LOW LEVEL | CC3: TOTAL | CD3: PRO FORMA
E4: PER | F4: LABOR | G4: COMPENSATION | H4: COMPENSATION | I4: ANNUALIZATION | J4: EXPENSE FOR | K4: POWER FOR | L4: TRANSMISSION | M4: MEMBERSHIP | N4: REFINEMENT | S4: PLANT | T4: MAINTENANCE | U4: MAINTENANCE | V4: FAC | W4: REFUELING | X4: REFUELING | Y4: UNPLANNED | Z4: RES | AA4: RES | AF4: SOLAR | AG4: REBATE | AH4: TO O&M | AI4: STORM | AJ4: ON CUSTOMER | AK4: RECOVERY | AL4: PROGRAM | AM4: BAD DEBT | AN4: INSURANCE | AS4: BENEFIT | AT4: PENSION | AU4: AND OPEB | AV4: AND OPEB | AW4: BASE | AX4: RATE CASE | AY4: MPSC | AZ4: EXPENSE | BA4: STUDY | BF4: RENT FROM | BG4: EXITED | BH4: RENTAL | BI4: FACTOR | BJ4: COST | BK4: AFFORDABILITY | BL4: TRANSITION | BM4: COSTS | BN4: CONVENIENCE | BS4: COSTS | BT4: MAINTENANCE | BU4: NRC FEE | BV4: SALES AND USE | BW4: INCENTIVE | BX4: VEG MGMT & | BY4: CENTER | BZ4: ADVERTISING | CA4: RADIOACTIVE | CC4: PRO FORMA | CD4: ELECTRIC
C5: LINE | D5: FUNCTIONAL CLASSIFICATION | E5: BOOKS | F5: ADJUSTMENT | G5: ADJUSTMENT | H5: ADJUSTMENT | I5: SALARY & BENEFITS | J5: TU CHANGE | K5: TU CHANGE | L5: ADJUSTMENT | M5: DUES | N5: ADJUSTMENT | Q5: LINE | R5: FUNCTIONAL CLASSIFICATION | S5: MAINTENANCE | T5: ADJUSTMENT | U5: ADJUSTMENT | V5: RECOVERY | W5: EXPENSES | X5: AMORTIZATION | Y5: OUTAGE | Z5: ADJUSTMENT | AA5: EXPENSE | AE5: FUNCTIONAL CLASSIFICATION | AF5: AMOUNTS | AG5: AMORTIZATION | AH5: ADJUSTMENT | AI5: COSTS | AJ5: DEPOSITS | AK5: ADJUSTMENT | AL5: AMORTIZATION | AM5: EXPENSE | AN5: ADJUST. | AQ5: LINE | AR5: FUNCTIONAL CLASSIFICATION | AS5: ADJUST. | AT5: ADJUST. | AU5: TRACKER | AV5: TRACKER | AW5: EXPENSE | AX5: EXPENSES | AY5: ASSESSMENT | AZ5: ADJUSTMENT | BA5: EXPENSE | BD5: LINE | BE5: FUNCTIONAL CLASSIFICATION | BF5: AMS | BG5: FACILITIES | BH5: EXPENSE | BI5: ADJUSTMENT | BJ5: SAVINGS | BK5: ADJUSTMENT | BL5: ADJUSTMENT | BM5: ALLOC TO GAS | BN5: FEES | BQ5: LINE | BR5: FUNCTIONAL CLASSIFICATION | BS5: ADJUSTMENT | BT5: ADJUSTMENT | BU5: ANNUALIZATION | BV5: TAX AUDIT | BW5: ADJUSTMENT | BX5: INSPECTIONS | BY5: COSTS | BZ5: COSTS | CA5: WASTE COSTS | CC5: ADJUSTMENT | CD5: TOTALS
D6: (A) | E6: (B) | F6: (C) | G6: (D) | H6: (E) | I6: (F) | J6: (G) | K6: (H) | L6: (I) | M6: (J) | N6: (K) | R6: (A) | S6: (B) | T6: (C) | U6: (D) | V6: (E) | W6: (F) | X6: (G) | Y6: (H) | Z6: (I) | AA6: (J) | AE6: (A) | AF6: (B) | AG6: (C) | AH6: (D) | AI6: (E) | AJ6: (F) | AK6: (G) | AL6: (H) | AM6: (I) | AN6: (J) | AR6: (A) | AS6: (B) | AT6: (C) | AU6: (D) | AV6: (E ) | AW6: (F) | AX6: (G) | AY6: (H) | AZ6: (I) | BA6: (J) | BE6: (A) | BF6: (B) | BG6: (C) | BH6: (D) | BI6: (E ) | BJ6: (F) | BK6: (G) | BL6: (H) | BM6: (I) | BN6: (J) | BR6: (A) | BS6: (B) | BT6: (C) | BU6: (D) | BV6: (E) | BW6: (F) | BX6: (G) | BY6: (H) | BZ6: (I) | CA6: (J) | CC6: (K) | CD6: (L)
D7: PRODUCTION: | R7: PRODUCTION: | AE7: PRODUCTION: | AR7: PRODUCTION: | BE7: PRODUCTION: | BR7: PRODUCTION:
D8: INCREMENTAL COSTS: | R8: INCREMENTAL COSTS: | AE8: INCREMENTAL COSTS: | AR8: INCREMENTAL COSTS: | BE8: INCREMENTAL COSTS: | BR8: INCREMENTAL COSTS:
C9: 1 | D9: LABOR | E9: =+ROUND('[1]O&M'!$B$11*0.001,0) -> 197565 | F9: =+ROUND('[1]O&M'!$C$11*0.001,0) -> 11838 | G9: =+ROUND('[1]O&M'!$D$11*0.001,0) -> -1202 | H9: =+ROUND('[1]O&M'!$E$11*0.001,0) -> -1641 | I9: 0 | J9: 0 | K9: 0 | L9: 0 | M9: 0 | N9: 0 | Q9: 1 | R9: LABOR | T9: 0 | U9: 0 | V9: 0 | W9: =+ROUND('[1]O&M'!$P$11*0.001,0) -> 5340 | X9: 0 | Y9: 0 | Z9: 0 | AA9: 0 | AD9: 1 | AE9: LABOR | AF9: 0 | AG9: 0 | AH9: 0 | AI9: 0 | AJ9: 0 | AK9: 0 | AL9: 0 | AM9: 0 | AN9: 0 | AQ9: 1 | AR9: LABOR | AS9: 0 | AT9: 0 | AU9: 0 | AV9: 0 | AW9: 0 | AX9: 0 | AY9: 0 | AZ9: 0 | BA9: 0 | BD9: 1 | BE9: LABOR | BF9: 0 | BG9: 0 | BH9: 0 | BI9: 0 | BJ9: 0 | BK9: 0 | BL9: 0 | BM9: 0 | BN9: 0 | BQ9: 1 | BR9: LABOR | BS9: 0 | BT9: 0 | BU9: 0 | BV9: 0 | BW9: 0 | BX9: 0 | BY9: 0 | BZ9: 0 | CA9: 0 | CC9: =SUM(F9:N9,S9:AA9,AF9:AN9,AS9:BA9,BF9:BN9,BS9:CB9) -> 14335 | CD9: =E9+CC9 -> 211900
D10: FUEL (EXCL. W/H CR.) | R10: FUEL (EXCL. W/H CR.) | AE10: FUEL (EXCL. W/H CR.) | AR10: FUEL (EXCL. W/H CR.) | BE10: FUEL (EXCL. W/H CR.) | BR10: FUEL (EXCL. W/H CR.)
C11: =1+C9 -> 2 | D11: BASE LOAD | E11: =+ROUND('[1]O&M'!$B$13*0.001,0) -> 415685 | F11: 0 | G11: 0 | H11: 0 | I11: 0 | J11: =+ROUND('[1]O&M'!$G$13*0.001,0) -> -3754 | K11: 0 | L11: 0 | M11: 0 | N11: 0 | Q11: =1+Q9 -> 2 | R11: BASE LOAD | T11: 0 | U11: 0 | V11: 0 | W11: 0 | X11: 0 | Y11: 0 | Z11: 0 | AA11: 0 | AD11: =1+AD9 -> 2 | AE11: BASE LOAD | AF11: 0 | AG11: 0 | AH11: 0 | AI11: 0 | AJ11: 0 | AK11: 0 | AL11: 0 | AM11: 0 | AN11: 0 | AQ11: =1+AQ9 -> 2 | AR11: BASE LOAD | AS11: 0 | AT11: 0 | AU11: 0 | AV11: 0 | AW11: 0 | AX11: 0 | AY11: 0 | AZ11: 0 | BA11: 0 | BD11: =1+BD9 -> 2 | BE11: BASE LOAD | BF11: 0 | BG11: 0 | BH11: 0 | BI11: 0 | BJ11: 0 | BK11: 0 | BL11: 0 | BM11: 0 | BN11: 0 | BQ11: =1+BQ9 -> 2 | BR11: BASE LOAD | BS11: 0 | BT11: 0 | BU11: 0 | BV11: 0 | BW11: 0 | BX11: 0 | BY11: 0 | BZ11: 0 | CA11: 0 | CC11: =SUM(F11:N11,S11:AA11,AF11:AN11,AS11:BA11,BF11:BN11,BS11:CB11) -> -3754 | CD11: =E11+CC11 -> 411931
C12: =1+C11 -> 3 | D12: INTERCHANGE | E12: =+ROUND('[1]O&M'!$B$14*0.001,0) -> 175916 | F12: 0 | G12: 0 | H12: 0 | I12: 0 | J12: =+ROUND('[1]O&M'!$G$14*0.001,0) -> -41291 | K12: 0 | L12: 0 | M12: 0 | N12: 0 | Q12: =1+Q11 -> 3 | R12: INTERCHANGE | T12: 0 | U12: 0 | V12: 0 | W12: 0 | X12: 0 | Y12: 0 | Z12: 0 | AA12: 0 | AD12: =1+AD11 -> 3 | AE12: INTERCHANGE | AF12: 0 | AG12: 0 | AH12: 0 | AI12: 0 | AJ12: 0 | AK12: 0 | AL12: 0 | AM12: 0 | AN12: 0 | AQ12: =1+AQ11 -> 3 | AR12: INTERCHANGE | AS12: 0 | AT12: 0 | AU12: 0 | AV12: 0 | AW12: 0 | AX12: 0 | AY12: 0 | AZ12: 0 | BA12: 0 | BD12: =1+BD11 -> 3 | BE12: INTERCHANGE | BF12: 0 | BG12: 0 | BH12: 0 | BI12: 0 | BJ12: 0 | BK12: 0 | BL12: 0 | BM12: 0 | BN12: 0 | BQ12: =1+BQ11 -> 3 | BR12: INTERCHANGE | BS12: 0 | BT12: 0 | BU12: 0 | BV12: 0 | BW12: 0 | BX12: 0 | BY12: 0 | BZ12: 0 | CA12: 0 | CC12: =SUM(F12:N12,S12:AA12,AF12:AN12,AS12:BA12,BF12:BN12,BS12:CB12) -> -41291 | CD12: =E12+CC12 -> 134625
C13: =1+C12 -> 4 | D13: FUEL ADDITIVES | E13: =+ROUND('[1]O&M'!$B$15*0.001,0) -> 6979 | F13: 0 | G13: 0 | H13: 0 | I13: 0 | J13: =+ROUND('[1]O&M'!$G$15*0.001,0) -> 537 | K13: 0 | L13: 0 | M13: 0 | N13: 0 | Q13: =1+Q12 -> 4 | R13: FUEL ADDITIVES | S13: 0 | T13: 0 | U13: 0 | V13: 0 | W13: 0 | X13: 0 | Y13: 0 | Z13: 0 | AA13: 0 | AD13: =1+AD12 -> 4 | AE13: FUEL ADDITIVES | AF13: 0 | AG13: 0 | AH13: 0 | AI13: 0 | AJ13: 0 | AK13: 0 | AL13: 0 | AM13: 0 | AN13: 0 | AQ13: =1+AQ12 -> 4 | AR13: FUEL ADDITIVES | AS13: 0 | AT13: 0 | AU13: 0 | AV13: 0 | AW13: 0 | AX13: 0 | AY13: 0 | AZ13: 0 | BA13: 0 | BD13: =1+BD12 -> 4 | BE13: FUEL ADDITIVES | BF13: 0 | BG13: 0 | BH13: 0 | BI13: 0 | BJ13: 0 | BK13: 0 | BL13: 0 | BM13: 0 | BN13: 0 | BQ13: =1+BQ12 -> 4 | BR13: FUEL ADDITIVES | BS13: 0 | BT13: 0 | BU13: 0 | BV13: 0 | BW13: 0 | BX13: 0 | BY13: 0 | BZ13: 0 | CA13: 0 | CC13: =SUM(F13:N13,S13:AA13,AF13:AN13,AS13:BA13,BF13:BN13,BS13:CB13) -> 537 | CD13: =E13+CC13 -> 7516
D14: PURCHASED POWER | R14: PURCHASED POWER | AE14: PURCHASED POWER | AR14: PURCHASED POWER | BE14: PURCHASED POWER | BR14: PURCHASED POWER
D15: ENERGY | R15: ENERGY | AE15: ENERGY | AR15: ENERGY | BE15: ENERGY | BR15: ENERGY
C16: =1+C13 -> 5 | D16: BASE LOAD | E16: =+ROUND('[1]O&M'!$B$18*0.001,0) -> 71903 | F16: 0 | G16: 0 | H16: 0 | I16: 0 | J16: =+ROUND('[1]O&M'!G18*0.001,0) -> 0 | K16: =+ROUND('[1]O&M'!$H$18*0.001,0) -> 76149 | L16: 0 | M16: 0 | N16: 0 | Q16: =1+Q13 -> 5 | R16: BASE LOAD | S16: 0 | T16: 0 | U16: 0 | V16: 0 | W16: 0 | X16: 0 | Y16: 0 | Z16: 0 | AA16: 0 | AD16: =1+AD13 -> 5 | AE16: BASE LOAD | AF16: 0 | AG16: 0 | AH16: 0 | AI16: 0 | AJ16: 0 | AK16: 0 | AL16: 0 | AM16: 0 | AN16: 0 | AQ16: =1+AQ13 -> 5 | AR16: BASE LOAD | AS16: 0 | AT16: 0 | AU16: 0 | AV16: 0 | AW16: 0 | AX16: 0 | AY16: 0 | AZ16: 0 | BA16: 0 | BD16: =1+BD13 -> 5 | BE16: BASE LOAD | BF16: 0 | BG16: 0 | BH16: 0 | BI16: 0 | BJ16: 0 | BK16: 0 | BL16: 0 | BM16: 0 | BN16: 0 | BQ16: =1+BQ13 -> 5 | BR16: BASE LOAD | BS16: 0 | BT16: 0 | BU16: 0 | BV16: 0 | BW16: 0 | BX16: 0 | BY16: 0 | BZ16: 0 | CA16: 0 | CC16: =SUM(F16:N16,S16:AA16,AF16:AN16,AS16:BA16,BF16:BN16,BS16:CB16) -> 76149 | CD16: =E16+CC16 -> 148052
C17: =1+C16 -> 6 | D17: INTERCHANGE | E17: =+ROUND('[1]O&M'!$B$19*0.001,0) -> 5992 | F17: 0 | G17: 0 | H17: 0 | I17: 0 | J17: =+ROUND('[1]O&M'!G19*0.001,0) -> 0 | K17: =+ROUND('[1]O&M'!$H$19*0.001,0) -> -5992 | L17: 0 | M17: 0 | N17: 0 | Q17: =1+Q16 -> 6 | R17: INTERCHANGE | S17: 0 | T17: 0 | U17: 0 | V17: 0 | W17: 0 | X17: 0 | Y17: 0 | Z17: 0 | AA17: 0 | AD17: =1+AD16 -> 6 | AE17: INTERCHANGE | AF17: 0 | AG17: 0 | AH17: 0 | AI17: 0 | AJ17: 0 | AK17: 0 | AL17: 0 | AM17: 0 | AN17: 0 | AQ17: =1+AQ16 -> 6 | AR17: INTERCHANGE | AS17: 0 | AT17: 0 | AU17: 0 | AV17: 0 | AW17: 0 | AX17: 0 | AY17: 0 | AZ17: 0 | BA17: 0 | BD17: =1+BD16 -> 6 | BE17: INTERCHANGE | BF17: 0 | BG17: 0 | BH17: 0 | BI17: 0 | BJ17: 0 | BK17: 0 | BL17: 0 | BM17: 0 | BN17: 0 | BQ17: =1+BQ16 -> 6 | BR17: INTERCHANGE | BS17: 0 | BT17: 0 | BU17: 0 | BV17: 0 | BW17: 0 | BX17: 0 | BY17: 0 | BZ17: 0 | CA17: 0 | CC17: -5992 | CD17: =E17+CC17 -> 0
D18: CAPACITY COSTS | R18: CAPACITY COSTS | X18: 0 | Y18: 0 | Z18: 0 | AA18: 0 | AE18: CAPACITY COSTS | AF18: 0 | AG18: 0 | AR18: CAPACITY COSTS | AT18: 0 | AU18: 0 | AV18: 0 | AW18: 0 | AX18: 0 | AY18: 0 | AZ18: 0 | BA18: 0 | BE18: CAPACITY COSTS | BF18: 0 | BG18: 0 | BH18: 0 | BI18: 0 | BJ18: 0 | BK18: 0 | BL18: 0 | BM18: 0 | BN18: 0 | BR18: CAPACITY COSTS | BS18: 0 | BT18: 0 | BU18: 0 | BV18: 0 | BW18: 0 | BX18: 0 | BY18: 0 | BZ18: 0 | CA18: 0 | CC18: 0
C19: =1+C17 -> 7 | D19: BASE LOAD | E19: =+ROUND('[1]O&M'!$B$21*0.001,0) -> 13305 | F19: 0 | G19: 0 | H19: 0 | I19: 0 | J19: =+ROUND('[1]O&M'!G21*0.001,0) -> 0 | K19: =+ROUND('[1]O&M'!$H$21*0.001,0) -> 204961 | L19: 0 | M19: 0 | N19: 0 | Q19: =1+Q17 -> 7 | R19: BASE LOAD | S19: 0 | T19: 0 | U19: 0 | V19: 0 | W19: 0 | X19: 0 | Y19: 0 | Z19: 0 | AA19: 0 | AD19: =1+AD17 -> 7 | AE19: BASE LOAD | AF19: 0 | AG19: 0 | AH19: 0 | AI19: 0 | AJ19: 0 | AK19: 0 | AL19: 0 | AM19: 0 | AN19: 0 | AQ19: =1+AQ17 -> 7 | AR19: BASE LOAD | AS19: 0 | AT19: 0 | AU19: 0 | AV19: 0 | AW19: 0 | AX19: 0 | AY19: 0 | AZ19: 0 | BA19: 0 | BD19: =1+BD17 -> 7 | BE19: BASE LOAD | BF19: 0 | BG19: 0 | BH19: 0 | BI19: 0 | BJ19: 0 | BK19: 0 | BL19: 0 | BM19: 0 | BN19: 0 | BQ19: =1+BQ17 -> 7 | BR19: BASE LOAD | BS19: 0 | BT19: 0 | BU19: 0 | BV19: 0 | BW19: 0 | BX19: 0 | BY19: 0 | BZ19: 0 | CA19: 0 | CC19: 204961 | CD19: =E19+CC19 -> 218266
C20: =1+C19 -> 8 | D20: INTERCHANGE | E20: 0 | F20: 0 | G20: 0 | H20: 0 | I20: 0 | J20: =+ROUND('[1]O&M'!G22*0.001,0) -> 0 | K20: 0 | L20: 0 | M20: 0 | N20: 0 | Q20: =1+Q19 -> 8 | R20: INTERCHANGE | S20: 0 | T20: 0 | U20: 0 | V20: 0 | W20: 0 | X20: 0 | Y20: 0 | Z20: 0 | AA20: 0 | AD20: =1+AD19 -> 8 | AE20: INTERCHANGE | AF20: 0 | AG20: 0 | AH20: 0 | AI20: 0 | AJ20: 0 | AK20: 0 | AL20: 0 | AM20: 0 | AN20: 0 | AQ20: =1+AQ19 -> 8 | AR20: INTERCHANGE | AS20: 0 | AT20: 0 | AU20: 0 | AV20: 0 | AW20: 0 | AX20: 0 | AY20: 0 | AZ20: 0 | BA20: 0 | BD20: =1+BD19 -> 8 | BE20: INTERCHANGE | BF20: 0 | BG20: 0 | BH20: 0 | BI20: 0 | BJ20: 0 | BK20: 0 | BL20: 0 | BM20: 0 | BN20: 0 | BQ20: =1+BQ19 -> 8 | BR20: INTERCHANGE | BS20: 0 | BT20: 0 | BU20: 0 | BV20: 0 | BW20: 0 | BX20: 0 | BY20: 0 | BZ20: 0 | CA20: 0 | CC20: 0 | CD20: =E20+CC20 -> 0
C21: =1+C20 -> 9 | D21: OTHER | E21: =+ROUND('[1]O&M'!$B$23*0.001,0) -> 244290 | F21: 0 | G21: 0 | H21: 0 | I21: 0 | J21: =+ROUND('[1]O&M'!G23*0.001,0) -> 0 | K21: 0 | L21: 0 | M21: =+ROUND('[1]O&M'!$J$23*0.001,0) -> -35 | N21: =+ROUND('[1]O&M'!$K$23*0.001,0)+1 -> 15106 | Q21: =1+Q20 -> 9 | R21: OTHER | S21: =+ROUND('[1]O&M'!$L$23*0.001,0) -> 368 | T21: =+ROUND('[1]O&M'!$M$23*0.001,0) -> -2193 | U21: =+ROUND('[1]O&M'!$N$23*0.001,0) -> -2807 | V21: =+ROUND('[1]O&M'!$O$23*0.001,0) -> -102847 | W21: =+ROUND('[1]O&M'!$P$23*0.001,0) -> 23803 | X21: =+ROUND('[1]O&M'!$Q$23*0.001,0) -> -27887 | Y21: =+ROUND('[1]O&M'!$R$23*0.001,0) -> -968 | Z21: =+ROUND('[1]O&M'!$S$23*0.001,0) -> 3355 | AA21: =+ROUND('[1]O&M'!$T$23*0.001,0) -> 1082 | AD21: =1+AD20 -> 9 | AE21: OTHER | AF21: =+ROUND('[1]O&M'!$V$23*0.001,0) -> 0 | AG21: 0 | AH21: =+ROUND('[1]O&M'!$W$23*0.001,0) -> 0 | AI21: 0 | AJ21: 0 | AK21: 0 | AL21: 0 | AM21: 0 | AN21: 0 | AQ21: =1+AQ20 -> 9 | AR21: OTHER | AS21: 0 | AT21: 0 | AU21: 0 | AV21: 0 | AW21: =+ROUND('[1]O&M'!$AO$23*0.001,0) -> -2398 | AX21: 0 | AY21: 0 | AZ21: 0 | BA21: 0 | BD21: =1+BD20 -> 9 | BE21: OTHER | BF21: 0 | BG21: 0 | BH21: 0 | BI21: 0 | BJ21: =ROUND('[1]O&M'!$BD$23*0.001,0) -> 0 | BK21: =ROUND('[1]O&M'!$BD$23*0.001,0) -> 0 | BL21: =+ROUND('[1]O&M'!$BM$23*0.001,0) -> -3434 | BM21: 0 | BN21: 0 | BQ21: =1+BQ20 -> 9 | BR21: OTHER | BS21: 0 | BT21: 0 | BU21: =+ROUND('[1]O&M'!$BP$23*0.001,0) -> 62 | BV21: 0 | BW21: 0 | BX21: 0 | BY21: 0 | BZ21: 0 | CA21: 122 | CC21: =SUM(F21:N21,S21:AA21,AF21:AN21,AS21:BA21,BF21:BN21,BS21:CB21) -> -98671 | CD21: =E21+CC21 -> 145619
C22: =1+C21 -> 10 | D22: TOTAL PRODUCTION EXPENSES | E22: =SUM(E9:E21) -> 1131635 | F22: 11838 | G22: -1202 | H22: -1641 | I22: =SUM(I9:I21) -> 0 | J22: =SUM(J9:J21) -> -44508 | K22: =SUM(K9:K21) -> 275118 | L22: =SUM(L9:L21) -> 0 | M22: =SUM(M9:M21) -> -35 | N22: =SUM(N9:N21) -> 15106 | Q22: =1+Q21 -> 10 | R22: TOTAL PRODUCTION EXPENSES | S22: =SUM(S9:S21) -> 368 | T22: =SUM(T9:T21) -> -2193 | U22: -2807 | V22: =SUM(V9:V21) -> -102847 | W22: =SUM(W9:W21) -> 29143 | X22: =SUM(X9:X21) -> -27887 | Y22: =SUM(Y9:Y21) -> -968 | Z22: =SUM(Z9:Z21) -> 3355 | AA22: 1082 | AD22: =1+AD21 -> 10 | AE22: TOTAL PRODUCTION EXPENSES | AF22: =SUM(AF9:AF21) -> 0 | AG22: =SUM(AG9:AG21) -> 0 | AH22: =SUM(AH9:AH21) -> 0 | AI22: =SUM(AI9:AI21) -> 0 | AJ22: =SUM(AJ9:AJ21) -> 0 | AK22: =SUM(AK9:AK21) -> 0 | AL22: =SUM(AL9:AL21) -> 0 | AM22: 0 | AN22: =SUM(AN9:AN21) -> 0 | AQ22: =1+AQ21 -> 10 | AR22: TOTAL PRODUCTION EXPENSES | AS22: =SUM(AS9:AS21) -> 0 | AT22: =SUM(AT9:AT21) -> 0 | AU22: =SUM(AU9:AU21) -> 0 | AV22: =SUM(AV9:AV21) -> 0 | AW22: =SUM(AW9:AW21) -> -2398 | AX22: =SUM(AX9:AX21) -> 0 | AY22: =SUM(AY9:AY21) -> 0 | AZ22: 0 | BA22: =SUM(BA9:BA21) -> 0 | BD22: =1+BD21 -> 10 | BE22: TOTAL PRODUCTION EXPENSES | BF22: =SUM(BF9:BF21) -> 0 | BG22: =SUM(BG9:BG21) -> 0 | BH22: 0 | BI22: 0 | BJ22: 0 | BK22: 0 | BL22: -3434 | BM22: 0 | BN22: =SUM(BN9:BN21) -> 0 | BQ22: =1+BQ21 -> 10 | BR22: TOTAL PRODUCTION EXPENSES | BS22: =SUM(BS9:BS21) -> 0 | BT22: 0 | BU22: =SUM(BU9:BU21) -> 62 | BV22: 0 | BW22: 0 | BX22: =SUM(BX9:BX21) -> 0 | BY22: 0 | BZ22: 0 | CA22: =SUM(CA9:CA21) -> 122 | CC22: =SUM(CC9:CC21) -> 146274 | CD22: =SUM(CD9:CD21) -> 1277909
D24: TRANSMISSION EXPENSES: | R24: TRANSMISSION EXPENSES: | AE24: TRANSMISSION EXPENSES: | AR24: TRANSMISSION EXPENSES: | BE24: TRANSMISSION EXPENSES: | BR24: TRANSMISSION EXPENSES:
C25: =1+C22 -> 11 | D25: LABOR | E25: =+ROUND('[1]O&M'!$B$27*0.001,0) -> 5926 | F25: =+ROUND('[1]O&M'!$C$27*0.001,0) -> 339 | G25: =+ROUND('[1]O&M'!$D$27*0.001,0) -> -36 | H25: =+ROUND('[1]O&M'!$E$27*0.001,0) -> -135 | I25: 0 | J25: =+ROUND('[1]O&M'!G27*0.001,0) -> 0 | K25: 0 | L25: 0 | M25: 0 | N25: 0 | Q25: =1+Q22 -> 11 | R25: LABOR | S25: 0 | T25: 0 | U25: 0 | V25: 0 | W25: =+ROUND('[1]O&M'!O27*0.001,0) -> 0 | X25: =+ROUND('[1]O&M'!U27*0.001,0) -> 0 | Y25: =+ROUND('[1]O&M'!V27*0.001,0) -> 0 | Z25: 0 | AA25: 0 | AD25: =1+AD22 -> 11 | AE25: LABOR | AF25: 0 | AG25: 0 | AH25: 0 | AI25: 0 | AJ25: 0 | AK25: 0 | AL25: 0 | AM25: 0 | AN25: 0 | AQ25: =1+AQ22 -> 11 | AR25: LABOR | AS25: 0 | AT25: 0 | AU25: 0 | AV25: 0 | AW25: 0 | AX25: 0 | AY25: 0 | AZ25: 0 | BA25: 0 | BD25: =1+BD22 -> 11 | BE25: LABOR | BF25: 0 | BG25: 0 | BH25: 0 | BI25: 0 | BJ25: 0 | BK25: 0 | BL25: 0 | BM25: 0 | BN25: 0 | BQ25: =1+BQ22 -> 11 | BR25: LABOR | BS25: 0 | BT25: 0 | BU25: 0 | BV25: 0 | BW25: 0 | BX25: 0 | BY25: 0 | BZ25: 0 | CA25: 0 | CC25: =SUM(F25:N25,S25:AA25,AF25:AN25,AS25:BA25,BF25:BN25,BS25:CB25) -> 168 | CD25: =E25+CC25 -> 6094
C26: =1+C25 -> 12 | D26: OTHER | E26: =+ROUND('[1]O&M'!$B$28*0.001,0) -> 105237 | F26: 0 | G26: 0 | H26: 0 | I26: 0 | J26: =+ROUND('[1]O&M'!G28*0.001,0) -> 0 | K26: =+ROUND('[1]O&M'!$H$28*0.001,0) -> 3210 | L26: =+ROUND('[1]O&M'!$I$28*0.001,0) -> -147 | M26: 0 | N26: 0 | Q26: =1+Q25 -> 12 | R26: OTHER | S26: 0 | T26: 0 | U26: 0 | V26: 0 | W26: =+ROUND('[1]O&M'!O28*0.001,0) -> 0 | X26: =+ROUND('[1]O&M'!U28*0.001,0) -> 0 | Y26: =+ROUND('[1]O&M'!V28*0.001,0) -> 0 | Z26: 0 | AA26: 0 | AD26: =1+AD25 -> 12 | AE26: OTHER | AF26: 0 | AG26: 0 | AH26: 0 | AI26: 0 | AJ26: 0 | AK26: 0 | AL26: 0 | AM26: 0 | AN26: 0 | AQ26: =1+AQ25 -> 12 | AR26: OTHER | AS26: 0 | AT26: 0 | AU26: 0 | AV26: 0 | AW26: 0 | AX26: 0 | AY26: 0 | AZ26: 0 | BA26: 0 | BD26: =1+BD25 -> 12 | BE26: OTHER | BF26: 0 | BG26: 0 | BH26: 0 | BI26: =ROUND('[1]O&M'!$BC$28*0.001,0) -> -44 | BJ26: 0 | BK26: 0 | BL26: 0 | BM26: 0 | BN26: 0 | BQ26: =1+BQ25 -> 12 | BR26: OTHER | BS26: 0 | BT26: 0 | BU26: 0 | BV26: 0 | BW26: 0 | BX26: 0 | BY26: 0 | BZ26: 0 | CA26: 0 | CC26: =SUM(F26:N26,S26:AA26,AF26:AN26,AS26:BA26,BF26:BN26,BS26:CB26) -> 3019 | CD26: =E26+CC26 -> 108256
C27: =1+C26 -> 13 | D27: TOTAL TRANSMISSION EXPENSES | E27: =SUM(E25:E26) -> 111163 | F27: 339 | G27: -36 | H27: -135 | I27: =SUM(I25:I26) -> 0 | J27: =SUM(J25:J26) -> 0 | K27: =SUM(K25:K26) -> 3210 | L27: =SUM(L25:L26) -> -147 | M27: =SUM(M25:M26) -> 0 | N27: =SUM(N25:N26) -> 0 | Q27: =1+Q26 -> 13 | R27: TOTAL TRANSMISSION EXPENSES | S27: =SUM(S25:S26) -> 0 | T27: =SUM(T25:T26) -> 0 | U27: 0 | V27: =SUM(V25:V26) -> 0 | W27: =SUM(W25:W26) -> 0 | X27: =SUM(X25:X26) -> 0 | Y27: =SUM(Y25:Y26) -> 0 | Z27: =SUM(Z25:Z26) -> 0 | AA27: 0 | AD27: =1+AD26 -> 13 | AE27: TOTAL TRANSMISSION EXPENSES | AF27: =SUM(AF25:AF26) -> 0 | AG27: =SUM(AG25:AG26) -> 0 | AH27: =SUM(AH25:AH26) -> 0 | AI27: =SUM(AI25:AI26) -> 0 | AJ27: =SUM(AJ25:AJ26) -> 0 | AK27: =SUM(AK25:AK26) -> 0 | AL27: =SUM(AL25:AL26) -> 0 | AM27: 0 | AN27: =SUM(AN25:AN26) -> 0 | AQ27: =1+AQ26 -> 13 | AR27: TOTAL TRANSMISSION EXPENSES | AS27: =SUM(AS25:AS26) -> 0 | AT27: =SUM(AT25:AT26) -> 0 | AU27: =SUM(AU25:AU26) -> 0 | AV27: =SUM(AV25:AV26) -> 0 | AW27: =SUM(AW25:AW26) -> 0 | AX27: =SUM(AX25:AX26) -> 0 | AY27: =SUM(AY25:AY26) -> 0 | AZ27: 0 | BA27: =SUM(BA25:BA26) -> 0 | BD27: =1+BD26 -> 13 | BE27: TOTAL TRANSMISSION EXPENSES | BF27: =SUM(BF25:BF26) -> 0 | BG27: =SUM(BG25:BG26) -> 0 | BH27: 0 | BI27: -44 | BJ27: 0 | BK27: 0 | BL27: 0 | BM27: 0 | BN27: =SUM(BN25:BN26) -> 0 | BQ27: =1+BQ26 -> 13 | BR27: TOTAL TRANSMISSION EXPENSES | BS27: =SUM(BS25:BS26) -> 0 | BT27: 0 | BU27: =SUM(BU25:BU26) -> 0 | BV27: 0 | BW27: 0 | BX27: =SUM(BX25:BX26) -> 0 | BY27: 0 | BZ27: 0 | CA27: =SUM(CA25:CA26) -> 0 | CC27: =SUM(CC25:CC26) -> 3187 | CD27: =SUM(CD25:CD26) -> 114350
D29: REGIONAL MARKET EXPENSES: | R29: REGIONAL MARKET EXPENSES: | AE29: REGIONAL MARKET EXPENSES: | AR29: REGIONAL MARKET EXPENSES: | BE29: REGIONAL MARKET EXPENSES: | BR29: REGIONAL MARKET EXPENSES:
C30: =1+C27 -> 14 | D30: LABOR | E30: =+ROUND('[1]O&M'!$B$32*0.001,0) -> 0 | F30: 0 | G30: 0 | H30: 0 | I30: 0 | J30: =+ROUND('[1]O&M'!G32*0.001,0) -> 0 | K30: 0 | L30: =+ROUND('[1]O&M'!I32*0.001,0) -> 0 | M30: 0 | N30: 0 | Q30: =1+Q27 -> 14 | R30: LABOR | S30: 0 | T30: 0 | U30: 0 | V30: 0 | W30: =+ROUND('[1]O&M'!O32*0.001,0) -> 0 | X30: =+ROUND('[1]O&M'!U32*0.001,0) -> 0 | Y30: =+ROUND('[1]O&M'!V32*0.001,0) -> 0 | Z30: 0 | AA30: 0 | AD30: =1+AD27 -> 14 | AE30: LABOR | AF30: 0 | AG30: 0 | AH30: 0 | AI30: 0 | AJ30: 0 | AK30: 0 | AL30: 0 | AM30: 0 | AN30: 0 | AQ30: =1+AQ27 -> 14 | AR30: LABOR | AS30: 0 | AT30: 0 | AU30: 0 | AV30: 0 | AW30: 0 | AX30: 0 | AY30: 0 | AZ30: 0 | BA30: 0 | BD30: =1+BD27 -> 14 | BE30: LABOR | BF30: 0 | BG30: 0 | BH30: 0 | BI30: 0 | BJ30: 0 | BK30: 0 | BL30: 0 | BM30: 0 | BN30: 0 | BQ30: =1+BQ27 -> 14 | BR30: LABOR | BS30: 0 | BT30: 0 | BU30: 0 | BV30: 0 | BW30: 0 | BX30: 0 | BY30: 0 | BZ30: 0 | CA30: 0 | CC30: =SUM(F30:N30,S30:AA30,AF30:AN30,AS30:BA30,BF30:BN30,BS30:CB30) -> 0 | CD30: =E30+CC30 -> 0
C31: =1+C30 -> 15 | D31: OTHER | E31: =+ROUND('[1]O&M'!$B$33*0.001,0) -> 6924 | F31: 0 | G31: 0 | H31: 0 | I31: 0 | J31: =+ROUND('[1]O&M'!G33*0.001,0) -> 0 | K31: =+ROUND('[1]O&M'!H33*0.001,0) -> -210 | L31: =+ROUND('[1]O&M'!I33*0.001,0) -> 0 | M31: 0 | N31: 0 | Q31: =1+Q30 -> 15 | R31: OTHER | S31: 0 | T31: 0 | U31: 0 | V31: 0 | W31: =+ROUND('[1]O&M'!O33*0.001,0) -> 0 | X31: =+ROUND('[1]O&M'!U33*0.001,0) -> 0 | Y31: =+ROUND('[1]O&M'!V33*0.001,0) -> 0 | Z31: 0 | AA31: 0 | AD31: =1+AD30 -> 15 | AE31: OTHER | AF31: 0 | AG31: 0 | AH31: 0 | AI31: 0 | AJ31: 0 | AK31: 0 | AL31: 0 | AM31: 0 | AN31: 0 | AQ31: =1+AQ30 -> 15 | AR31: OTHER | AS31: 0 | AT31: 0 | AU31: 0 | AV31: 0 | AW31: 0 | AX31: 0 | AY31: 0 | AZ31: 0 | BA31: 0 | BD31: =1+BD30 -> 15 | BE31: OTHER | BF31: 0 | BG31: 0 | BH31: 0 | BI31: 0 | BJ31: 0 | BK31: 0 | BL31: 0 | BM31: 0 | BN31: 0 | BQ31: =1+BQ30 -> 15 | BR31: OTHER | BS31: 0 | BT31: 0 | BU31: 0 | BV31: 0 | BW31: 0 | BX31: 0 | BY31: 0 | BZ31: 0 | CA31: 0 | CC31: =SUM(F31:N31,S31:AA31,AF31:AN31,AS31:BA31,BF31:BN31,BS31:CB31) -> -210 | CD31: =E31+CC31 -> 6714
C32: =1+C31 -> 16 | D32: TOTAL REGIONAL MARKET EXPENSES | E32: =SUM(E30:E31) -> 6924 | F32: 0 | G32: 0 | H32: 0 | I32: =SUM(I30:I31) -> 0 | J32: =SUM(J30:J31) -> 0 | K32: =SUM(K30:K31) -> -210 | L32: =SUM(L30:L31) -> 0 | M32: =SUM(M30:M31) -> 0 | N32: =SUM(N30:N31) -> 0 | Q32: =1+Q31 -> 16 | R32: TOTAL REGIONAL MARKET EXPENSES | S32: =SUM(S30:S31) -> 0 | T32: =SUM(T30:T31) -> 0 | U32: 0 | V32: =SUM(V30:V31) -> 0 | W32: =SUM(W30:W31) -> 0 | X32: =SUM(X30:X31) -> 0 | Y32: =SUM(Y30:Y31) -> 0 | Z32: =SUM(Z30:Z31) -> 0 | AA32: 0 | AD32: =1+AD31 -> 16 | AE32: TOTAL REGIONAL MARKET EXPENSES | AF32: =SUM(AF30:AF31) -> 0 | AG32: =SUM(AG30:AG31) -> 0 | AH32: =SUM(AH30:AH31) -> 0 | AI32: =SUM(AI30:AI31) -> 0 | AJ32: =SUM(AJ30:AJ31) -> 0 | AK32: =SUM(AK30:AK31) -> 0 | AL32: =SUM(AL30:AL31) -> 0 | AM32: 0 | AN32: =SUM(AN30:AN31) -> 0 | AQ32: =1+AQ31 -> 16 | AR32: TOTAL REGIONAL MARKET EXPENSES | AS32: =SUM(AS30:AS31) -> 0 | AT32: =SUM(AT30:AT31) -> 0 | AU32: =SUM(AU30:AU31) -> 0 | AV32: =SUM(AV30:AV31) -> 0 | AW32: =SUM(AW30:AW31) -> 0 | AX32: =SUM(AX30:AX31) -> 0 | AY32: =SUM(AY30:AY31) -> 0 | AZ32: 0 | BA32: =SUM(BA30:BA31) -> 0 | BD32: =1+BD31 -> 16 | BE32: TOTAL REGIONAL MARKET EXPENSES | BF32: =SUM(BF30:BF31) -> 0 | BG32: =SUM(BG30:BG31) -> 0 | BH32: 0 | BI32: 0 | BJ32: 0 | BK32: 0 | BL32: 0 | BM32: 0 | BN32: =SUM(BN30:BN31) -> 0 | BQ32: =1+BQ31 -> 16 | BR32: TOTAL REGIONAL MARKET EXPENSES | BS32: =SUM(BS30:BS31) -> 0 | BT32: 0 | BU32: =SUM(BU30:BU31) -> 0 | BV32: 0 | BW32: 0 | BX32: =SUM(BX30:BX31) -> 0 | BY32: 0 | BZ32: 0 | CA32: =SUM(CA30:CA31) -> 0 | CC32: =SUM(CC30:CC31) -> -210 | CD32: =SUM(CD30:CD31) -> 6714
D34: DISTRIBUTION EXPENSES: | R34: DISTRIBUTION EXPENSES: | AE34: DISTRIBUTION EXPENSES: | AR34: DISTRIBUTION EXPENSES: | BE34: DISTRIBUTION EXPENSES: | BR34: DISTRIBUTION EXPENSES:
C35: =1+C32 -> 17 | D35: LABOR | E35: =+ROUND('[1]O&M'!$B$37*0.001,0) -> 59721 | F35: =+ROUND('[1]O&M'!$C$37*0.001,0) -> 3660 | G35: =+ROUND('[1]O&M'!$D$37*0.001,0) -> -363 | H35: =+ROUND('[1]O&M'!$E$37*0.001,0) -> -358 | I35: 0 | J35: =+ROUND('[1]O&M'!G37*0.001,0) -> 0 | K35: 0 | L35: =+ROUND('[1]O&M'!I37*0.001,0) -> 0 | M35: 0 | N35: 0 | Q35: =1+Q32 -> 17 | R35: LABOR | S35: 0 | T35: 0 | U35: 0 | V35: 0 | W35: =+ROUND('[1]O&M'!O37*0.001,0) -> 0 | X35: =+ROUND('[1]O&M'!U37*0.001,0) -> 0 | Y35: =+ROUND('[1]O&M'!V37*0.001,0) -> 0 | Z35: 0 | AA35: 0 | AD35: =1+AD32 -> 17 | AE35: LABOR | AF35: 0 | AG35: 0 | AH35: 0 | AI35: 0 | AJ35: 0 | AK35: 0 | AL35: 0 | AM35: 0 | AN35: 0 | AQ35: =1+AQ32 -> 17 | AR35: LABOR | AS35: 0 | AT35: 0 | AU35: 0 | AV35: 0 | AW35: 0 | AX35: 0 | AY35: 0 | AZ35: 0 | BA35: 0 | BD35: =1+BD32 -> 17 | BE35: LABOR | BF35: 0 | BG35: 0 | BH35: 0 | BI35: 0 | BJ35: 0 | BK35: 0 | BL35: 0 | BM35: 0 | BN35: 0 | BQ35: =1+BQ32 -> 17 | BR35: LABOR | BS35: 0 | BT35: 0 | BU35: 0 | BV35: 0 | BW35: 0 | BX35: 0 | BY35: 0 | BZ35: 0 | CA35: 0 | CC35: =SUM(F35:N35,S35:AA35,AF35:AN35,AS35:BA35,BF35:BN35,BS35:CB35) -> 2939 | CD35: =E35+CC35 -> 62660
C36: =1+C35 -> 18 | D36: OTHER | E36: =+ROUND('[1]O&M'!$B$38*0.001,0) -> 93964 | F36: 0 | G36: 0 | H36: 0 | I36: 0 | J36: =+ROUND('[1]O&M'!G38*0.001,0) -> 0 | K36: 0 | L36: =+ROUND('[1]O&M'!I38*0.001,0) -> 0 | M36: =+ROUND('[1]O&M'!$J$38*0.001,0) -> -4 | N36: 0 | Q36: =1+Q35 -> 18 | R36: OTHER | S36: 0 | T36: 0 | U36: 0 | V36: 0 | W36: =+ROUND('[1]O&M'!O38*0.001,0) -> 0 | X36: =+ROUND('[1]O&M'!U38*0.001,0) -> 0 | Y36: =+ROUND('[1]O&M'!V38*0.001,0) -> 0 | Z36: 0 | AA36: 0 | AD36: =1+AD35 -> 18 | AE36: OTHER | AF36: =+ROUND('[1]O&M'!$V$38*0.001,0) -> 0 | AG36: =+ROUND('[1]O&M'!$V$38*0.001,0) -> 0 | AH36: =+ROUND('[1]O&M'!$W$38*0.001,0) -> -693 | AI36: =+ROUND('[1]O&M'!$X$38*0.001,0) -> -5255 | AJ36: 0 | AK36: 0 | AL36: 0 | AM36: 0 | AN36: 0 | AQ36: =1+AQ35 -> 18 | AR36: OTHER | AS36: 0 | AT36: 0 | AU36: 0 | AV36: 0 | AW36: 0 | AX36: 0 | AY36: 0 | AZ36: 0 | BA36: 0 | BD36: =1+BD35 -> 18 | BE36: OTHER | BF36: 0 | BG36: 0 | BH36: 0 | BI36: =ROUND('[1]O&M'!$BC$38*0.001,0) -> 9 | BJ36: 0 | BK36: 0 | BL36: 0 | BM36: 0 | BN36: 0 | BQ36: =1+BQ35 -> 18 | BR36: OTHER | BS36: 0 | BT36: 0 | BU36: 0 | BV36: 0 | BW36: 0 | BX36: =+ROUND('[1]O&M'!$BT$38*0.001,0) -> -1100 | BY36: 0 | BZ36: 0 | CA36: 0 | CC36: =SUM(F36:N36,S36:AA36,AF36:AN36,AS36:BA36,BF36:BN36,BS36:CB36) -> -7043 | CD36: =E36+CC36 -> 86921
C37: =1+C36 -> 19 | D37: TOTAL DISTRIBUTION EXPENSES | E37: =SUM(E35:E36) -> 153685 | F37: 3660 | G37: -363 | H37: -358 | I37: =SUM(I35:I36) -> 0 | J37: =SUM(J35:J36) -> 0 | K37: =SUM(K35:K36) -> 0 | L37: =SUM(L35:L36) -> 0 | M37: =SUM(M35:M36) -> -4 | N37: =SUM(N35:N36) -> 0 | Q37: =1+Q36 -> 19 | R37: TOTAL DISTRIBUTION EXPENSES | S37: =SUM(S35:S36) -> 0 | T37: =SUM(T35:T36) -> 0 | U37: 0 | V37: =SUM(V35:V36) -> 0 | W37: =SUM(W35:W36) -> 0 | X37: =SUM(X35:X36) -> 0 | Y37: =SUM(Y35:Y36) -> 0 | Z37: =SUM(Z35:Z36) -> 0 | AA37: 0 | AD37: =1+AD36 -> 19 | AE37: TOTAL DISTRIBUTION EXPENSES | AF37: =SUM(AF35:AF36) -> 0 | AG37: =SUM(AG35:AG36) -> 0 | AH37: =SUM(AH35:AH36) -> -693 | AI37: =SUM(AI35:AI36) -> -5255 | AJ37: =SUM(AJ35:AJ36) -> 0 | AK37: =SUM(AK35:AK36) -> 0 | AL37: =SUM(AL35:AL36) -> 0 | AM37: 0 | AN37: =SUM(AN35:AN36) -> 0 | AQ37: =1+AQ36 -> 19 | AR37: TOTAL DISTRIBUTION EXPENSES | AS37: =SUM(AS35:AS36) -> 0 | AT37: =SUM(AT35:AT36) -> 0 | AU37: =SUM(AU35:AU36) -> 0 | AV37: =SUM(AV35:AV36) -> 0 | AW37: =SUM(AW35:AW36) -> 0 | AX37: =SUM(AX35:AX36) -> 0 | AY37: =SUM(AY35:AY36) -> 0 | AZ37: 0 | BA37: =SUM(BA35:BA36) -> 0 | BD37: =1+BD36 -> 19 | BE37: TOTAL DISTRIBUTION EXPENSES | BF37: =SUM(BF35:BF36) -> 0 | BG37: =SUM(BG35:BG36) -> 0 | BH37: 0 | BI37: 9 | BJ37: 0 | BK37: 0 | BL37: 0 | BM37: 0 | BN37: =SUM(BN35:BN36) -> 0 | BQ37: =1+BQ36 -> 19 | BR37: TOTAL DISTRIBUTION EXPENSES | BS37: =SUM(BS35:BS36) -> 0 | BT37: 0 | BU37: =SUM(BU35:BU36) -> 0 | BV37: 0 | BW37: 0 | BX37: =SUM(BX35:BX36) -> -1100 | BY37: 0 | BZ37: 0 | CA37: =SUM(CA35:CA36) -> 0 | CC37: =SUM(CC35:CC36) -> -4104 | CD37: =SUM(CD35:CD36) -> 149581
D39: CUSTOMER ACCOUNTING EXPENSES: | R39: CUSTOMER ACCOUNTING EXPENSES: | AE39: CUSTOMER ACCOUNTING EXPENSES: | AR39: CUSTOMER ACCOUNTING EXPENSES: | BE39: CUSTOMER ACCOUNTING EXPENSES: | BR39: CUSTOMER ACCOUNTING EXPENSES:
C40: =1+C37 -> 20 | D40: LABOR | E40: =+ROUND('[1]O&M'!$B$42*0.001,0) -> 20476 | F40: =+ROUND('[1]O&M'!$C$42*0.001,0) -> 1252 | G40: =+ROUND('[1]O&M'!$D$42*0.001,0) -> -125 | H40: =+ROUND('[1]O&M'!$E$42*0.001,0) -> -164 | I40: 0 | J40: 0 | K40: 0 | L40: 0 | M40: 0 | N40: 0 | Q40: =1+Q37 -> 20 | R40: LABOR | S40: 0 | T40: 0 | U40: 0 | V40: 0 | W40: 0 | X40: =+ROUND('[1]O&M'!U42*0.001,0) -> 0 | Y40: =+ROUND('[1]O&M'!V42*0.001,0) -> 0 | Z40: 0 | AA40: 0 | AD40: =1+AD37 -> 20 | AE40: LABOR | AF40: 0 | AG40: 0 | AH40: 0 | AI40: 0 | AJ40: 0 | AK40: 0 | AL40: 0 | AM40: 0 | AN40: 0 | AQ40: =1+AQ37 -> 20 | AR40: LABOR | AS40: 0 | AT40: 0 | AU40: 0 | AV40: 0 | AW40: 0 | AX40: 0 | AY40: 0 | AZ40: 0 | BA40: 0 | BD40: =1+BD37 -> 20 | BE40: LABOR | BF40: 0 | BG40: 0 | BH40: 0 | BI40: 0 | BJ40: 0 | BK40: 0 | BL40: 0 | BM40: 0 | BN40: 0 | BQ40: =1+BQ37 -> 20 | BR40: LABOR | BS40: 0 | BT40: 0 | BU40: 0 | BV40: 0 | BW40: 0 | BX40: 0 | BY40: 0 | BZ40: 0 | CA40: 0 | CC40: =SUM(F40:N40,S40:AA40,AF40:AN40,AS40:BA40,BF40:BN40,BS40:CB40) -> 963 | CD40: =E40+CC40 -> 21439
C41: =1+C40 -> 21 | D41: OTHER | E41: =+ROUND('[1]O&M'!$B$43*0.001,0) -> 27092 | F41: 0 | G41: 0 | H41: 0 | I41: 0 | J41: =+ROUND('[1]O&M'!G43*0.001,0) -> 0 | K41: 0 | L41: =+ROUND('[1]O&M'!I43*0.001,0) -> 0 | M41: 0 | N41: 0 | Q41: =1+Q40 -> 21 | R41: OTHER | S41: 0 | T41: 0 | U41: 0 | V41: 0 | W41: =+ROUND('[1]O&M'!O43*0.001,0) -> 0 | X41: =+ROUND('[1]O&M'!U43*0.001,0) -> 0 | Y41: =+ROUND('[1]O&M'!V43*0.001,0) -> 0 | Z41: 0 | AA41: 0 | AD41: =1+AD40 -> 21 | AE41: OTHER | AF41: 0 | AG41: 0 | AH41: 0 | AI41: 0 | AJ41: =+ROUND('[1]O&M'!$Z$43*0.001,0) -> 1884 | AK41: 0 | AL41: 0 | AM41: =+ROUND('[1]O&M'!$AE$43*0.001,0) -> 3680 | AN41: 0 | AQ41: =1+AQ40 -> 21 | AR41: OTHER | AS41: 0 | AT41: 0 | AU41: 0 | AV41: 0 | AW41: 0 | AX41: 0 | AY41: 0 | AZ41: 0 | BA41: 0 | BD41: =1+BD40 -> 21 | BE41: OTHER | BF41: 0 | BG41: 0 | BH41: 0 | BI41: =ROUND('[1]O&M'!$BC$43*0.001,0) -> 0 | BJ41: =ROUND('[1]O&M'!$BD$43*0.001,0) -> -4526 | BK41: =ROUND('[1]O&M'!$BK$43*0.001,0) -> 0 | BL41: 0 | BM41: 0 | BN41: =+ROUND('[1]O&M'!$BH$43*0.001,0)+1 -> 4639 | BQ41: =1+BQ40 -> 21 | BR41: OTHER | BS41: 0 | BT41: 0 | BU41: 0 | BV41: 0 | BW41: 0 | BX41: 0 | BY41: =+ROUND('[1]O&M'!$BU$43*0.001,0)+1 -> 964 | BZ41: 0 | CA41: 0 | CC41: =SUM(F41:N41,S41:AA41,AF41:AN41,AS41:BA41,BF41:BN41,BS41:CB41) -> 6641 | CD41: =E41+CC41 -> 33733
C42: =1+C41 -> 22 | D42: TOTAL CUSTOMER ACCOUNTING EXPENSES | E42: =SUM(E40:E41) -> 47568 | F42: 1252 | G42: -125 | H42: -164 | I42: =SUM(I40:I41) -> 0 | J42: =SUM(J40:J41) -> 0 | K42: =SUM(K40:K41) -> 0 | L42: =SUM(L40:L41) -> 0 | M42: =SUM(M40:M41) -> 0 | N42: =SUM(N40:N41) -> 0 | Q42: =1+Q41 -> 22 | R42: TOTAL CUSTOMER ACCOUNTING EXPENSES | S42: =SUM(S40:S41) -> 0 | T42: =SUM(T40:T41) -> 0 | U42: 0 | V42: =SUM(V40:V41) -> 0 | W42: =SUM(W40:W41) -> 0 | X42: =SUM(X40:X41) -> 0 | Y42: =SUM(Y40:Y41) -> 0 | Z42: =SUM(Z40:Z41) -> 0 | AA42: 0 | AD42: =1+AD41 -> 22 | AE42: TOTAL CUSTOMER ACCOUNTING EXPENSES | AF42: =SUM(AF40:AF41) -> 0 | AG42: =SUM(AG40:AG41) -> 0 | AH42: =SUM(AH40:AH41) -> 0 | AI42: =SUM(AI40:AI41) -> 0 | AJ42: =SUM(AJ40:AJ41) -> 1884 | AK42: =SUM(AK40:AK41) -> 0 | AL42: =SUM(AL40:AL41) -> 0 | AM42: 3680 | AN42: =SUM(AN40:AN41) -> 0 | AQ42: =1+AQ41 -> 22 | AR42: TOTAL CUSTOMER ACCOUNTING EXPENSES | AS42: =SUM(AS40:AS41) -> 0 | AT42: =SUM(AT40:AT41) -> 0 | AU42: =SUM(AU40:AU41) -> 0 | AV42: =SUM(AV40:AV41) -> 0 | AW42: =SUM(AW40:AW41) -> 0 | AX42: =SUM(AX40:AX41) -> 0 | AY42: =SUM(AY40:AY41) -> 0 | AZ42: 0 | BA42: =SUM(BA40:BA41) -> 0 | BD42: =1+BD41 -> 22 | BE42: TOTAL CUSTOMER ACCOUNTING EXPENSES | BF42: =SUM(BF40:BF41) -> 0 | BG42: =SUM(BG40:BG41) -> 0 | BH42: 0 | BI42: 0 | BJ42: -4526 | BK42: 0 | BL42: 0 | BM42: 0 | BN42: =SUM(BN40:BN41) -> 4639 | BQ42: =1+BQ41 -> 22 | BR42: TOTAL CUSTOMER ACCOUNTING EXPENSES | BS42: =SUM(BS40:BS41) -> 0 | BT42: 0 | BU42: =SUM(BU40:BU41) -> 0 | BV42: 0 | BW42: 0 | BX42: =SUM(BX40:BX41) -> 0 | BY42: 964 | BZ42: 0 | CA42: =SUM(CA40:CA41) -> 0 | CC42: =SUM(CC40:CC41) -> 7604 | CD42: =SUM(CD40:CD41) -> 55172
D44: CUSTOMER SERV. & INFO. EXPENSES: | R44: CUSTOMER SERV. & INFO. EXPENSES: | AE44: CUSTOMER SERV. & INFO. EXPENSES: | AR44: CUSTOMER SERV. & INFO. EXPENSES: | BE44: CUSTOMER SERV. & INFO. EXPENSES: | BR44: CUSTOMER SERV. & INFO. EXPENSES:
A45: SCHEDULE MJL-TUR11-1 | C45: =1+C42 -> 23 | D45: LABOR | E45: =+ROUND('[1]O&M'!$B$47*0.001,0) -> 6915 | F45: =+ROUND('[1]O&M'!$C$47*0.001,0) -> 396 | G45: =+ROUND('[1]O&M'!$D$47*0.001,0) -> -42 | H45: =+ROUND('[1]O&M'!$E$47*0.001,0) -> -211 | I45: 0 | J45: =+ROUND('[1]O&M'!G47*0.001,0) -> 0 | K45: 0 | L45: =+ROUND('[1]O&M'!I47*0.001,0) -> 0 | M45: 0 | N45: 0 | O45: SCHEDULE MJL-TUR11-2 | Q45: =1+Q42 -> 23 | R45: LABOR | S45: 0 | T45: 0 | U45: 0 | V45: 0 | W45: =+ROUND('[1]O&M'!O47*0.001,0) -> 0 | X45: =+ROUND('[1]O&M'!U47*0.001,0) -> 0 | Y45: =+ROUND('[1]O&M'!V47*0.001,0) -> 0 | Z45: 0 | AA45: 0 | AB45: SCHEDULE MJL-TUR11-3 | AD45: =1+AD42 -> 23 | AE45: LABOR | AF45: 0 | AG45: 0 | AH45: 0 | AI45: 0 | AJ45: 0 | AK45: 0 | AL45: 0 | AM45: 0 | AN45: 0 | AO45: SCHEDULE MJL-TUR11-4 | AQ45: =1+AQ42 -> 23 | AR45: LABOR | AS45: 0 | AT45: 0 | AU45: 0 | AV45: 0 | AW45: 0 | AX45: 0 | AY45: 0 | AZ45: 0 | BA45: 0 | BB45: SCHEDULE MJL-TUR11-5 | BD45: =1+BD42 -> 23 | BE45: LABOR | BF45: 0 | BG45: 0 | BH45: 0 | BI45: 0 | BJ45: 0 | BK45: 0 | BL45: 0 | BM45: 0 | BN45: 0 | BO45: SCHEDULE MJL-TUR11-6 | BQ45: =1+BQ42 -> 23 | BR45: LABOR | BS45: 0 | BT45: 0 | BU45: 0 | BV45: 0 | BW45: 0 | BX45: 0 | BY45: 0 | BZ45: 0 | CA45: 0 | CC45: =SUM(F45:N45,S45:AA45,AF45:AN45,AS45:BA45,BF45:BN45,BS45:CB45) -> 143 | CD45: =E45+CC45 -> 7058
C46: =1+C45 -> 24 | D46: OTHER | E46: =+ROUND('[1]O&M'!$B$48*0.001,0) -> 81084 | F46: 0 | G46: 0 | H46: 0 | I46: 0 | J46: =+ROUND('[1]O&M'!G48*0.001,0) -> 0 | K46: 0 | L46: =+ROUND('[1]O&M'!I48*0.001,0) -> 0 | M46: 0 | N46: 0 | Q46: =1+Q45 -> 24 | R46: OTHER | S46: 0 | T46: 0 | U46: 0 | V46: 0 | W46: =+ROUND('[1]O&M'!O48*0.001,0) -> 0 | X46: 0 | Y46: 0 | Z46: 0 | AA46: 0 | AD46: =1+AD45 -> 24 | AE46: OTHER | AF46: =+ROUND('[1]O&M'!$U$48*0.001,0) -> -978 | AG46: =+ROUND('[1]O&M'!$V$48*0.001,0) -> 1338 | AH46: 0 | AI46: 0 | AJ46: 0 | AK46: =+ROUND('[1]O&M'!$AB$48*0.001,0) -> -68605 | AL46: =+ROUND('[1]O&M'!$AC$48*0.001,0) -> 74 | AM46: 0 | AN46: 0 | AQ46: =1+AQ45 -> 24 | AR46: OTHER | AS46: 0 | AT46: 0 | AU46: 0 | AV46: 0 | AW46: =+ROUND('[1]O&M'!$AO$48*0.001,0) -> 704 | AX46: 0 | AY46: 0 | AZ46: 0 | BA46: 0 | BD46: =1+BD45 -> 24 | BE46: OTHER | BF46: 0 | BG46: 0 | BH46: 0 | BI46: =ROUND('[1]O&M'!$BC$48*0.001,0) -> 1 | BJ46: 0 | BK46: 0 | BL46: 0 | BM46: 0 | BN46: 0 | BQ46: =1+BQ45 -> 24 | BR46: OTHER | BS46: 0 | BT46: 0 | BU46: 0 | BV46: 0 | BW46: 0 | BX46: 0 | BY46: 0 | BZ46: =+ROUND('[1]O&M'!$BW$48*0.001,0)-CA21 -> -502 | CA46: 0 | CC46: =SUM(F46:N46,S46:AA46,AF46:AN46,AS46:BA46,BF46:BN46,BS46:CB46) -> -67968 | CD46: =E46+CC46 -> 13116
C47: =1+C46 -> 25 | D47: TOTAL CUSTOMER SERV. & INFO. EXPENSES | E47: =SUM(E45:E46) -> 87999 | F47: 396 | G47: -42 | H47: -211 | I47: =SUM(I45:I46) -> 0 | J47: =SUM(J45:J46) -> 0 | K47: =SUM(K45:K46) -> 0 | L47: =SUM(L45:L46) -> 0 | M47: =SUM(M45:M46) -> 0 | N47: =SUM(N45:N46) -> 0 | Q47: =1+Q46 -> 25 | R47: TOTAL CUSTOMER SERV. & INFO. EXPENSES | S47: =SUM(S45:S46) -> 0 | T47: =SUM(T45:T46) -> 0 | U47: 0 | V47: =SUM(V45:V46) -> 0 | W47: =SUM(W45:W46) -> 0 | X47: =SUM(X45:X46) -> 0 | Y47: =SUM(Y45:Y46) -> 0 | Z47: =SUM(Z45:Z46) -> 0 | AA47: 0 | AD47: =1+AD46 -> 25 | AE47: TOTAL CUSTOMER SERV. & INFO. EXPENSES | AF47: =SUM(AF45:AF46) -> -978 | AG47: =SUM(AG45:AG46) -> 1338 | AH47: =SUM(AH45:AH46) -> 0 | AI47: =SUM(AI45:AI46) -> 0 | AJ47: =SUM(AJ45:AJ46) -> 0 | AK47: =SUM(AK45:AK46) -> -68605 | AL47: =SUM(AL45:AL46) -> 74 | AM47: 0 | AN47: =SUM(AN45:AN46) -> 0 | AQ47: =1+AQ46 -> 25 | AR47: TOTAL CUSTOMER SERV. & INFO. EXPENSES | AS47: =SUM(AS45:AS46) -> 0 | AT47: =SUM(AT45:AT46) -> 0 | AU47: =SUM(AU45:AU46) -> 0 | AV47: =SUM(AV45:AV46) -> 0 | AW47: =SUM(AW45:AW46) -> 704 | AX47: =SUM(AX45:AX46) -> 0 | AY47: =SUM(AY45:AY46) -> 0 | AZ47: 0 | BA47: =SUM(BA45:BA46) -> 0 | BD47: =1+BD46 -> 25 | BE47: TOTAL CUSTOMER SERV. & INFO. EXPENSES | BF47: =SUM(BF45:BF46) -> 0 | BG47: =SUM(BG45:BG46) -> 0 | BH47: 0 | BI47: 1 | BJ47: 0 | BK47: 0 | BL47: 0 | BM47: 0 | BN47: =SUM(BN45:BN46) -> 0 | BQ47: =1+BQ46 -> 25 | BR47: TOTAL CUSTOMER SERV. & INFO. EXPENSES | BS47: =SUM(BS45:BS46) -> 0 | BT47: 0 | BU47: =SUM(BU45:BU46) -> 0 | BV47: 0 | BW47: 0 | BX47: =SUM(BX45:BX46) -> 0 | BY47: 0 | BZ47: -502 | CA47: =SUM(CA45:CA46) -> 0 | CC47: =SUM(CC45:CC46) -> -67825 | CD47: =SUM(CD45:CD46) -> 20174
D49: SALES EXPENSES: | R49: SALES EXPENSES: | AE49: SALES EXPENSES: | AR49: SALES EXPENSES: | BE49: SALES EXPENSES: | BR49: SALES EXPENSES:
C50: =1+C47 -> 26 | D50: LABOR | E50: =+ROUND('[1]O&M'!$B$52*0.001,0)+1 -> 280 | F50: =+ROUND('[1]O&M'!$C$52*0.001,0) -> 17 | G50: =+ROUND('[1]O&M'!$D$52*0.001,0) -> -2 | H50: 0 | I50: 0 | J50: =+ROUND('[1]O&M'!G52*0.001,0) -> 0 | K50: 0 | L50: =+ROUND('[1]O&M'!I52*0.001,0) -> 0 | M50: 0 | N50: 0 | Q50: =1+Q47 -> 26 | R50: LABOR | S50: 0 | T50: 0 | U50: 0 | V50: 0 | W50: =+ROUND('[1]O&M'!O52*0.001,0) -> 0 | X50: =+ROUND('[1]O&M'!U52*0.001,0) -> 0 | Y50: =+ROUND('[1]O&M'!V52*0.001,0) -> 0 | Z50: 0 | AA50: 0 | AD50: =1+AD47 -> 26 | AE50: LABOR | AF50: 0 | AG50: 0 | AH50: 0 | AI50: 0 | AJ50: 0 | AK50: 0 | AL50: 0 | AM50: 0 | AN50: 0 | AQ50: =1+AQ47 -> 26 | AR50: LABOR | AS50: 0 | AT50: 0 | AU50: 0 | AV50: 0 | AW50: 0 | AX50: 0 | AY50: 0 | AZ50: 0 | BA50: 0 | BD50: =1+BD47 -> 26 | BE50: LABOR | BF50: 0 | BG50: 0 | BH50: 0 | BI50: 0 | BJ50: 0 | BK50: 0 | BL50: 0 | BM50: 0 | BN50: 0 | BQ50: =1+BQ47 -> 26 | BR50: LABOR | BS50: 0 | BT50: 0 | BU50: 0 | BV50: 0 | BW50: 0 | BX50: 0 | BY50: 0 | BZ50: 0 | CA50: 0 | CC50: =SUM(F50:N50,S50:AA50,AF50:AN50,AS50:BA50,BF50:BN50,BS50:CB50) -> 15 | CD50: =E50+CC50 -> 295
C51: =1+C50 -> 27 | D51: OTHER | E51: =+ROUND('[1]O&M'!$B$53*0.001,0) -> 199 | F51: 0 | G51: 0 | H51: 0 | I51: 0 | J51: =+ROUND('[1]O&M'!G53*0.001,0) -> 0 | K51: 0 | L51: =+ROUND('[1]O&M'!I53*0.001,0) -> 0 | M51: =+ROUND('[1]O&M'!$J$53*0.001,0) -> -3 | N51: 0 | Q51: =1+Q50 -> 27 | R51: OTHER | S51: 0 | T51: 0 | U51: 0 | V51: 0 | W51: =+ROUND('[1]O&M'!O53*0.001,0) -> 0 | X51: =+ROUND('[1]O&M'!U53*0.001,0) -> 0 | Y51: =+ROUND('[1]O&M'!V53*0.001,0) -> 0 | Z51: 0 | AA51: 0 | AD51: =1+AD50 -> 27 | AE51: OTHER | AF51: 0 | AG51: 0 | AH51: 0 | AI51: 0 | AJ51: 0 | AK51: 0 | AL51: 0 | AM51: 0 | AN51: 0 | AQ51: =1+AQ50 -> 27 | AR51: OTHER | AS51: 0 | AT51: 0 | AU51: 0 | AV51: 0 | AW51: 0 | AX51: 0 | AY51: 0 | AZ51: 0 | BA51: 0 | BD51: =1+BD50 -> 27 | BE51: OTHER | BF51: 0 | BG51: 0 | BH51: 0 | BI51: 0 | BJ51: 0 | BK51: 0 | BL51: 0 | BM51: 0 | BN51: 0 | BQ51: =1+BQ50 -> 27 | BR51: OTHER | BS51: 0 | BT51: 0 | BU51: 0 | BV51: 0 | BW51: 0 | BX51: 0 | BY51: 0 | BZ51: 0 | CA51: 0 | CC51: =SUM(F51:N51,S51:AA51,AF51:AN51,AS51:BA51,BF51:BN51,BS51:CB51) -> -3 | CD51: =E51+CC51 -> 196
C52: =1+C51 -> 28 | D52: TOTAL SALES EXPENSES | E52: =SUM(E50:E51) -> 479 | F52: 17 | G52: -2 | H52: 0 | I52: =SUM(I50:I51) -> 0 | J52: =SUM(J50:J51) -> 0 | K52: =SUM(K50:K51) -> 0 | L52: =SUM(L50:L51) -> 0 | M52: =SUM(M50:M51) -> -3 | N52: =SUM(N50:N51) -> 0 | Q52: =1+Q51 -> 28 | R52: TOTAL SALES EXPENSES | S52: =SUM(S50:S51) -> 0 | T52: =SUM(T50:T51) -> 0 | U52: 0 | V52: =SUM(V50:V51) -> 0 | W52: =SUM(W50:W51) -> 0 | X52: =SUM(X50:X51) -> 0 | Y52: =SUM(Y50:Y51) -> 0 | Z52: =SUM(Z50:Z51) -> 0 | AA52: 0 | AD52: =1+AD51 -> 28 | AE52: TOTAL SALES EXPENSES | AF52: =SUM(AF50:AF51) -> 0 | AG52: =SUM(AG50:AG51) -> 0 | AH52: =SUM(AH50:AH51) -> 0 | AI52: =SUM(AI50:AI51) -> 0 | AJ52: =SUM(AJ50:AJ51) -> 0 | AK52: =SUM(AK50:AK51) -> 0 | AL52: =SUM(AL50:AL51) -> 0 | AM52: 0 | AN52: =SUM(AN50:AN51) -> 0 | AQ52: =1+AQ51 -> 28 | AR52: TOTAL SALES EXPENSES | AS52: =SUM(AS50:AS51) -> 0 | AT52: =SUM(AT50:AT51) -> 0 | AU52: =SUM(AU50:AU51) -> 0 | AV52: =SUM(AV50:AV51) -> 0 | AW52: =SUM(AW50:AW51) -> 0 | AX52: =SUM(AX50:AX51) -> 0 | AY52: =SUM(AY50:AY51) -> 0 | AZ52: 0 | BA52: =SUM(BA50:BA51) -> 0 | BD52: =1+BD51 -> 28 | BE52: TOTAL SALES EXPENSES | BF52: =SUM(BF50:BF51) -> 0 | BG52: =SUM(BG50:BG51) -> 0 | BH52: 0 | BI52: 0 | BJ52: 0 | BK52: 0 | BL52: 0 | BM52: 0 | BN52: =SUM(BN50:BN51) -> 0 | BQ52: =1+BQ51 -> 28 | BR52: TOTAL SALES EXPENSES | BS52: =SUM(BS50:BS51) -> 0 | BT52: 0 | BU52: =SUM(BU50:BU51) -> 0 | BV52: 0 | BW52: 0 | BX52: =SUM(BX50:BX51) -> 0 | BY52: 0 | BZ52: 0 | CA52: =SUM(CA50:CA51) -> 0 | CC52: =SUM(CC50:CC51) -> 12 | CD52: =SUM(CD50:CD51) -> 491
D54: ADMINISTRATIVE & GENERAL EXPENSES: | R54: ADMINISTRATIVE & GENERAL EXPENSES: | AE54: ADMINISTRATIVE & GENERAL EXPENSES: | AR54: ADMINISTRATIVE & GENERAL EXPENSES: | BE54: ADMINISTRATIVE & GENERAL EXPENSES: | BR54: ADMINISTRATIVE & GENERAL EXPENSES:
C55: =1+C52 -> 29 | D55: LABOR | E55: =+ROUND('[1]O&M'!$B$57*0.001,0) -> 65147 | F55: =+ROUND('[1]O&M'!$C$57*0.001,0) -> 3261 | G55: =+ROUND('[1]O&M'!$D$57*0.001,0) -> -396 | H55: =+ROUND('[1]O&M'!$E$57*0.001,0) -> -3929 | I55: =+ROUND('[1]O&M'!$AH$57*0.001,0) -> 4102 | J55: =+ROUND('[1]O&M'!G57*0.001,0) -> 0 | K55: 0 | L55: =+ROUND('[1]O&M'!I57*0.001,0) -> 0 | M55: 0 | N55: 0 | Q55: =1+Q52 -> 29 | R55: LABOR | S55: 0 | T55: 0 | U55: 0 | V55: 0 | W55: =+ROUND('[1]O&M'!O57*0.001,0) -> 0 | X55: =+ROUND('[1]O&M'!U57*0.001,0) -> 0 | Y55: =+ROUND('[1]O&M'!V57*0.001,0) -> 0 | Z55: 0 | AA55: 0 | AD55: =1+AD52 -> 29 | AE55: LABOR | AF55: 0 | AG55: 0 | AH55: 0 | AI55: 0 | AJ55: 0 | AK55: 0 | AL55: 0 | AM55: 0 | AN55: 0 | AQ55: =1+AQ52 -> 29 | AR55: LABOR | AS55: 0 | AT55: 0 | AU55: 0 | AV55: 0 | AW55: 0 | AX55: 0 | AY55: 0 | AZ55: 0 | BA55: 0 | BD55: =1+BD52 -> 29 | BE55: LABOR | BF55: 0 | BG55: 0 | BH55: 0 | BI55: 0 | BJ55: 0 | BK55: 0 | BL55: 0 | BM55: 0 | BN55: 0 | BQ55: =1+BQ52 -> 29 | BR55: LABOR | BS55: 0 | BT55: 0 | BU55: 0 | BV55: 0 | BW55: 0 | BX55: 0 | BY55: 0 | BZ55: 0 | CA55: 0 | CC55: =SUM(F55:N55,S55:AA55,AF55:AN55,AS55:BA55,BF55:BN55,BS55:CB55) -> 3038 | CD55: =E55+CC55 -> 68185
C56: =1+C55 -> 30 | D56: OTHER | E56: =+ROUND('[1]O&M'!$B$58*0.001,0) -> 129431 | F56: 0 | G56: 0 | H56: 0 | I56: =+ROUND('[1]O&M'!$AK$58*0.001,0) -> 625 | J56: =+ROUND('[1]O&M'!G58*0.001,0) -> 0 | K56: 0 | L56: =+ROUND('[1]O&M'!I58*0.001,0) -> 0 | M56: =+ROUND('[1]O&M'!$J$58*0.001,0) -> -2 | N56: 0 | Q56: =1+Q55 -> 30 | R56: OTHER | S56: 0 | T56: 0 | U56: 0 | V56: 0 | W56: =+ROUND('[1]O&M'!O58*0.001,0) -> 0 | X56: =+ROUND('[1]O&M'!U58*0.001,0) -> 0 | Y56: =+ROUND('[1]O&M'!V58*0.001,0) -> 0 | Z56: 0 | AA56: 0 | AD56: =1+AD55 -> 30 | AE56: OTHER | AF56: 0 | AG56: =+ROUND('[1]O&M'!$Z$48*0.001,0) -> 0 | AH56: 0 | AI56: 0 | AJ56: 0 | AK56: =+ROUND('[1]O&M'!$AA$58*0.001,0) -> 0 | AL56: 0 | AM56: 0 | AN56: =+ROUND('[1]O&M'!$AI$58*0.001,0) -> 5484 | AQ56: =1+AQ55 -> 30 | AR56: OTHER | AS56: =+ROUND('[1]O&M'!$AJ$58*0.001,0) -> 855 | AT56: =+ROUND('[1]O&M'!$AL$58*0.001,0) -> -625 | AU56: =+ROUND('[1]O&M'!$AM$58*0.001,0) -> -98062 | AV56: =+ROUND('[1]O&M'!$AN$58*0.001,0) -> -2458 | AW56: 0 | AX56: =+ROUND('[1]O&M'!$AP$58*0.001,0) -> 81 | AY56: =+ROUND('[1]O&M'!$AQ$58*0.001,0) -> 1145 | AZ56: =+ROUND('[1]O&M'!$AR$58*0.001,0) -> -422 | BA56: =+ROUND('[1]O&M'!$AT$58*0.001,0) -> -48 | BD56: =1+BD55 -> 30 | BE56: OTHER | BF56: =+ROUND('[1]O&M'!$AS$58*0.001,0) -> 3348 | BG56: =+ROUND('[1]O&M'!$AW$58*0.001,0) -> -710 | BH56: =+ROUND('[1]O&M'!$AY$58*0.001,0) -> -32 | BI56: =+ROUND('[1]O&M'!$BC$58*0.001,0) -> 587 | BJ56: =+ROUND('[1]O&M'!$BD$58*0.001,0) -> 0 | BK56: =+ROUND('[1]O&M'!$BK$58*0.001,0) -> -6274 | BL56: =+ROUND('[1]O&M'!$BM$58*0.001,0) -> 0 | BM56: =+ROUND('[1]O&M'!$BG$58*0.001,0) -> 15 | BN56: 0 | BQ56: =1+BQ55 -> 30 | BR56: OTHER | BS56: =+ROUND('[1]O&M'!$BN$58*0.001,0) -> 89 | BT56: =+ROUND('[1]O&M'!$BO$58*0.001,0) -> 354 | BU56: =+ROUND('[1]O&M'!$BP$58*0.001,0) -> 948 | BV56: =+ROUND('[1]O&M'!$BQ$58*0.001,0) -> 384 | BW56: =+ROUND('[1]O&M'!$BS$58*0.001,0) -> 1 | BX56: 0 | BY56: 0 | BZ56: 0 | CA56: 0 | CC56: =SUM(F56:N56,S56:AA56,AF56:AN56,AS56:BA56,BF56:BN56,BS56:CB56) -> -94717 | CD56: =E56+CC56 -> 34714
C57: =1+C56 -> 31 | D57: TOTAL ADMINISTRATIVE & GENERAL EXPENSES | E57: =SUM(E55:E56) -> 194578 | F57: 3261 | G57: -396 | H57: -3929 | I57: =SUM(I55:I56) -> 4727 | J57: =SUM(J55:J56) -> 0 | K57: =SUM(K55:K56) -> 0 | L57: =SUM(L55:L56) -> 0 | M57: =SUM(M55:M56) -> -2 | N57: =SUM(N55:N56) -> 0 | Q57: =1+Q56 -> 31 | R57: TOTAL ADMINISTRATIVE & GENERAL EXPENSES | S57: =SUM(S55:S56) -> 0 | T57: =SUM(T55:T56) -> 0 | U57: 0 | V57: =SUM(V55:V56) -> 0 | W57: =SUM(W55:W56) -> 0 | X57: =SUM(X55:X56) -> 0 | Y57: =SUM(Y55:Y56) -> 0 | Z57: =SUM(Z55:Z56) -> 0 | AA57: 0 | AD57: =1+AD56 -> 31 | AE57: TOTAL ADMINISTRATIVE & GENERAL EXPENSES | AF57: =SUM(AF55:AF56) -> 0 | AG57: =SUM(AG55:AG56) -> 0 | AH57: =SUM(AH55:AH56) -> 0 | AI57: =SUM(AI55:AI56) -> 0 | AJ57: =SUM(AJ55:AJ56) -> 0 | AK57: =SUM(AK55:AK56) -> 0 | AL57: =SUM(AL55:AL56) -> 0 | AM57: 0 | AN57: =SUM(AN55:AN56) -> 5484 | AQ57: =1+AQ56 -> 31 | AR57: TOTAL ADMINISTRATIVE & GENERAL EXPENSES | AS57: =SUM(AS55:AS56) -> 855 | AT57: =SUM(AT55:AT56) -> -625 | AU57: =SUM(AU55:AU56) -> -98062 | AV57: -2458 | AW57: =SUM(AW55:AW56) -> 0 | AX57: =SUM(AX55:AX56) -> 81 | AY57: 1145 | AZ57: =SUM(AZ55:AZ56) -> -422 | BA57: =SUM(BA55:BA56) -> -48 | BD57: =1+BD56 -> 31 | BE57: TOTAL ADMINISTRATIVE & GENERAL EXPENSES | BF57: =SUM(BF55:BF56) -> 3348 | BG57: =SUM(BG55:BG56) -> -710 | BH57: -32 | BI57: 587 | BJ57: 0 | BK57: -6274 | BL57: 0 | BM57: 15 | BN57: =SUM(BN55:BN56) -> 0 | BQ57: =1+BQ56 -> 31 | BR57: TOTAL ADMINISTRATIVE & GENERAL EXPENSES | BS57: =SUM(BS55:BS56) -> 89 | BT57: 354 | BU57: =SUM(BU55:BU56) -> 948 | BV57: 384 | BW57: 1 | BX57: =SUM(BX55:BX56) -> 0 | BY57: 0 | BZ57: 0 | CA57: =SUM(CA55:CA56) -> 0 | CC57: =SUM(CC55:CC56) -> -91679 | CD57: =SUM(CD55:CD56) -> 102899
C59: =1+C57 -> 32 | D59: TOTAL OPERATIONS & MAINTENANCE EXPENSES | E59: =E22+E27+E32+E37+E42+E47+E52+E57 -> 1734031 | F59: =F22+F27+F32+F37+F42+F47+F52+F57 -> 20763 | G59: -2166 | H59: -6438 | I59: =I22+I27+I32+I37+I42+I47+I52+I57 -> 4727 | J59: =J22+J27+J32+J37+J42+J47+J52+J57 -> -44508 | K59: =K22+K27+K32+K37+K42+K47+K52+K57 -> 278118 | L59: =L22+L27+L32+L37+L42+L47+L52+L57 -> -147 | M59: =M22+M27+M32+M37+M42+M47+M52+M57 -> -44 | N59: =N22+N27+N32+N37+N42+N47+N52+N57 -> 15106 | Q59: =1+Q57 -> 32 | R59: TOTAL OPERATIONS & MAINTENANCE EXPENSES | S59: =S22+S27+S32+S37+S42+S47+S52+S57 -> 368 | T59: =T22+T27+T32+T37+T42+T47+T52+T57 -> -2193 | U59: -2807 | V59: =V22+V27+V32+V37+V42+V47+V52+V57 -> -102847 | W59: =W22+W27+W32+W37+W42+W47+W52+W57 -> 29143 | X59: =X22+X27+X32+X37+X42+X47+X52+X57 -> -27887 | Y59: =Y22+Y27+Y32+Y37+Y42+Y47+Y52+Y57 -> -968 | Z59: =Z22+Z27+Z32+Z37+Z42+Z47+Z52+Z57 -> 3355 | AA59: 1082 | AD59: =1+AD57 -> 32 | AE59: TOTAL OPERATIONS & MAINTENANCE EXPENSES | AF59: =AF22+AF27+AF32+AF37+AF42+AF47+AF52+AF57 -> -978 | AG59: =AG22+AG27+AG32+AG37+AG42+AG47+AG52+AG57 -> 1338 | AH59: =AH22+AH27+AH32+AH37+AH42+AH47+AH52+AH57 -> -693 | AI59: -5255 | AJ59: =AJ22+AJ27+AJ32+AJ37+AJ42+AJ47+AJ52+AJ57 -> 1884 | AK59: -68605 | AL59: 74 | AM59: 3680 | AN59: =AN22+AN27+AN32+AN37+AN42+AN47+AN52+AN57 -> 5484 | AQ59: =1+AQ57 -> 32 | AR59: TOTAL OPERATIONS & MAINTENANCE EXPENSES | AS59: =AS22+AS27+AS32+AS37+AS42+AS47+AS52+AS57 -> 855 | AT59: =AT22+AT27+AT32+AT37+AT42+AT47+AT52+AT57 -> -625 | AU59: =AU22+AU27+AU32+AU37+AU42+AU47+AU52+AU57 -> -98062 | AV59: -2458 | AW59: =AW22+AW27+AW32+AW37+AW42+AW47+AW52+AW57 -> -1694 | AX59: =AX22+AX27+AX32+AX37+AX42+AX47+AX52+AX57 -> 81 | AY59: 1145 | AZ59: =AZ22+AZ27+AZ32+AZ37+AZ42+AZ47+AZ52+AZ57 -> -422 | BA59: =BA22+BA27+BA32+BA37+BA42+BA47+BA52+BA57 -> -48 | BD59: =1+BD57 -> 32 | BE59: TOTAL OPERATIONS & MAINTENANCE EXPENSES | BF59: =BF22+BF27+BF32+BF37+BF42+BF47+BF52+BF57 -> 3348 | BG59: =BG22+BG27+BG32+BG37+BG42+BG47+BG52+BG57 -> -710 | BH59: -32 | BI59: 553 | BJ59: -4526 | BK59: -6274 | BL59: -3434 | BM59: 15 | BN59: =BN22+BN27+BN32+BN37+BN42+BN47+BN52+BN57 -> 4639 | BQ59: =1+BQ57 -> 32 | BR59: TOTAL OPERATIONS & MAINTENANCE EXPENSES | BS59: =BS22+BS27+BS32+BS37+BS42+BS47+BS52+BS57 -> 89 | BT59: 354 | BU59: =BU22+BU27+BU32+BU37+BU42+BU47+BU52+BU57 -> 1010 | BV59: 384 | BW59: 1 | BX59: =BX22+BX27+BX32+BX37+BX42+BX47+BX52+BX57 -> -1100 | BY59: 964 | BZ59: -502 | CA59: =CA22+CA27+CA32+CA37+CA42+CA47+CA52+CA57 -> 122 | CC59: =CC22+CC27+CC32+CC37+CC42+CC47+CC52+CC57 -> -6741 | CD59: =CD22+CD27+CD32+CD37+CD42+CD47+CD52+CD57 -> 1727290
C61: =1+C59 -> 33 | D61: NOTE: See SCHEDULE MJL-TUR11-7 for explanation of the adjustments. | Q61: =1+Q59 -> 33 | R61: NOTE: See SCHEDULE MJL-TUR11-7 for explanation of the adjustments. | AD61: =1+AD59 -> 33 | AE61: NOTE: See SCHEDULE MJL-TUR11-7 for explanation of the adjustments. | AQ61: =1+AQ59 -> 33 | AR61: NOTE: See SCHEDULE MJL-TUR11-7 for explanation of the adjustments. | BD61: =1+BD59 -> 33 | BE61: NOTE: See SCHEDULE MJL-TUR11-7 for explanation of the adjustments. | BQ61: =1+BQ59 -> 33 | BR61: NOTE: See SCHEDULE MJL-TUR11-7 for explanation of the adjustments.

Sheet SCHEDULE MJL-TUR11-7
A1: AMEREN MISSOURI
A2: ELECTRIC OPERATING AND MAINTENANCE EXPENSE
A3: PRO FORMA ADJUSTMENTS
A4: ='SCHEDULE MJL-TUR5'!A3 -> FOR THE TWELVE MONTHS ENDED DECEMBER 31, 2022
A5: ($000)
B6: PRO FORMA | L6: TOTAL
A7: LINE | B7: ITEM NO. | C7: DESCRIPTION | L7: AMOUNT
B8: (A) | C8: (B) | L8: (C)
A10: 1 | B10: -1 | C10: Increased labor expense from annualizing the average 2.25% wage increase for management employees effective January 1, 2022, the 2.50% wage increase for the Company's union employees effective January 1, 2022 per the labor contracts, annualizing an average 4.88% wage increase for management employees effective January 1, 2023, and the 4.50% wage increase for the Company's union employees effective January 1, 2023. | L10: ='SCHEDULE MJL-TUR11-1'!F59 -> 20763
A11: =1+A10 -> 2
A12: =1+A11 -> 3
A13: =1+A12 -> 4
A15: =1+A13 -> 5 | B15: -2 | C15: Decrease the incentive compensation expense for the incentive compensation applicable to AMS and Ameren Missouri officers that is based on the achievement of earnings-per-share goals of the Company. | L15: ='SCHEDULE MJL-TUR11-1'!G59 -> -2166
A16: =1+A15 -> 6
A18: =1+A16 -> 7 | B18: -3 | C18: Eliminate the long term incentive compensation expense that is based on the achievement of earnings-per-share goals of the Company. | L18: ='SCHEDULE MJL-TUR11-1'!H59 -> -6438
A20: =1+A18 -> 8 | B20: -4 | C20: Increase administrative and general expenses for staffing annualization of salary. | L20: ='SCHEDULE MJL-TUR11-1'!I59 -> 4727
A22: =1+A20 -> 9 | B22: -5 | C22: Decrease in fuel expense to reflect the normalized sales and customer growth through December 31, 2022 reflecting January 2023 fuel prices. | L22: ='SCHEDULE MJL-TUR11-1'!J59 -> -44508
A23: =1+A22 -> 10
A25: =1+A23 -> 11 | B25: -6 | C25: Increase in purchased power expense to reflect normalized sales and customer growth through December 30, 2022 and normalized power prices. | L25: ='SCHEDULE MJL-TUR11-1'!K59 -> 278118
A26: =1+A25 -> 12
A28: =1+A26 -> 13 | B28: -7 | C28: Decrease in transmission expense related to Mark Twain Transmission project. | L28: ='SCHEDULE MJL-TUR11-1'!L59 -> -147
A30: =1+A28 -> 14 | B30: -8 | C30: Remove membership dues related to lobbying activities. | L30: =+'SCHEDULE MJL-TUR11-1'!M59 -> -44
A32: =1+A30 -> 15 | B32: -9 | C32: Increase the coal handling costs to reflect the elimination of the coal refinement process. | L32: ='SCHEDULE MJL-TUR11-1'!N59 -> 15106
A34: =1+A32 -> 16 | B34: -10 | C34: Increase in production expense to normalize steam plant maintenance. | L34: ='SCHEDULE MJL-TUR11-1'!S59 -> 368
A36: =1+A34 -> 17 | B36: -11 | C36: Decrease in production expense to remove a portion of production expense related to Rush Island Energy Center. | L36: ='SCHEDULE MJL-TUR11-1'!T59 -> -2193
A38: =1+A36 -> 18 | B38: -12 | C38: Decrease in production expense to remove a portion of production expense related to non-recurring Meramec Energy Center costs. | L38: ='SCHEDULE MJL-TUR11-1'!U59 -> -2807
A40: =1+A38 -> 19 | B40: -13 | C40: Eliminate test year FAC recovery. | L40: ='SCHEDULE MJL-TUR11-1'!V59 -> -102847
A42: =1+A40 -> 20 | B42: -14 | C42: Increase to the nuclear production expense to include the average annualized amount of the last 3 Callaway | L42: ='SCHEDULE MJL-TUR11-1'!W59 -> 29143
A43: =1+A42 -> 21 | C43: Nuclear Plant refueling expenses.
A45: =1+A43 -> 22 | B45: -15 | C45: Decrease in production expenses for the amortization of Callaway refueling amortization. | L45: ='SCHEDULE MJL-TUR11-1'!X59 -> -27887
A47: =1+A45 -> 23 | B47: -16 | C47: Decrease in production expenses for the unplanned Callaway outage. | L47: ='SCHEDULE MJL-TUR11-1'!Y59 -> -968
A49: =1+A47 -> 24 | B49: -17 | C49: Increase in production expenses for amortization of RES cost regulatory liability. | L49: ='SCHEDULE MJL-TUR11-1'!Z59 -> 3355
A51: =1+A49 -> 25 | B51: -18 | C51: Increase in production expenses for rebase of RES expenses | L51: ='SCHEDULE MJL-TUR11-1'!AA59 -> 1082
A53: =1+A51 -> 26 | B53: -19 | C53: Decrease in production expenses to eliminate Solar Rebate amortizations in the test year. | L53: ='SCHEDULE MJL-TUR11-1'!AF59 -> -978
A55: =1+A53 -> 27 | B55: -20 | C55: Increase in production expenses for Solar Rebate amortizations. | L55: ='SCHEDULE MJL-TUR11-1'!AG59 -> 1338
A57: =1+A55 -> 28 | B57: -21 | C57: Decrease in production and distribution expenses for decrease in depreciation charged to O&M. | L57: ='SCHEDULE MJL-TUR11-1'!AH59 -> -693
A59: =1+A57 -> 29 | B59: -22 | C59: Decrease in distribution expense to normalize storm costs. | L59: ='SCHEDULE MJL-TUR11-1'!AI59 -> -5255
A61: =1+A59 -> 30 | B61: -23 | C61: Increase in customer accounting expenses to reflect interest expense at 4.25% on the average customer deposit | L61: ='SCHEDULE MJL-TUR11-1'!AJ59 -> 1884
A62: =1+A61 -> 31 | C62: balance.
A64: =A62+1 -> 32 | B64: -24 | C64: Decrease in customer service to eliminate test year MEEIA program costs. | L64: ='SCHEDULE MJL-TUR11-1'!AK59 -> -68605
A66: =1+A64 -> 33 | B66: -25 | C66: Increase in PAYS program amortization. | L66: ='SCHEDULE MJL-TUR11-1'!AL59 -> 74
A68: =1+A66 -> 34 | B68: -26 | C68: Increase in administrative and general expenses to normalize bad debt expense. | L68: ='SCHEDULE MJL-TUR11-1'!AM59 -> 3680
A70: =1+A68 -> 35 | B70: -27 | C70: Annualize insurance expense based upon current and expected insurance premiums. | L70: ='SCHEDULE MJL-TUR11-1'!AN59 -> 5484
A72: =1+A70 -> 36 | B72: -28 | C72: Increase administrative and general expenses to reflect annualized major medical and other employee benefit expenses through December 31, 2022. | L72: ='SCHEDULE MJL-TUR11-1'!AS59 -> 855
A73: =1+A72 -> 37
A75: =1+A73 -> 38 | B75: -29 | C75: Decrease non-qualified pension expense to reflect current level of expense. | L75: ='SCHEDULE MJL-TUR11-1'!AT59 -> -625
A77: =1+A75 -> 39 | B77: -30 | C77: Rebase Pension and OPEB Tracker to true up level. | L77: ='SCHEDULE MJL-TUR11-1'!AU59 -> -98062
A79: =1+A77 -> 40 | B79: -31 | C79: Decrease the amortization of the net regulatory liabilities for Pension and OPEB Tracker. | L79: ='SCHEDULE MJL-TUR11-1'!AV59 -> -2458
A81: =1+A79 -> 41 | B81: -32 | C81: Decrease in operating and maintenance expense for base level expenses related to RESRAM. | L81: ='SCHEDULE MJL-TUR11-1'!AW59 -> -1694
A83: =1+A81 -> 42 | B83: -33 | C83: Increase administrative and general expenses to reflect the 5 case average of expenses to prepare and litigate this rate filings and normalize the amount. | L83: ='SCHEDULE MJL-TUR11-1'!AX59 -> 81
A84: =1+A83 -> 43
A86: =1+A84 -> 44 | B86: -34 | C86: Increase administrative and general expenses to annualize MPSC Assessment. | L86: ='SCHEDULE MJL-TUR11-1'!AY59 -> 1145
A88: =1+A86 -> 45 | B88: -35 | C88: Decrease administrative and general expenses for certain Board of Director meeting expenses. | L88: ='SCHEDULE MJL-TUR11-1'!AZ59 -> -422
A90: =1+A88 -> 46 | B90: -36 | C90: Decrease administrative and general expense to normalize depreciation study expense. | L90: ='SCHEDULE MJL-TUR11-1'!BA59 -> -48
A92: =1+A90 -> 47 | B92: -37 | C92: Increase in administrative and general expense for building rent from AMS. | L92: ='SCHEDULE MJL-TUR11-1'!BF59 -> 3348
A94: =1+A92 -> 48 | B94: -38 | C94: Decrease administrative and general expenses for recently exited facilities. | L94: ='SCHEDULE MJL-TUR11-1'!BG59 -> -710
A96: =1+A94 -> 49 | B96: -39 | C96: Decrease administrative and general expenses for software rental expense | L96: ='SCHEDULE MJL-TUR11-1'!BH59 -> -32
A98: =1+A96 -> 50 | B98: -40 | C98: Increase administrative and general expense to utilize 2022 allocation factors. | L98: ='SCHEDULE MJL-TUR11-1'!BI59 -> 553
A100: =1+A98 -> 51 | B100: -41 | C100: Decrease in customer accounting expenses to reflect AMR cost savings. | L100: ='SCHEDULE MJL-TUR11-1'!BJ59 -> -4526
A102: =1+A100 -> 52 | B102: -42 | C102: Decrease administrative and general expense to remove customer affordability study costs. | L102: ='SCHEDULE MJL-TUR11-1'!BK59 -> -6274
A104: =1+A102 -> 53 | B104: -43 | C104: Eliminate renewable energy transition costs. | L104: ='SCHEDULE MJL-TUR11-1'!BL59 -> -3434
A106: =1+A104 -> 54 | B106: -44 | C106: Increase administrative and general expenses for electric costs allocated to gas. | L106: ='SCHEDULE MJL-TUR11-1'!BM59 -> 15
A108: =1+A106 -> 55 | B108: -45 | C108: Increase in operating and maintenance expense for customer convenience fees. | L108: ='SCHEDULE MJL-TUR11-1'!BN59 -> 4639
A110: =1+A108 -> 56 | B110: -46 | C110: Increase in administrative and general for an increase in cybersecurity costs. | L110: ='SCHEDULE MJL-TUR11-1'!BS59 -> 89
A112: =1+A110 -> 57 | B112: -47 | C112: Increase in administrative and general for a decrease in software maintenance costs. | L112: ='SCHEDULE MJL-TUR11-1'!BT59 -> 354
A114: =1+A112 -> 58 | B114: -48 | C114: Increase in administrative and general and production for NRC fee annualization. | L114: ='SCHEDULE MJL-TUR11-1'!BU59 -> 1010
A116: =1+A114 -> 59 | B116: -49 | C116: Increase in administrative and general for the sales and use tax audit findings. | L116: ='SCHEDULE MJL-TUR11-1'!BV59 -> 384
A118: =1+A116 -> 60 | B118: -50 | C118: Increase administrative and general expense for the EV incentive program. | L118: ='SCHEDULE MJL-TUR11-1'!BW59 -> 1
A120: =1+A118 -> 61 | B120: -51 | C120: To true up vegetation management and infrastructure inspection costs. | L120: ='SCHEDULE MJL-TUR11-1'!BX59 -> -1100
A122: =1+A120 -> 62 | B122: -52 | C122: To true up non-labor call center costs. | L122: ='SCHEDULE MJL-TUR11-1'!BY59 -> 964
A124: =1+A122 -> 63 | B124: -53 | C124: To remove certain advertising expenses. | L124: ='SCHEDULE MJL-TUR11-1'!BZ59 -> -502
A126: =1+A124 -> 64 | B126: -54 | C126: To normalize low-level radioactive waste costs. | L126: ='SCHEDULE MJL-TUR11-1'!CA59 -> 122
A128: =1+A126 -> 65 | B128: Total Pro Forma Adjustments to Electric Operating and Maintenance Expenses | L128: =SUM(L10:L127) -> -6741

Sheet SCHEDULE MJL-TUR12-1
A1: AMEREN MISSOURI
B2: DEPRECIATION & AMORTIZATION EXPENSE
B3: ='SCHEDULE MJL-TUR5'!A3 -> FOR THE TWELVE MONTHS ENDED DECEMBER 31, 2022
B4: ($000)
D6: TOTALS | F6: PRO FORMA
D7: PER | E7: PRO FORMA | F7: ELECTRIC
B8: LINE | C8: DESCRIPTION | D8: BOOKS | E8: ADJUSTMENTS(1) | F8: TOTALS
C9: (A) | D9: (B) | E9: (C) | F9: (D)
C11: DEPRECIATION EXPENSE:
B12: =1 -> 1 | C12: STEAM | D12: =ROUND('[1]Depreciation Pro Forma'!C13*0.001,0) -> 185282 | E12: =+'SCHEDULE MJL-TUR12-2'!E15+'SCHEDULE MJL-TUR12-2'!E28+'SCHEDULE MJL-TUR12-2'!E45 -> 24424 | F12: =SUM(D12:E12) -> 209706
B13: =1+B12 -> 2 | C13: NUCLEAR | D13: =ROUND('[1]Depreciation Pro Forma'!C14*0.001,0) -> 79981 | E13: =+'SCHEDULE MJL-TUR12-2'!E16+'SCHEDULE MJL-TUR12-2'!E29 -> 12147 | F13: 92128
B14: 3 | C14: CALLAWAY DECOMMISSIONING | D14: =ROUND('[1]Depreciation Pro Forma'!C15*0.001,0) -> 6759 | E14: 0 | F14: 6759
B15: 4 | C15: HYDRAULIC | D15: =ROUND('[1]Depreciation Pro Forma'!C16*0.001,0) -> 13115 | E15: =+'SCHEDULE MJL-TUR12-2'!E17+'SCHEDULE MJL-TUR12-2'!E30 -> 3158 | F15: 16273
B16: 5 | C16: OTHER | D16: =ROUND('[1]Depreciation Pro Forma'!C17*0.001,0) -> 68522 | E16: =+'SCHEDULE MJL-TUR12-2'!E18+'SCHEDULE MJL-TUR12-2'!E31 -> -2971 | F16: 65551
B17: 6 | C17: TRANSMISSION PLANT | D17: =ROUND('[1]Depreciation Pro Forma'!C18*0.001,0) -> 40737 | E17: =+'SCHEDULE MJL-TUR12-2'!E19+'SCHEDULE MJL-TUR12-2'!E32 -> 7360 | F17: 48097
B18: 7 | C18: DISTRIBUTION PLANT | D18: =ROUND('[1]Depreciation Pro Forma'!C19*0.001,0) -> 209517 | E18: =+'SCHEDULE MJL-TUR12-2'!E20+'SCHEDULE MJL-TUR12-2'!E33 -> 18379 | F18: 227896
B19: 8 | C19: GENERAL PLANT | D19: =ROUND('[1]Depreciation Pro Forma'!C20*0.001,0) -> 36499 | E19: =+'SCHEDULE MJL-TUR12-2'!E21+'SCHEDULE MJL-TUR12-2'!E34+'SCHEDULE MJL-TUR12-2'!E46 -> 13510 | F19: 50009
B20: 9 | C20: PISA | D20: =ROUND(SUM('[1]Depreciation Pro Forma'!C21:C23)*0.001,0) -> -60981 | E20: =+'SCHEDULE MJL-TUR12-2'!E39 -> 60981 | F20: 0
B21: 10 | C21: ICC DEPRECIATION | D21: =ROUND('[1]Depreciation Pro Forma'!C24*0.001,0) -> 0 | E21: =+'SCHEDULE MJL-TUR12-2'!E22 -> -1922 | F21: =SUM(D21:E21) -> -1922
B23: =1+B21 -> 11 | C23: TOTAL DEPRECIATION EXPENSE | D23: =SUM(D12:D22) -> 579431 | E23: =SUM(E12:E22) -> 135066 | F23: =SUM(F12:F22) -> 714497
C25: PLANT AMORTIZATION:
B26: =1+B23 -> 12 | C26: INTANGIBLE PLANT | D26: =ROUND(SUM('[1]Depreciation Pro Forma'!C29,'[1]Depreciation Pro Forma'!C33,'[1]Depreciation Pro Forma'!$C$34)*0.001,0) -> 80748 | E26: =+'SCHEDULE MJL-TUR12-2'!E23+'SCHEDULE MJL-TUR12-2'!E35 -> 15838 | F26: =SUM(D26:E26) -> 96586
B27: =1+B26 -> 13 | C27: HYDRAULIC PLANT | D27: =ROUND('[1]Depreciation Pro Forma'!C30*0.001,0) -> 756 | E27: 0 | F27: =SUM(D27:E27) -> 756
B28: =1+B27 -> 14 | C28: TRANSMISSION PLANT | D28: =ROUND('[1]Depreciation Pro Forma'!C31*0.001,0) -> 431 | E28: 0 | F28: =SUM(D28:E28) -> 431
B29: =1+B28 -> 15 | C29: GENERAL PLANT | D29: =ROUND('[1]Depreciation Pro Forma'!C32*0.001,0) -> 0 | E29: 0 | F29: =SUM(D29:E29) -> 0
B30: =1+B29 -> 16 | C30: PISA | D30: =ROUND(SUM('[1]Depreciation Pro Forma'!C35:C38)*0.001,0) -> -32983 | E30: =+'SCHEDULE MJL-TUR12-2'!E40 -> 32983 | F30: =SUM(D30:E30) -> 0
B32: =1+B30 -> 17 | C32: TOTAL PLANT AMORTIZATION | D32: =SUM(D26:D31) -> 48952 | E32: =SUM(E26:E31) -> 48821 | F32: =SUM(F26:F31) -> 97773
C34: MISC. AMORTIZATION:
B35: =1+B32 -> 18 | C35: CALLAWAY POST OPERATIONAL | D35: =ROUND('[1]Depreciation Pro Forma'!C43*0.001,0)+1 -> 3688 | E35: 0 | F35: =SUM(D35:E35) -> 3688
B36: =B35+1 -> 19 | C36: CALLAWAY LIFE EXTEN AMORT | D36: =ROUND('[1]Depreciation Pro Forma'!C44*0.001,0) -> 104 | E36: 0 | F36: 104
B37: 20 | C37: AMORT OF FUKUSHIMA STUDY COSTS | D37: =ROUND('[1]Depreciation Pro Forma'!C45*0.001,0) -> 93 | E37: 0 | F37: 93
B38: 21 | C38: SIOUX SCRUBBER CONSTRUCTION ACCOUNTING | D38: =ROUND(SUM('[1]Depreciation Pro Forma'!C46:C49)*0.001,0) -> 1196 | E38: ='SCHEDULE MJL-TUR12-2'!E49 -> 1341 | F38: 2537
B39: 22 | C39: AMORT OF STORM TRACKERS | D39: =ROUND(SUM('[1]Depreciation Pro Forma'!C50:C52)*0.001,0) -> -519 | E39: ='SCHEDULE MJL-TUR12-2'!E52 -> 519 | F39: 0
B40: 23 | C40: CUSTOMER AFFORDABILITY STUDY | D40: =ROUND(SUM('[1]Depreciation Pro Forma'!C56)*0.001,0) -> 0 | E40: ='SCHEDULE MJL-TUR12-2'!E58 -> 2177 | F40: 2177
B41: 24 | C41: AMORT. OF ENERGY EFFICIENCY REG ASSETS AND MEEIA ORDERED ADJUSTMENTS | D41: =ROUND(SUM('[1]Depreciation Pro Forma'!C57:C66)*0.001,0)+ROUND(SUM('[1]Depreciation Pro Forma'!C84)*0.001,0) -> 17440 | E41: ='SCHEDULE MJL-TUR12-2'!E55 -> -17440 | F41: =SUM(D41:E41) -> 0
B42: 25 | C42: AMORT OF LOW INCOME SURCHARGE | D42: =ROUND('[1]Depreciation Pro Forma'!C67*0.001,0) -> 1083 | E42: =+'SCHEDULE MJL-TUR12-2'!E60 -> 917 | F42: 2000
B43: 26 | C43: AMORT OF EXTENDED REGULATORY ITEMS | D43: =ROUND(SUM('[1]Depreciation Pro Forma'!C68:C70)*0.001,0) -> -4417 | E43: ='SCHEDULE MJL-TUR12-2'!E62 -> 99 | F43: -4318
B44: 27 | C44: PISA AMORTIZATION | D44: =ROUND(SUM('[1]Depreciation Pro Forma'!C74:C76)*0.001,0) -> 0 | E44: ='SCHEDULE MJL-TUR12-2'!E64 -> 21579 | F44: =SUM(D44:E44) -> 21579
B45: =B44+1 -> 28 | C45: EXCESS DEFERRED TRACKER AMORTIZATION | D45: =ROUND(SUM('[1]Depreciation Pro Forma'!C78:C82)*0.001,0) -> 5027 | E45: =+'SCHEDULE MJL-TUR12-2'!E66 -> -11444 | F45: -6417
B46: 29 | C46: RESRAM ADJUSTMENTS | D46: =ROUND(SUM('[1]Depreciation Pro Forma'!C85:C92)*0.001,0) -> 5475 | E46: =+'SCHEDULE MJL-TUR12-2'!E68 -> -5475 | F46: 0
B47: 30 | C47: CHARGE AHEAD CORRIDOR | D47: =ROUND(SUM('[1]Depreciation Pro Forma'!C93:C94)*0.001,0) -> 51 | E47: =+'SCHEDULE MJL-TUR12-2'!E70 -> 853 | F47: 904
B48: =B47+1 -> 31 | C48: EQUITY ISSUANCE COST AMORTIZATION | D48: =ROUND(SUM('[1]Depreciation Pro Forma'!C98:C99)*0.001,0) -> 0 | E48: ='SCHEDULE MJL-TUR12-2'!E74 -> 1811 | F48: 1811
B49: 32 | C49: MERAMEC RETIREMENT | D49: =ROUND(SUM('[1]Depreciation Pro Forma'!C100:C101)*0.001,0) -> -5077 | E49: ='SCHEDULE MJL-TUR12-2'!E76 -> 17261 | F49: 12184
B50: 33 | C50: COVID AAO | D50: =ROUND('[1]Depreciation Pro Forma'!C102*0.001,0)+ROUND('[1]Depreciation Pro Forma'!$C$103*0.001,0) -> 566 | E50: =+'SCHEDULE MJL-TUR12-2'!E72 -> 1181 | F50: 1747
B51: 34 | C51: CRITICAL NEEDS LOW INCOME PROGRAM | D51: =ROUND('[1]Depreciation Pro Forma'!C104*0.001,0) -> 21 | E51: =+'SCHEDULE MJL-TUR12-2'!E78 -> 229 | F51: 250
B52: 35 | C52: REHOUSING PILOT LOW INCOME PROGRAM | D52: =ROUND('[1]Depreciation Pro Forma'!C105*0.001,0) -> 21 | E52: =+'SCHEDULE MJL-TUR12-2'!E80 -> 229 | F52: 250
B53: 36 | C53: PROPERTY TAX TRACKER | D53: =ROUND('[1]Depreciation Pro Forma'!C106*0.001,0) -> 0 | E53: =+'SCHEDULE MJL-TUR12-2'!E82 -> 1122 | F53: 1122
B54: 37 | C54: MERAMEC INVENTORY WRITE-OFF | D54: =ROUND('[1]Depreciation Pro Forma'!C96*0.001,0) -> 0 | E54: =+'SCHEDULE MJL-TUR12-2'!E84 -> 960 | F54: 960
B55: 38 | C55: TOTAL MISC AMORTIZATION | D55: =SUM(D35:D54) -> 24752 | E55: =SUM(E35:E54) -> 15919 | F55: =SUM(F35:F54) -> 40671
B57: =1+B55 -> 39 | C57: TOTAL DEPR & AMORTIZATION EXPENSE | D57: =+D23+D32+D55 -> 653135 | E57: =+E23+E32+E55 -> 199806 | F57: =+F23+F32+F55 -> 852941
B59: =1+B57 -> 40 | C59: (1) See SCHEDULE MJL-TUR12-2 for explanation of the adjustments.

Sheet SCHEDULE MJL-TUR12-2
A1: AMEREN MISSOURI
A2: ELECTRIC DEPRECIATION & AMORTIZATION EXPENSE PRO FORMA ADJUSTMENTS
A3: ='SCHEDULE MJL-TUR5'!A3 -> FOR THE TWELVE MONTHS ENDED DECEMBER 31, 2022
A4: ($000)
E7: PRO FORMA
A8: LINE | B8: ITEM NO. | C8: DESCRIPTION | E8: ADJUSTMENTS
B9: (A) | C9: (B) | E9: (C)
A11: 1 | B11: -1 | C11: To reflect the book depreciation annualized for the plant in service depreciable balances at March 31, 2022 and depreciation expense for additions to plant in service from April 2022 through December 2022.
A12: =1+A11 -> 2
A13: =1+A12 -> 3
A15: =1+A13 -> 4 | C15: Change in Depr. Exp. - Steam | E15: =ROUND(SUM('[1]Depreciation Pro Forma'!F13)*0.001,0) -> 32232
A16: =1+A15 -> 5 | C16: Change in Depr. Exp. - Nuclear | E16: =ROUND('[1]Depreciation Pro Forma'!F14*0.001,0) -> 1554
A17: 6 | C17: Change in Depr. Exp. - Hydro | E17: =ROUND('[1]Depreciation Pro Forma'!F16*0.001,0) -> 2776
A18: 7 | C18: Change in Depr. Exp. - Other Prod. | E18: =ROUND('[1]Depreciation Pro Forma'!F17*0.001,0) -> -1723
A19: 8 | C19: Change in Depr. Exp. - Transmission | E19: =ROUND('[1]Depreciation Pro Forma'!F18*0.001,0) -> 568
A20: 9 | C20: Change in Depr. Exp. - Distribution | E20: =ROUND('[1]Depreciation Pro Forma'!F19*0.001,0) -> 7796
A21: 10 | C21: Change in Depr. Exp. - General Plant | E21: =ROUND('[1]Depreciation Pro Forma'!F20*0.001,0) -> 22581
A22: 11 | C22: Change in Depr. Exp. - Incentive Comp Capitalized | E22: =ROUND('[1]Depreciation Pro Forma'!F24*0.001,0) -> -1922
A23: 12 | C23: Change in Amor. Exp. - Intangible Plant | E23: =ROUND('[1]Depreciation Pro Forma'!$F$29*0.001,0)+ROUND('[1]Depreciation Pro Forma'!$F$33*0.001,0)+ROUND('[1]Depreciation Pro Forma'!$F$34*0.001,0) -> 15838
A24: 13 | C24: Total Increase in Depreciation Expense | E24: =SUM(E15:E23) -> 79700
A26: =1+A24 -> 14 | B26: -2 | C26: To reflect change in depreciation rates per testimony of Company witness John Spanos.
A28: =1+A26 -> 15 | C28: Increase in Depr. Exp. - Steam | E28: =ROUND('[1]Depreciation Pro Forma'!H13*0.001,0) -> -7702
A29: =1+A28 -> 16 | C29: Increase in Depr. Exp. - Nuclear | E29: =ROUND('[1]Depreciation Pro Forma'!H14*0.001,0) -> 10593
A30: 17 | C30: Increase in Depr. Exp. - Hydro | E30: =ROUND('[1]Depreciation Pro Forma'!H16*0.001,0) -> 382
A31: 18 | C31: Increase in Depr. Exp. - Other Prod. | E31: =ROUND('[1]Depreciation Pro Forma'!H17*0.001,0) -> -1248
A32: 19 | C32: Increase in Depr. Exp. - Transmission | E32: =ROUND('[1]Depreciation Pro Forma'!H18*0.001,0) -> 6792
A33: 20 | C33: Increase in Depr. Exp. - Distribution | E33: =ROUND('[1]Depreciation Pro Forma'!H19*0.001,0) -> 10583
A34: 21 | C34: Increase in Depr. Exp. - General Plant | E34: =ROUND('[1]Depreciation Pro Forma'!H20*0.001,0) -> 2715
A35: 22 | C35: Increase in Amort. Exp. - Intangible Plant | E35: =ROUND('[1]Depreciation Pro Forma'!H29*0.001,0) -> 0
A36: 23 | C36: Total Increase in Depreciation Expense | E36: =SUM(E28:E35) -> 22115
A38: =1+A36 -> 24 | B38: -3 | C38: To eliminate PISA deferral
A39: =1+A38 -> 25 | C39: Depreciation | E39: =ROUND(SUM('[1]Depreciation Pro Forma'!F21:F23)*0.001,0) -> 60981
A40: 26 | C40: Amortization | E40: =ROUND(SUM('[1]Depreciation Pro Forma'!F35:F38)*0.001,0) -> 32983
A41: 27 | E41: =SUM(E39:E40) -> 93964
A43: =1+A41 -> 28 | B43: -4 | C43: To reduce depreciation expense charged to O&M
A45: =1+A43 -> 29 | C45: Decrease in Depr. Exp. - Steam | E45: =ROUND('[1]Depreciation Pro Forma'!I13*0.001,0) -> -106
A46: =1+A45 -> 30 | C46: Decrease in Depr. Exp. - General Plant | E46: =ROUND('[1]Depreciation Pro Forma'!I20*0.001,0) -> -11786
A47: =1+A46 -> 31 | C47: Total Decrease in Depreciation Expense | E47: =SUM(E45:E46) -> -11892
A49: =1+A47 -> 32 | B49: -5 | C49: To eliminate the amortizations of the Sioux Scrubber Construction Accounting | E49: =ROUND(SUM('[1]Depreciation Pro Forma'!F46:F49)*0.001,0) -> 1341
A50: =1+A49 -> 33 | C50: contra regulatory assets.
A52: =1+A50 -> 34 | B52: -6 | C52: To eliminate the amortization relating to expiring amortizations combined and netted at Adjustment 10. | E52: =ROUND(SUM('[1]Depreciation Pro Forma'!F52)*0.001,0) -> 519
A53: =1+A52 -> 35
A55: =1+A53 -> 36 | B55: -7 | C55: To eliminate the amortizations and deferrals made under the MEEIA Rider, including MEEIA ordered adjustments. | E55: =ROUND(SUM('[1]Depreciation Pro Forma'!F57:F66)*0.001,0)+ROUND('[1]Depreciation Pro Forma'!F84*0.001,0) -> -17440
A56: =1+A55 -> 37
A58: =1+A56 -> 38 | B58: -8 | C58: To reflect amortization of customer affordability study costs. | E58: =ROUND('[1]Depreciation Pro Forma'!F56*0.001,0) -> 2177
A60: =1+A58 -> 39 | B60: -9 | C60: To reflect annualization of amortization of Low Income Surcharge. | E60: =ROUND('[1]Depreciation Pro Forma'!F67*0.001,0) -> 917
A62: =1+A60 -> 40 | B62: -10 | C62: To amortize extended regulatory amortization items. | E62: =ROUND(SUM('[1]Depreciation Pro Forma'!F68:F70)*0.001,0) -> 99
A64: =1+A62 -> 41 | B64: -11 | C64: To reflect amortization of PISA. | E64: =ROUND(SUM('[1]Depreciation Pro Forma'!F74:F76)*0.001,0) -> 21579
A66: =1+A64 -> 42 | B66: -12 | C66: To eliminate accumulation and reflect annualized amortization of Excess Deferred Tracker. | E66: =ROUND(SUM('[1]Depreciation Pro Forma'!F78:F82)*0.001,0) -> -11444
A68: =1+A66 -> 43 | B68: -13 | C68: To eliminate RESRAM activity. | E68: =ROUND(SUM('[1]Depreciation Pro Forma'!F85:F92)*0.001,0) -> -5475
A70: =1+A68 -> 44 | B70: -14 | C70: To reflect Charge Ahead Corridor amortization. | E70: =ROUND(SUM('[1]Depreciation Pro Forma'!F93:F94)*0.001,0) -> 853
A72: =1+A70 -> 45 | B72: -15 | C72: To reflect COVID AAO amortization. | E72: =ROUND('[1]Depreciation Pro Forma'!F102*0.001,0)+ROUND('[1]Depreciation Pro Forma'!$F$103*0.001,0) -> 1181
A74: =1+A72 -> 46 | B74: -16 | C74: To eliminate accumulation and to reflect annualized amortization of Equity Issuance Costs. | E74: =ROUND(SUM('[1]Depreciation Pro Forma'!F98:F99)*0.001,0) -> 1811
A76: =1+A74 -> 47 | B76: -17 | C76: To eliminate accumulation and reflect annualized amortization of Meramec Retirement Asset. | E76: =ROUND(SUM('[1]Depreciation Pro Forma'!F100:F101)*0.001,0)+1 -> 17261
A78: =1+A76 -> 48 | B78: -18 | C78: To annualize amortization of Critical Needs Low Income Program. | E78: =ROUND('[1]Depreciation Pro Forma'!F104*0.001,0) -> 229
A80: =1+A78 -> 49 | B80: -19 | C80: To annualize amortization of Rehousing Pilot Low Income Program. | E80: =ROUND('[1]Depreciation Pro Forma'!F105*0.001,0) -> 229
A82: =1+A80 -> 50 | B82: -20 | C82: To reflect amortization of Property Tax Tracker. | E82: =ROUND('[1]Depreciation Pro Forma'!F106*0.001,0) -> 1122
A84: =1+A82 -> 51 | B84: -21 | C84: To reflect amortization of Meramec Inventory Write-Off. | E84: =ROUND('[1]Depreciation Pro Forma'!F96*0.001,0) -> 960
A87: =1+A84 -> 52 | B87: TOTAL PRO FORMA ADJUSTMENTS: DEPRECIATION & AMORTIZATION | E87: =SUM(E24,E36,E41,E47:E86) -> 199806

Sheet SCHEDULE MJL-TUR13-1
B1: AMEREN MISSOURI
B2: TAXES OTHER THAN INCOME TAXES
B3: ='SCHEDULE MJL-TUR5'!A3 -> FOR THE TWELVE MONTHS ENDED DECEMBER 31, 2022
B4: ($000)
E6: TOTAL | G6: PRO FORMA
E7: PER | F7: PRO FORMA | G7: ELECTRIC
B8: LINE | C8: DESCRIPTION | E8: BOOKS | F8: ADJUSTMENTS(1) | G8: TOTALS
C9: (A) | E9: (B) | F9: (C) | G9: (D)
C11: PAYROLL TAXES
B12: 1 | C12: F.I.C.A. | D12: 165021 | E12: =ROUND([1]OtherTax!C10*0.001,0) -> 20267 | F12: =ROUND(SUM([1]OtherTax!D10:H10)*0.001,0) -> 1547 | G12: =E12+F12 -> 21814
B13: =1+B12 -> 2 | C13: FEDERAL UNEMPLOYMENT | E13: =ROUND([1]OtherTax!C11*0.001,0) -> 181 | F13: =ROUND(SUM([1]OtherTax!D11:H11)*0.001,0) -> 0 | G13: =E13+F13 -> 181
B14: =1+B13 -> 3 | C14: MISSOURI UNEMPLOYMENT | E14: =ROUND([1]OtherTax!C12*0.001,0) -> -2 | F14: =ROUND(SUM([1]OtherTax!D12:H12)*0.001,0) -> 0 | G14: =E14+F14 -> -2
B15: =1+B14 -> 4 | C15: ILLINOIS UNEMPLOYMENT | E15: =ROUND([1]OtherTax!C13*0.001,0) -> 18 | F15: =ROUND(SUM([1]OtherTax!D13:H13)*0.001,0) -> 0 | G15: 18
B16: =1+B15 -> 5 | C16: IOWA UNEMPLOYMENT | E16: =ROUND([1]OtherTax!C14*0.001,0) -> 5 | F16: =ROUND(SUM([1]OtherTax!D14:H14)*0.001,0) -> 0 | G16: 5
B17: =1+B16 -> 6 | C17: OTHER STATES UNEMPLOYMENT | E17: =ROUND([1]OtherTax!C15*0.001,0) -> 1 | F17: =ROUND(SUM([1]OtherTax!D15:H15)*0.001,0) -> 0 | G17: 1
B18: =1+B17 -> 7 | C18: ST. LOUIS EMPLOYMENT TAX | E18: =ROUND([1]OtherTax!C16*0.001,0) -> 327 | F18: =ROUND(SUM([1]OtherTax!D16:H16)*0.001,0) -> 0 | G18: 327
B19: =1+B18 -> 8 | C19: TOTAL PAYROLL TAXES | E19: =SUM(E12:E18) -> 20797 | F19: =SUM(F12:F18) -> 1547 | G19: =SUM(G12:G18) -> 22344
C21: R.E., P.P. & CORP FRANCHISE
B22: =1+B19 -> 9 | C22: MISSOURI R.E., & P.P. | D22: 685910 | E22: =ROUND([1]OtherTax!C20*0.001,0) -> 173017 | F22: =ROUND(SUM([1]OtherTax!D20:H20)*0.001,0) -> -148 | G22: =SUM(E22:F22) -> 172869
B23: =1+B22 -> 10 | C23: ILLINOIS R.E., & P.P. | E23: =ROUND([1]OtherTax!C21*0.001,0) -> 4007 | F23: =ROUND(SUM([1]OtherTax!D21:H21)*0.001,0) -> 0 | G23: 4007
B24: 11 | C24: IOWA R.E., & P.P. | E24: =ROUND([1]OtherTax!C22*0.001,0) -> 1360 | F24: =ROUND(SUM([1]OtherTax!D22:H22)*0.001,0) -> 0 | G24: 1360
B25: 12 | C25: OTHER STATES R.E. & P.P. | E25: =ROUND([1]OtherTax!C23*0.001,0) -> 20 | F25: =ROUND(SUM([1]OtherTax!D23:H23)*0.001,0) -> 0 | G25: 20
B26: 13 | C26: R.E. TAXES CAPITALIZED | E26: =ROUND([1]OtherTax!C24*0.001,0) -> -7459 | F26: =ROUND(SUM([1]OtherTax!D24:H24)*0.001,0) -> 0 | G26: -7459
B27: 14 | C27: TRANSFER TO GAS | D27: 762523 | E27: =ROUND([1]OtherTax!C25*0.001,0) -> -185 | F27: =ROUND(SUM([1]OtherTax!D25:H25)*0.001,0) -> 0 | G27: -185
B28: 15 | C28: TRANSFER TO NON UTILITY | E28: =ROUND([1]OtherTax!C26*0.001,0) -> -102 | F28: =ROUND(SUM([1]OtherTax!D26:H26)*0.001,0) -> 0 | G28: -102
B29: =1+B28 -> 16 | C29: TOTAL R.E., P.P. & CORP FRANCHISE | D29: =SUM(D22:D27) -> 1448433 | E29: =SUM(E22:E28) -> 170658 | F29: =SUM(F22:F28) -> -148 | G29: 170510
B31: =1+B29 -> 17 | C31: MUNICIPAL GROSS RECEIPTS | E31: =ROUND([1]OtherTax!C29*0.001,0) -> 152545 | F31: =ROUND(SUM([1]OtherTax!D29:H29)*0.001,0) -> -152545 | G31: =SUM(E31:F31) -> 0
C33: MISCELLANEOUS
B34: =1+B31 -> 18 | C34: MISSOURI CORP FRANCHISE | E34: =ROUND([1]OtherTax!C32*0.001,0) -> 0 | F34: =ROUND(SUM([1]OtherTax!D32:H32)*0.001,0) -> 0 | G34: =E34+F34 -> 0
B35: =1+B34 -> 19 | C35: ILLINOIS CORP FRANCHISE | E35: =ROUND([1]OtherTax!C33*0.001,0) -> 113 | F35: =ROUND(SUM([1]OtherTax!D33:H33)*0.001,0) -> 0 | G35: =E35+F35 -> 113
B36: 20 | C36: IOWA CORP FRANCHISE | E36: =ROUND([1]OtherTax!C34*0.001,0) -> 0 | F36: =ROUND(SUM([1]OtherTax!D34:H34)*0.001,0) -> 0
B37: 21 | C37: FED. EXCISE TAX-HEAVY VEH. USE TAX | E37: =ROUND([1]OtherTax!C35*0.001,0) -> 20 | F37: =ROUND(SUM([1]OtherTax!D35:H35)*0.001,0) -> 0 | G37: =E37+F37 -> 20
B38: 22 | C38: ST. LOUIS EARNINGS | E38: =ROUND([1]OtherTax!C36*0.001,0) -> 0 | F38: =ROUND(SUM([1]OtherTax!D36:H36)*0.001,0) -> 0
B39: 23 | C39: MO. EXCISE - NEIL INS. PREM. | D39: 107 | E39: =ROUND([1]OtherTax!C37*0.001,0) -> 0 | F39: =ROUND(SUM([1]OtherTax!D37:H37)*0.001,0) -> 0 | G39: =E39+F39 -> 0
B40: 24 | C40: MISCELLANEOUS | E40: =ROUND([1]OtherTax!C38*0.001,0) -> 31 | F40: =ROUND(SUM([1]OtherTax!D38:H38)*0.001,0) -> 0 | G40: =E40+F40 -> 31
B41: 25 | C41: TOTAL MISCELLANEOUS | E41: =SUM(E34:E40) -> 164 | F41: =SUM(F34:F40) -> 0 | G41: =SUM(G34:G40) -> 164
B44: =1+B41 -> 26 | C44: TOTAL TAXES OTHER THAN INCOME TAXES | E44: =E19+E29+E31+E41 -> 344164 | F44: =F19+F29+F31+F41 -> -151146 | G44: =G19+G29+G31+G41 -> 193018
B46: =1+B44 -> 27 | C46: (1) See SCHEDULE MJL-TUR13-2 for explanation of the adjustments.

Sheet SCHEDULE MJL-TUR13-2
A1: AMEREN MISSOURI
A2: TAXES OTHER THAN INCOME
A3: PRO FORMA ADJUSTMENTS
A4: ='SCHEDULE MJL-TUR5'!A3 -> FOR THE TWELVE MONTHS ENDED DECEMBER 31, 2022
A5: ($000)
K7: PRO FORMA
A8: LINE | B8: ITEM NO. | C8: DESCRIPTION | K8: AMOUNT
B9: (A) | C9: (B) | K9: (C)
A11: 1 | B11: -1 | C11: Increase F.I.C.A. taxes to reflect the pro forma wage adjustments. | K11: =ROUND([1]OtherTax!$D$10*0.001,0) -> 1547
A13: 2 | B13: -2 | C13: Property tax adjustment for Meramec. | K13: =ROUND(SUM([1]OtherTax!E20:E26)*0.001,0) -> -1813
A15: 3 | B15: -3 | C15: Eliminate the property taxes on future use plant, as this investment is excluded from rate base. | K15: =ROUND([1]OtherTax!$F$20*0.001,0) -> -579
A16: =1+A15 -> 4
A18: =1+A16 -> 5 | B18: -4 | C18: Eliminate property tax deferrals. | K18: =ROUND([1]OtherTax!$H$20*0.001,0) -> 2244
A20: =1+A18 -> 6 | B20: -5 | C20: Eliminate gross receipts tax expenses as they are a pass through tax. | K20: =ROUND([1]OtherTax!$G$29*0.001,0) -> -152545
A22: =1+A20 -> 7 | C22: Total Pro Forma Adjustments to Taxes Other Than Income | K22: =SUM(K10:K21) -> -151146

Sheet SCHEDULE MJL-TUR14
A1: AMEREN MISSOURI
A2: ="TOTAL ELECTRIC INCOME TAXES AT THE PROPOSED RETURN " & 'SCHEDULE MJL-TUR5'!A3 -> TOTAL ELECTRIC INCOME TAXES AT THE PROPOSED RETURN FOR THE TWELVE MONTHS ENDED DECEMBER 31, 2022
A3: ($000)
E6: TOTAL
A7: LINE | C7: DESCRIPTION | E7: ELECTRIC
C8: (A) | D8: (B) | E8: (C)
A10: 1 | C10: TOTAL ELECTRIC NET INCOME FROM OPERATIONS | E10: =ROUND([1]IncomeTaxClaimed!$E$8*0.001,0) -> 832935
C12: ADD
A13: =1+A10 -> 2 | C13: CURRENT INCOME TAXES | E13: =ROUND([1]IncomeTaxClaimed!$E$12*0.001,0) -> 92246
A14: =1+A13 -> 3 | C14: DEFERRED INCOME TAXES
A15: =1+A14 -> 4 | C15: EXCESS DEFERRED INCOME TAX AMORTIZATION | E15: =ROUND([1]IncomeTaxClaimed!$E$14*0.001,0)+1 -> -85452
A16: =1+A15 -> 5 | C16: I.T.C. AMORTIZATION | E16: =ROUND([1]IncomeTaxClaimed!$E$15*0.001,0) -> -4125
A18: =1+A16 -> 6 | C18: TOTAL ELECTRIC NET INCOME BEFORE INCOME TAX | E18: =SUM(E10:E16) -> 835604
C20: ADDITIONS TO NET INCOME BEFORE INCOME TAX
A21: =1+A18 -> 7 | C21: BOOK DEPRECIATION | E21: =ROUND([1]IncomeTaxClaimed!$E$20*0.001,0) -> 714497
A22: =1+A21 -> 8 | C22: BOOK DEPRECIATION CHARGED TO O&M | E22: =ROUND([1]IncomeTaxClaimed!$E$21*0.001,0) -> 3843
A23: 9 | C23: INTANGIBLE AMORTIZATIONS | E23: =ROUND([1]IncomeTaxClaimed!$E$22*0.001,0) -> 96586
A24: 10 | C24: HYDRAULIC AMORTIZATIONS | E24: =ROUND([1]IncomeTaxClaimed!$E$23*0.001,0) -> 756
A25: 11 | C25: TRANSMISSION AMORTIZATIONS | E25: =ROUND([1]IncomeTaxClaimed!$E$24*0.001,0) -> 431
A26: 12 | C26: CALLAWAY POST OPERATIONAL COSTS | E26: =ROUND([1]IncomeTaxClaimed!$E$25*0.001,0) -> 3687
A27: 13 | C27: NONDEDUCTIBLE PARKING LOT EXPENSE | E27: =ROUND([1]IncomeTaxClaimed!$E$26*0.001,0) -> 354
A29: =1+A27 -> 14 | C29: TOTAL ADDITIONS | E29: =SUM(E21:E28) -> 820154
C31: SUBTRACTIONS TO NET INCOME BEFORE INCOME TAX
A32: =1+A29 -> 15 | C32: INTEREST ON DEBT (1) | E32: =ROUND([1]IncomeTaxClaimed!$E$31*0.001,0) -> 215856
A33: =1+A32 -> 16 | C33: TAX STRAIGHT LINE | E33: =ROUND([1]IncomeTaxClaimed!$E$32*0.001,0) -> 801311
A34: =1+A33 -> 17 | C34: PRODUCTION DEDUCTION | E34: =ROUND([1]IncomeTaxClaimed!$E$33*0.001,0) -> 0
A35: =1+A34 -> 18 | C35: NUCLEAR DECOMMISSIONING | E35: =ROUND([1]IncomeTaxClaimed!$E$34*0.001,0) -> 6759
A36: =1+A33 -> 17 | C36: RESTRICTED STOCK UNITS | E36: =ROUND([1]IncomeTaxClaimed!$E$35*0.001,0) -> 616
A37: =1+A34 -> 18 | C37: PREFERRED DIVIDEND DEDUCTION | E37: =ROUND([1]IncomeTaxClaimed!$E$36*0.001,0) -> 692
A39: =1+A37 -> 19 | C39: TOTAL SUBTRACTIONS | E39: =SUM(E32:E37) -> 1025234
A41: =1+A39 -> 20 | C41: TOTAL ELECTRIC NET TAXABLE INCOME | E41: =E18+E29-E39 -> 630524
C43: FEDERAL INCOME TAX
A44: =1+A41 -> 21 | C44: NET TAXABLE INCOME | E44: =E41 -> 630524
A45: =1+A44 -> 22 | C45: DEDUCT MISSOURI INCOME TAX | E45: =ROUND([1]IncomeTaxClaimed!$E$46*0.001,0) -> 23853
A46: =1+A45 -> 23 | C46: DEDUCT CITY EARNINGS TAX | E46: =+E69 -> -16
A47: =1+A46 -> 24 | C47: FEDERAL TAXABLE INCOME | E47: =E44-E45-E46 -> 606687
A49: =1+A47 -> 25 | C49: =" FEDERAL INCOME TAX" -> FEDERAL INCOME TAX | D49: =[1]IncomeTaxClaimed!$D$50 -> 0.21 | E49: =ROUND(E47*D49,0) -> 127404
C50: LESS TAX CREDITS
A51: =1+A49 -> 26 | C51: RESEARCH AND OTHER MISC. CREDITS | E51: =ROUND([1]IncomeTaxClaimed!$E$52*0.001,0) -> 2120
A52: =1+A51 -> 27 | C52: PRODUCTION TAX CREDIT | E52: =ROUND([1]IncomeTaxClaimed!$E$53*0.001,0) -> 56875
A53: =1+A52 -> 28 | C53: TOTAL ELECTRIC FEDERAL INCOME TAX | E53: =+E49-E51-E52 -> 68409
C55: STATE INCOME TAXES
A56: =1+A53 -> 29 | C56: NET TAXABLE INCOME | E56: =E41 -> 630524
A57: =1+A56 -> 30 | C57: DEDUCT 50% OF FEDERAL INCOME TAX | E57: =ROUND(E53*0.5,0) -> 34205
A58: =1+A57 -> 31 | C58: DEDUCT CITY EARNINGS TAX | E58: =+E69 -> -16
A59: =1+A58 -> 32 | C59: MISSOURI TAXABLE INCOME | E59: =E56-E57-E58 -> 596335
A61: =1+A59 -> 33 | C61: TOTAL ELECTRIC MISSOURI INCOME TAX | D61: =[1]IncomeTaxClaimed!$D$63 -> 0.04 | E61: =ROUND(E59*D61,0) -> 23853
C63: CITY EARNINGS TAX
A64: =1+A61 -> 34 | C64: NET TAXABLE INCOME | E64: =+E41 -> 630524
A65: =1+A64 -> 35 | C65: LESS TAX ADJUSTMENTS TO INCOME | E65: =ROUND([1]IncomeTaxClaimed!$E$67*0.001,0) -> -643862
A66: =1+A65 -> 36 | C66: CITY TAXABLE INCOME | E66: =+E64+E65 -> -13338
A67: =1+A66 -> 37 | C67: CITY EARNINGS TAX | D67: =[1]IncomeTaxClaimed!$D$69 -> 0.001164 | E67: =ROUND(E66*D67,0) -> -16
A68: =1+A67 -> 38 | C68: LESS: TAX CREDIT | E68: =ROUND([1]IncomeTaxClaimed!$E$70*0.001,0) -> 0
A69: =1+A68 -> 39 | C69: TOTAL ELECTRIC NET CITY EARNINGS TAX | E69: =+E67-E68 -> -16
A71: =1+A69 -> 40 | C71: TOTAL ELECTRIC CURRENT INCOME TAXES | E71: =E53+E61+E69 -> 92246
C73: DEFERRED INCOME TAXES:
A74: =1+A71 -> 41 | C74: DEFERRED INCOME TAX EXPENSE | E74: =+E15 -> -85452
A75: =1+A74 -> 42 | C75: I.T.C. AMORTIZATION | E75: =+E16 -> -4125
A76: =1+A75 -> 43 | C76: TOTAL ELECTRIC DEFERRED INCOME TAX | E76: =SUM(E74:E75) -> -89577
A78: =1+A76 -> 44 | C78: TOTAL ELECTRIC CURRENT & DEFERRED INCOME TAX | E78: =+E71+E76 -> 2669
A81: =1+A78 -> 45 | C81: (1) RATE BASE X EMBEDDED
A82: =1+A81 -> 46 | C82: COST OF DEBT. | D82: =[1]CostofCap!$I$12+[1]CostofCap!$I$14 -> 0.01862

Sheet SCHEDULE MJL-TUR15
B1: AMEREN MISSOURI
B2: TOTAL ELECTRIC NET ORIGINAL COST RATE BASE AND REVENUE REQUIREMENT
B3: ='SCHEDULE MJL-TUR5'!A3 -> FOR THE TWELVE MONTHS ENDED DECEMBER 31, 2022
B4: ($000)
F6: TOTAL
F7: ELECTRIC
B8: LINE | C8: DESCRIPTION | D8: REFERENCE | F8: AMOUNT
C9: (A) | D9: (B) | F9: (C)
C11: A. TOTAL ELECTRIC NET ORIGINAL COST RATE BASE
B13: 1 | C13: ORIGINAL COST OF PLANT IN SERVICE | D13: SCHEDULE MJL-TUR1 | F13: =+'SCHEDULE MJL-TUR1'!G34 -> 22716560
B14: =1+B13 -> 2 | C14: LESS: RESERVES FOR DEPRECIATION & AMORTIZATION | D14: SCHEDULE MJL-TUR2 | F14: =+'SCHEDULE MJL-TUR2'!G34 -> 9084597
B15: =1+B14 -> 3 | C15: NET ORIGINAL COST OF PLANT | F15: =F13-F14 -> 13631963
B16: 4 | C16: AVERAGE FUEL AND MATERIALS AND SUPPLIES | D16: SCHEDULE MJL-TUR3 | F16: =+'SCHEDULE MJL-TUR3'!F23 -> 596945
B17: 5 | C17: AVERAGE PREPAYMENTS | D17: SCHEDULE MJL-TUR4 | F17: =+'SCHEDULE MJL-TUR4'!G26 -> 15552
B18: 6 | C18: CASH WORKING CAPITAL (LEAD/LAG) | D18: SCHEDULE MJL-TUR5 | F18: ='SCHEDULE MJL-TUR5'!J47 -> -16167
B19: 7 | C19: FEDERAL INCOME TAX CASH REQUIREMENT | D19: SCHEDULE MJL-TUR6 | F19: ='SCHEDULE MJL-TUR6'!J14 -> -184
B20: 8 | C20: STATE INCOME TAX CASH REQUIREMENT | D20: SCHEDULE MJL-TUR6 | F20: ='SCHEDULE MJL-TUR6'!J16 -> -64
B21: 9 | C21: CITY EARNINGS TAX CASH REQUIREMENT | D21: SCHEDULE MJL-TUR6 | F21: ='SCHEDULE MJL-TUR6'!J22 -> 10
B22: =1+B21 -> 10 | C22: INTEREST EXPENSE CASH REQUIREMENT | D22: SCHEDULE MJL-TUR6 | F22: ='SCHEDULE MJL-TUR6'!J24 -> -32142
B23: =1+B22 -> 11 | C23: INDIANA STATE TAX OFFSET | D23: SCHEDULE MJL-TUR6 | F23: ='SCHEDULE MJL-TUR6'!J18 -> 0
B24: =1+B23 -> 12 | C24: IOWA STATE TAX OFFSET | D24: SCHEDULE MJL-TUR6 | F24: ='SCHEDULE MJL-TUR6'!J20 -> 0
B25: =1+B24 -> 13 | C25: AVERAGE CUSTOMER ADVANCES FOR CONSTRUCTION | D25: SCHEDULE MJL-TUR7 | F25: ='SCHEDULE MJL-TUR7'!E13 -> -432
B26: 14 | C26: AVERAGE CUSTOMER DEPOSITS | D26: SCHEDULE MJL-TUR7 | F26: ='SCHEDULE MJL-TUR7'!E16 -> -23544
B27: =1+B26 -> 15 | C27: PENSION TRACKER REG ASSET | D27: SCHEDULE MJL-TUR8 | F27: =+'SCHEDULE MJL-TUR8'!H15 -> -42158
B28: 16 | C28: OPEB TRACKER REG LIABILITY | D28: SCHEDULE MJL-TUR8 | F28: =+'SCHEDULE MJL-TUR8'!H18 -> -14223
B29: 17 | C29: PAYS REGULATORY ASSET | D29: SCHEDULE MJL-TUR8 | F29: =+'SCHEDULE MJL-TUR8'!H21 -> 857
B30: 18 | C30: PISA REGULATORY ASSET | D30: SCHEDULE MJL-TUR8 | F30: =+'SCHEDULE MJL-TUR8'!H24 -> 416214
B31: 19 | C31: MERAMEC REGULATORY ASSET | D31: SCHEDULE MJL-TUR8 | F31: ='SCHEDULE MJL-TUR8'!H27 -> 50765
B32: 20 | C32: UNDER COLLECT AMORTIZATIONS IN RATE BASE | D32: SCHEDULE MJL-TUR8 | F32: =+'SCHEDULE MJL-TUR8'!H30 -> 161
B33: 21 | C33: PROPERTY TAX TRACKER REGULATORY ASSET | D33: SCHEDULE MJL-TUR8 | F33: =+'SCHEDULE MJL-TUR8'!H33 -> 2244
B34: 22 | C34: ACCUMULATED DEFERRED INCOME TAXES | D34: SCHEDULE MJL-TUR9 | F34: =+'SCHEDULE MJL-TUR9'!H21 -> -2993100
B36: =1+B34 -> 23 | C36: TOTAL ELECTRIC NET ORIGINAL COST RATE BASE | F36: =SUM(F15:F34) -> 11592697
C38: B. TOTAL ELECTRIC REVENUE REQUIREMENT
C40: TOTAL ELECTRIC OPERATING EXPENSES:
B41: =1+B36 -> 24 | C41: PRODUCTION | D41: SCHEDULE MJL-TUR11-1 | F41: =+'SCHEDULE MJL-TUR11-1'!CD22 -> 1277909
B42: =1+B41 -> 25 | C42: TRANSMISSION | D42: SCHEDULE MJL-TUR11-1 | F42: =+'SCHEDULE MJL-TUR11-1'!CD27 -> 114350
B43: =1+B42 -> 26 | C43: REGIONAL MARKET EXPENSES | D43: SCHEDULE MJL-TUR11-1 | F43: =+'SCHEDULE MJL-TUR11-1'!CD32 -> 6714
B44: =1+B43 -> 27 | C44: DISTRIBUTION | D44: SCHEDULE MJL-TUR11-1 | F44: =+'SCHEDULE MJL-TUR11-1'!CD37 -> 149581
B45: 28 | C45: CUSTOMER ACCOUNTS | D45: SCHEDULE MJL-TUR11-1 | F45: =+'SCHEDULE MJL-TUR11-1'!CD42 -> 55172
B46: 29 | C46: CUSTOMER SERVICE | D46: SCHEDULE MJL-TUR11-1 | F46: =+'SCHEDULE MJL-TUR11-1'!CD47 -> 20174
B47: 30 | C47: SALES | D47: SCHEDULE MJL-TUR11-1 | F47: =+'SCHEDULE MJL-TUR11-1'!CD52 -> 491
B48: 31 | C48: ADMINISTRATIVE AND GENERAL | D48: SCHEDULE MJL-TUR11-1 | F48: =+'SCHEDULE MJL-TUR11-1'!CD57 -> 102899
B49: 32 | C49: TOTAL ELECTRIC OPERATING EXPENSES | F49: =SUM(F41:F48) -> 1727290
B50: 33 | C50: DEPRECIATION AND AMORTIZATION | D50: SCHEDULE MJL-TUR12-1 | F50: ='SCHEDULE MJL-TUR12-1'!F57 -> 852941
B51: 34 | C51: TAXES OTHER THAN INCOME TAXES | D51: SCHEDULE MJL-TUR13-1 | F51: ='SCHEDULE MJL-TUR13-1'!G44 -> 193018
C52: INCOME TAXES-BASED ON PROPOSED RATE OF RETURN
B53: =1+B51 -> 35 | C53: FEDERAL | D53: SCHEDULE MJL-TUR14 | F53: ='SCHEDULE MJL-TUR14'!E53 -> 68409
B54: =1+B53 -> 36 | C54: STATE | D54: SCHEDULE MJL-TUR14 | F54: ='SCHEDULE MJL-TUR14'!E61 -> 23853
B55: =1+B54 -> 37 | C55: CITY EARNINGS | D55: SCHEDULE MJL-TUR14 | F55: ='SCHEDULE MJL-TUR14'!E69 -> -16
B56: =1+B55 -> 38 | C56: TOTAL INCOME TAXES | F56: =SUM(F53:F55) -> 92246
C57: DEFERRED INCOME TAXES | E57: =+ROUND('[1]Depreciation Pro Forma'!$J$20*0.001,0)+ROUND('[1]Depreciation Pro Forma'!$J$21*0.001,0) -> 0
B58: =1+B56 -> 39 | C58: EXCESS DEFERRED INCOME TAX AMORTIZATION | D58: SCHEDULE MJL-TUR14 | F58: ='SCHEDULE MJL-TUR14'!E74 -> -85452
B59: =1+B58 -> 40 | C59: I.T.C. AMORTIZATION | D59: SCHEDULE MJL-TUR14 | F59: ='SCHEDULE MJL-TUR14'!E75 -> -4125
B60: =1+B59 -> 41 | C60: TOTAL DEFERRED INCOME TAXES | F60: =SUM(F58:F59) -> -89577
B62: =1+B60 -> 42 | C62: ="RETURN (RATE BASE * "&TEXT(D62,"0.000%")&")" -> RETURN (RATE BASE * 7.185%) | D62: =[1]CostofCap!$I$20 -> 0.07185 | F62: =ROUND(D62*F36,0) -> 832935
B64: =1+B62 -> 43 | C64: TOTAL ELECTRIC REVENUE REQUIREMENT | F64: =+F49+F50+F51+F56+F60+F62 -> 3608853

Sheet SCHEDULE MJL-TUR16
A1: AMEREN MISSOURI
A2: ="INCREASE REQUIRED TO PRODUCE "& TEXT('SCHEDULE MJL-TUR15'!D62,"0.000%") &" RETURN ON " -> INCREASE REQUIRED TO PRODUCE 7.185% RETURN ON
A3: TOTAL ELECTRIC NET ORIGINAL COST RATE BASE
A4: ='SCHEDULE MJL-TUR5'!A3 -> FOR THE TWELVE MONTHS ENDED DECEMBER 31, 2022
C5: ($000)
E8: TOTAL
E9: ELECTRIC
A10: LINE | C10: DESCRIPTION | E10: AMOUNT
C11: (A) | E11: (B)
A13: 1 | C13: TOTAL ELECTRIC NET ORIGINAL COST RATE BASE | E13: ='SCHEDULE MJL-TUR15'!F36 -> 11592697
C15: TOTAL ELECTRIC REVENUE REQUIREMENT:
A16: =1+A13 -> 2 | C16: ="RETURN AT PROPOSED RATE ("&TEXT('SCHEDULE MJL-TUR15'!D62,"0.000%")&")" -> RETURN AT PROPOSED RATE (7.185%) | E16: ='SCHEDULE MJL-TUR15'!F62 -> 832935
A17: =1+A16 -> 3 | C17: OPERATING AND MAINTENANCE EXPENSES | E17: ='SCHEDULE MJL-TUR15'!F49 -> 1727290
A18: 4 | C18: DEPRECIATION AND AMORTIZATION | E18: ='SCHEDULE MJL-TUR15'!F50 -> 852941
A19: 5 | C19: TAXES OTHER THAN INCOME | E19: ='SCHEDULE MJL-TUR15'!F51 -> 193018
A20: 6 | C20: FEDERAL AND STATE INCOME AND CITY EARNINGS TAXES AT CLAIMED RETURN | E20: ='SCHEDULE MJL-TUR15'!F53+'SCHEDULE MJL-TUR15'!F54+'SCHEDULE MJL-TUR15'!F55 -> 92246
A21: 7 | C21: EXCESS DEFERRED INCOME TAX AND I.T.C. AMORTIZATION | E21: ='SCHEDULE MJL-TUR15'!F60 -> -89577
A22: 8 | C22: TOTAL ELECTRIC REVENUE REQUIREMENT | E22: =SUM(E16:E21) -> 3608853
A25: =1+A22 -> 9 | C25: PRO FORMA TOTAL ELECTRIC OPERATING REVENUE AT PRESENT RATES | E25: =+'SCHEDULE MJL-TUR10'!F26 -> 3369879
A27: =1+A25 -> 10 | C27: DEFICIENCY IN TOTAL ELECTRIC OPERATING REVENUE | E27: =E22-E25 -> 238974
F30: =+UPPER(C30) -> 

Sheet SCHEDULE MJL-TUR17
A1: AMEREN MISSOURI
A2: CALCULATION OF NET BASE ENERGY COST (BF)
A3: ='SCHEDULE MJL-TUR5'!A3 -> FOR THE TWELVE MONTHS ENDED DECEMBER 31, 2022
A9: LINE | C9: DESCRIPTION | E9: TOTAL | G9: SUMMER | I9: WINTER | K9: WINTER-2
C10: (A) | E10: (B) | G10: (D) | I10: (E) | K10: (F)
B12: A | C12: FUEL & PURCHASED POWER COSTS
C13: BASE LOAD
A14: =1 -> 1 | C14: FUEL FOR LOAD | E14: =G14+I14 -> 405079883.4 | G14: =SUM('[2]NBEC '!$F$12:$F$14) -> 155874000 | I14: =SUM('[2]NBEC '!$H$12:$H$14) -> 249205883.4 | K14: =E14-G14-I14 -> 0
A15: =1+A14 -> 2 | C15: FLY ASH (1) | E15: =G15+I15 -> -1221094.95 | G15: ='[2]NBEC '!$F$15 -> -452913 | I15: ='[2]NBEC '!$H$15 -> -768181.95 | K15: 0
A16: =1+A15 -> 3 | C16: FIXED GAS SUPPLY COSTS FOR LOAD (2) | E16: =G16+I16 -> 8071909.6 | G16: ='[2]NBEC '!$F$17 -> 2901687 | I16: ='[2]NBEC '!$H$17 -> 5170222.6 | K16: 0
A17: 4 | C17: FUEL ADDITIVES (2) | E17: =G17+I17 -> 5664781.372 | G17: ='[2]NBEC '!$F$16 -> 2036373 | I17: ='[2]NBEC '!$H$16 -> 3628408.372 | K17: 0
A18: 5 | C18: PURCHASED POWER FOR LOAD | E18: =G18+I18 -> 90501753.97 | G18: ='[2]NBEC '!$F$18 -> 31652000 | I18: ='[2]NBEC '!$H$18 -> 58849753.97 | K18: 0
A20: =1+A18 -> 6 | C20: TOTAL BASE LOAD | E20: =SUM(E14:E18) -> 508097233.4 | G20: =SUM(G14:G18) -> 192011147 | I20: =SUM(I14:I18) -> 316086086.4 | K20: =SUM(K14:K18) -> 0
C22: OSS
A23: 7 | C23: FUEL FOR LOAD | E23: =G23+I23 -> 132386038.2 | G23: =SUM('[2]NBEC '!$F$22:$F$24) -> 55573000 | I23: =SUM('[2]NBEC '!$H$22:$H$24) -> 76813038.17
A24: 8 | C24: FLY ASH (1) | E24: =G24+I24 -> -399072 | G24: ='[2]NBEC '!$F$25 -> -148019 | I24: ='[2]NBEC '!$H$25 -> -251053
A25: 9 | C25: FIXED GAS SUPPLY COSTS FOR LOAD (2) | E25: =G25+I25 -> 2638018 | G25: ='[2]NBEC '!$F$27 -> 948314 | I25: ='[2]NBEC '!$H$27 -> 1689704
A26: 10 | C26: FUEL ADDITIVES (2) | E26: =G26+I26 -> 1851333 | G26: ='[2]NBEC '!$F$26 -> 665516 | I26: ='[2]NBEC '!$H$26 -> 1185817
A27: 11 | C27: PURCHASED POWER FOR LOAD | E27: =G27+I27 -> 0 | G27: ='[2]NBEC '!$F$28 -> 0 | I27: ='[2]NBEC '!$H$28 -> 0
A29: 12 | C29: TOTAL OSS | E29: =SUM(E23:E27) -> 136476317.2 | G29: =SUM(G23:G27) -> 57038811 | I29: =SUM(I23:I27) -> 79437506.17
A31: 13 | C31: TOTAL FUEL AND PURCHASED POWER | E31: =E20+E29 -> 644573550.6 | G31: =G20+G29 -> 249049958 | I31: =I20+I29 -> 395523592.6
B34: B | C34: TRANSMISSION COSTS AND REVENUES
A35: 14 | C35: TRANSMISSION BY OTHERS (ACCT. 565 @ 7.77%) (2) | E35: =G35+I35 -> 5748623.674 | G35: ='[2]NBEC '!$F$34 -> 2066630 | I35: ='[2]NBEC '!$H$34 -> 3681993.674
A36: 15 | C36: TRANMISSION REVENUES (ACC 456.1) (2) | E36: =G36+I36 -> -2558054.13 | G36: ='[2]NBEC '!$F$35 -> -919620 | I36: ='[2]NBEC '!$H$35 -> -1638434.13
A38: 16 | C38: TOTAL TRANSMISSION COSTS AND REVENUES | E38: =SUM(E35:E36) -> 3190569.543 | G38: =SUM(G35:G36) -> 1147010 | I38: =SUM(I35:I36) -> 2043559.543
B41: C | C41: ADDITIONAL FUEL & PP COSTS
A42: 17 | C42: MISO DAY 2 EXCLUDING ADMIN (ACCT 555) (2) | E42: =G42+I42 -> 47582108.01 | G42: ='[2]NBEC '!$F$39 -> 17104797 | I42: ='[2]NBEC '!$H$39 -> 30477311.01 | K42: =E42-G42-I42 -> 0
A43: 18 | C43: COMMON BOUNDARY (2) | E43: 291197.41 | G43: ='[2]NBEC '!$F$40 -> 104680 | I43: ='[2]NBEC '!$H$40 -> 186517.41
A44: 19 | C44: CAPACITY EXPENSE (2) | E44: 218266100 | G44: ='[2]NBEC '!$F$41 -> 78462210 | I44: ='[2]NBEC '!$H$41 -> 139803890 | K44: =E44-G44-I44 -> 0
A45: 20 | C45: ANCILLARY SERVICES PURCHASED (ACCT. 555) (2) | E45: 4017053.35 | G45: ='[2]NBEC '!$F$42 -> 1444131 | I45: ='[2]NBEC '!$H$42 -> 2572922.35 | K45: 0
A46: 21 | C46: PJM EXCLUDING ADMIN (ACCT. 555) (2) | E46: 2092470.14 | G46: ='[2]NBEC '!$F$43 -> 752243 | I46: ='[2]NBEC '!$H$43 -> 1340227.14 | K46: 0
A47: 22 | C47: REPLACEMENT POWER INSURANCE (ACC 925) (2) | E47: 687759.72 | G47: ='[2]NBEC '!$F$44 -> 247250 | I47: ='[2]NBEC '!$H$44 -> 440509.72
A49: 23 | C49: TOTAL ADDITIONAL FUEL & PP COSTS | E49: =SUM(E42:E47) -> 272936688.6 | G49: =SUM(G42:G47) -> 98115311 | I49: =SUM(I42:I47) -> 174821377.6 | K49: =SUM(K42:K46) -> 0
B52: D | C52: SALES
A53: =1+A49 -> 24 | C53: OFF-SYSTEM ENERGY SALES REVENUES (ACCT. 447) | E53: =G53+I53 -> 235690547.4 | G53: ='[2]NBEC '!$F$50 -> 114770000 | I53: ='[2]NBEC '!$H$50 -> 120920547.4 | K53: =E53-G53-I53 -> 0
A54: =1+A53 -> 25 | C54: MAKE WHOLE PAYMENT MARGINS (ACCT 447) (2) | E54: =G54+I54 -> 2294685 | G54: ='[2]NBEC '!$F$51 -> 824892 | I54: ='[2]NBEC '!$H$51 -> 1469793 | K54: 0
A55: =1+A54 -> 26 | C55: CAPACITY SALES REVENUES (ACCT. 447) (2) | E55: 228379369 | G55: ='[2]NBEC '!$F$52 -> 82097724 | I55: ='[2]NBEC '!$H$52 -> 146281645 | K55: 0
A56: =1+A55 -> 27 | C56: BILATERAL ENERGY SALES MARGINS (447) (2) | E56: 0 | G56: ='[2]NBEC '!$F$53 -> 0 | I56: ='[2]NBEC '!$H$53 -> 0
A57: =1+A56 -> 28 | C57: FINANCIAL SWAPS (ACCT 447) (2) | E57: 1717256 | G57: ='[2]NBEC '!$F$54 -> 617318 | I57: ='[2]NBEC '!$H$54 -> 1099938 | K57: 0
A58: =1+A57 -> 29 | C58: ANCILLARY SERVICES REVENUE (ACCT. 447) (2) | E58: 6373900.09 | G58: ='[2]NBEC '!$F$55 -> 2291287 | I58: ='[2]NBEC '!$H$55 -> 4082613.09 | K58: 0
A60: =A58+1 -> 30 | C60: TOTAL SALES | E60: =SUM(E53:E59) -> 474455757.5 | G60: =SUM(G53:G59) -> 200601221 | I60: =SUM(I53:I59) -> 273854536.5 | K60: =SUM(K53:K59) -> 0
B62: E | C62: OTHER ADJUSTMENTS
A63: =A60+1 -> 31 | C63: REAL-TIME LOAD AND GENERATION DEVIATION (2) | E63: =G63+I63 -> 5643433 | G63: ='[2]NBEC '!$F$59 -> 2028699 | I63: ='[2]NBEC '!$H$59 -> 3614734
A65: =A63+1 -> 32 | C65: TOTAL OTHER ADJUSTMENTS | E65: =E63 -> 5643433 | G65: =G63 -> 2028699 | I65: =I63 -> 3614734
A67: =A65+1 -> 33 | B67: A + B + C - D - E | C67: NET BASE ENERGY COSTS | E67: =E31+E38+E49-E60-E65 -> 440601618.2 | G67: =G31+G38+G49-G60-G65 -> 145682359 | I67: =I31+I38+I49-I60-I65 -> 294919259.2 | K67: =K20+K49-K60 -> 0
C69: LOAD FORECAST (DELIVERED MWH) USED IN PROSYM RUN | E69: =SUM(#REF!) -> 
C71: NET BASE FUEL COSTS ($ PER MWH) | E71: =E67*1000/E69 -> 
C74: LOAD FORECAST AT GENERATION LEVEL* | E74: =SUM(#REF!) -> 
C75: * EXCLUDES TRANSMISSION LINE LOSSES
C77: NET BASE FUEL COSTS ($ PER MWH) AT GENERATION LEVEL | E77: =+E67*1000/E74 -> 
A79: =1+A67 -> 34 | C79: LOAD AT MISO CP NODE AMMO.UE (KWH) | E79: =G79+I79 -> 3.236210229e+10 | G79: ='[2]NBEC '!$F$68 -> 11634000000 | I79: ='[2]NBEC '!$H$68 -> 2.072810229e+10 | K79: =E79-G79-I79 -> 0
A81: =1+A79 -> 35 | C81: BASE FACTOR (BF) ($ PER MWH) | E81: =E67/E79*1000 -> 13.6147403 | G81: =G67/G79*1000 -> 12.52212128 | I81: =I67/I79*1000 -> 14.22799131 | K81: =K67/K79*1000 -> 
A83: =1+A81 -> 36 | C83: BASE FACTOR (BF) (CENTS PER KWH) | E83: =E81/10 -> 1.36147403 | G83: =G81/10 -> 1.252212128 | I83: =I81/10 -> 1.422799131 | K83: =K81/10 -> 
A85: =1+A83 -> 37 | B85: MONTHS IN EACH PERIOD:
A86: =1+A85 -> 38 | C86: SUMMER: JUNE THROUGH SEPTEMBER
A87: 39 | C87: WINTER: OCTOBER THROUGH MAY
A89: =A87+1 -> 40 | B89: -1 | C89: ALLOCATED BETWEEN SUMMER AND WINTERS BASED ON COAL FROM FUEL MODEL.
A90: =1+A89 -> 41 | B90: -2 | C90: ALLOCATED BETWEEN SUMMER AND WINTERS BASED ON LOAD.

Sheet SCHEDULE MJL-S18 (hidden)
A1: Ameren Missouri Electric Rate Case
A2: Cash Working Capital Requirement
A5: Line No. | C5: Description | E5: Revenue Lag | G5: Expense Lead | I5: Net Lag | K5: CWC Factor
C6: (A) | E6: (B) | G6: (C) | I6: (D) | K6: (E)
A8: 1 | C8: Pensions & Benefits | E8: 37.02 | G8: -15.7 | I8: =E8+G8 -> 21.32 | K8: =I8/365 -> 0.0584109589
A9: =A8+1 -> 2 | C9: Employee Benefits (Group Health & 401k) | E9: 37.02 | G9: -17.65 | I9: 19.37 | K9: =I9/365 -> 0.05306849315
A10: =A9+1 -> 3 | C10: Payroll and Withholdings | E10: 37.02 | G10: -10.9 | I10: 26.12 | K10: =I10/365 -> 0.07156164384
A11: 4 | C11: Payroll Taxes | E11: 37.02 | G11: -9.378521517 | I11: 27.64147848 | K11: 0.07573007804
A12: 5 | C12: Other Operations and Maintenance Expenses | E12: 37.02 | G12: -42.25037055 | I12: -5.230370548 | K12: -0.01432978232
A13: 6 | C13: Property/Real Estate Taxes | E13: 37.02 | G13: -183 | I13: -145.98 | K13: -0.3999452055
A14: 7 | C14: Missouri Sales Tax | E14: 37.02 | G14: -9.312952733 | I14: 27.70704727 | K14: 0.07590971854
A15: 8 | C15: Missouri and Iowa Use Tax | E15: 37.02 | G15: -76.2479442 | I15: -39.2279442 | K15: -0.1074738197
A16: 9 | C16: Illinois Use Tax | E16: 37.02 | G16: -35.7816893 | I16: =E16+G16 -> 1.238310698 | K16: =I16/365 -> 0.003392632049
A17: 10 | C17: Gross Receipts Taxes | E17: 24.27 | G17: -26.98580175 | I17: -2.715801753 | K17: -0.007440552747
A18: 11 | C18: Federal Income Tax | E18: 37.02 | G18: -38 | I18: -0.98 | K18: -0.002684931507
A19: 12 | C19: State Income Tax | E19: 37.02 | G19: -38 | I19: -0.98 | K19: -0.002684931507
A20: 13 | C20: St Louis Corporate Earnings Tax | E20: 37.02 | G20: -274.5 | I20: =E20+G20 -> -237.48 | K20: =I20/365 -> -0.650630137
A21: 14 | C21: Fuel - Nuclear | E21: 37.02 | G21: -15.20833333 | I21: =E21+G21 -> 21.81166667 | K21: =I21/365 -> 0.05975799087
A22: 15 | C22: Fuel - Coal | E22: 37.02 | G22: -14.43339818 | I22: =E22+G22 -> 22.58660182 | K22: =I22/365 -> 0.06188110087
A23: 16 | C23: Fuel - Oil | E23: 37.02 | G23: -14.68753918 | I23: =E23+G23 -> 22.33246082 | K23: =I23/365 -> 0.06118482415
A24: 17 | C24: Fuel - Gas | E24: 37.02 | G24: -40.72113375 | I24: =E24+G24 -> -3.701133745 | K24: =I24/365 -> -0.01014009245
A25: 18 | C25: Interest Expense | E25: 37.02 | G25: -91.36877139 | I25: -54.34877139 | K25: -0.1489007435
A26: 19 | C26: Uncollectible Expense | E26: 37.02 | G26: =-E26 -> -37.02 | I26: 0 | K26: 0
A27: 20 | C27: Purchased Power | E27: 37.02 | G27: -18.10028377 | I27: 18.91971623 | K27: 0.05183483898
A28: 21 | C28: Decommissioning Fees | E28: 37.02 | G28: -69.5 | I28: -32.48 | K28: -0.08898630137
A29: 22 | C29: Incentive Compensation | E29: 37.02 | G29: -250.8 | I29: -213.78 | K29: -0.5856986301
A30: 23 | C30: Fed Excise Heavy Use Tax | E30: 37.02 | G30: 125.5736117 | I30: 162.5936117 | K30: 0.4454619499
A31: 24 | C31: Self Procured Insurance Tax | E31: 37.02 | G31: -241.5 | I31: -204.48 | K31: -0.5602191781
A32: 25 | C32: Ohio Commercial Activity Tax | E32: 37.02 | G32: 50 | I32: 87.02 | K32: 0.2384109589
A33: 26 | C33: Corporate Franchise Tax | E33: 37.02 | G33: -233.192007 | I33: -196.172007 | K33: -0.5374575535
A34: 27 | C34: State of Indiana Corporate Income Tax | E34: 37.02 | G34: -14 | I34: 23.02 | K34: 0.06306849315
A35: 28 | C35: State of Iowa Corporate Income Tax | E35: 37.02 | G35: 77 | I35: 114.02 | K35: 0.3123835616
